Department,Entity,Transaction Date,Expense Type,Expense Area,Supplier,Transaction No.,Amount
"Department for Business, Energy and Industrial Strategy",The Coal Authority,13/10/2023,Applications Consultancy,DIG - Technical Delivery,Inferis Replatforming Grp 1 corr CGI,165105,"5,663.48"
"Department for Business, Energy and Industrial Strategy",The Coal Authority,03/10/2023,Applications Consultancy,DIG - Technical Delivery,Cgi It Uk Ltd,165324,"103,664.83"
"Department for Business, Energy and Industrial Strategy",The Coal Authority,29/09/2023,Bank Charges,Finance,National Westminster Bank Plc,165697,65.47
"Department for Business, Energy and Industrial Strategy",The Coal Authority,25/10/2023,Bridgewater - Contractor Costs,PS&S - General Claims,The Bridgewater Canal Co Ltd,166119,"3,238.71"
"Department for Business, Energy and Industrial Strategy",The Coal Authority,25/10/2023,Bridgewater - Contractor Costs,PS&S - General Claims,The Bridgewater Canal Co Ltd,166120,"2,467.73"
"Department for Business, Energy and Industrial Strategy",The Coal Authority,25/10/2023,Bridgewater - Contractor Costs,PS&S - General Claims,The Bridgewater Canal Co Ltd,166121,"31,552.61"
"Department for Business, Energy and Industrial Strategy",The Coal Authority,19/09/2023,Business Entertainment / Hospitality,Community Response,S P Foods,166098,61.85
"Department for Business, Energy and Industrial Strategy",The Coal Authority,28/09/2023,Business Meetings,ENV - Technical,S P Foods,164496,325.5
"Department for Business, Energy and Industrial Strategy",The Coal Authority,28/09/2023,Business Meetings,ENV - Technical,S P Foods,164496,16.5
"Department for Business, Energy and Industrial Strategy",The Coal Authority,05/10/2023,Business Meetings,Colleague & Corporate Engagement,S P Foods,165048,65.1
"Department for Business, Energy and Industrial Strategy",The Coal Authority,12/10/2023,Business Meetings,ENV - Projects & Delivery,Ransomwood Estates Ltd,165138,427.5
"Department for Business, Energy and Industrial Strategy",The Coal Authority,28/09/2023,Business Meetings,Executive,National Coal Mining Museum,165230,554
"Department for Business, Energy and Industrial Strategy",The Coal Authority,28/09/2023,Business Meetings,Executive,National Coal Mining Museum,165230,0.4
"Department for Business, Energy and Industrial Strategy",The Coal Authority,23/08/2023,Business Meetings,Innovation By-Product & Services Delivery,Propertymark Limited,165331,"2,000.00"
"Department for Business, Energy and Industrial Strategy",The Coal Authority,17/07/2023,Business Meetings,Customer Services & Strategy,The Institute of Customer Service,165363,"1,770.00"
"Department for Business, Energy and Industrial Strategy",The Coal Authority,02/08/2023,Business Meetings,PS&S - General Claims,Government Procurement Card,165404,10.42
"Department for Business, Energy and Industrial Strategy",The Coal Authority,23/08/2023,Business Meetings,PS&S - General Claims,Government Procurement Card,165404,5.13
"Department for Business, Energy and Industrial Strategy",The Coal Authority,11/07/2023,Business Meetings,DEFRA Metal Mine Programme,Government Procurement Card,165405,16.46
"Department for Business, Energy and Industrial Strategy",The Coal Authority,13/09/2023,Business Meetings,PS&S - General Claims,Government Procurement Card,165406,6.2
"Department for Business, Energy and Industrial Strategy",The Coal Authority,14/09/2023,Business Meetings,PS&S - General Claims,Government Procurement Card,165406,13.7
"Department for Business, Energy and Industrial Strategy",The Coal Authority,15/09/2023,Business Meetings,PS&S - General Claims,Government Procurement Card,165406,13.7
"Department for Business, Energy and Industrial Strategy",The Coal Authority,19/09/2023,Business Meetings,ENV - Mine Water Operations,Government Procurement Card,165406,144.97
"Department for Business, Energy and Industrial Strategy",The Coal Authority,20/09/2023,Business Meetings,PS&S - General Claims,Government Procurement Card,165406,8.5
"Department for Business, Energy and Industrial Strategy",The Coal Authority,21/09/2023,Business Meetings,PS&S - General Claims,Government Procurement Card,165406,14.17
"Department for Business, Energy and Industrial Strategy",The Coal Authority,22/09/2023,Business Meetings,People & Organisational Development,Government Procurement Card,165406,120
"Department for Business, Energy and Industrial Strategy",The Coal Authority,25/09/2023,Business Meetings,NRW Metal Mine Programme,Government Procurement Card,165406,85
"Department for Business, Energy and Industrial Strategy",The Coal Authority,28/09/2023,Business Meetings,PS&S - General Claims,Government Procurement Card,165406,11.25
"Department for Business, Energy and Industrial Strategy",The Coal Authority,27/03/2023,Business Meetings,Engineering,Government Procurement Card,165407,162.84
"Department for Business, Energy and Industrial Strategy",The Coal Authority,15/03/2023,Business Meetings,Legal & Governance,Government Procurement Card,165416,21.87
"Department for Business, Energy and Industrial Strategy",The Coal Authority,15/09/2023,Business Meetings,PS&S - General Claims,Government Procurement Card,166122,25
"Department for Business, Energy and Industrial Strategy",The Coal Authority,01/09/2023,Business Publications,NRW Metal Mine Programme,Government Procurement Card,166122,7.98
"Department for Business, Energy and Industrial Strategy",The Coal Authority,12/09/2023,Business Publications,PS&S - General Claims,Government Procurement Card,166122,176.84
"Department for Business, Energy and Industrial Strategy",The Coal Authority,15/09/2023,Business Publications,NRW Metal Mine Programme,Government Procurement Card,166122,15.98
"Department for Business, Energy and Industrial Strategy",The Coal Authority,25/09/2023,Canteen Equipment,Facilities,Eden Springs UK LTD,164099,180.48
"Department for Business, Energy and Industrial Strategy",The Coal Authority,01/10/2023,Canteen Equipment,Facilities,East Midlands Vending Ltd,164147,120
"Department for Business, Energy and Industrial Strategy",The Coal Authority,17/10/2023,Canteen Equipment,Facilities,All Shires Foods Ltd,165562,24.38
"Department for Business, Energy and Industrial Strategy",The Coal Authority,17/10/2023,Canteen Equipment,Facilities,All Shires Foods Ltd,165562,189.11
"Department for Business, Energy and Industrial Strategy",The Coal Authority,17/10/2023,Canteen Equipment,Facilities,All Shires Foods Ltd,165562,142.25
"Department for Business, Energy and Industrial Strategy",The Coal Authority,17/10/2023,Canteen Equipment,Facilities,All Shires Foods Ltd,165562,25.8
"Department for Business, Energy and Industrial Strategy",The Coal Authority,23/10/2023,Canteen Equipment,Facilities,All Shires Foods Ltd,165791,50.75
"Department for Business, Energy and Industrial Strategy",The Coal Authority,25/10/2023,Canteen Equipment,Facilities,Eden Springs UK LTD,166133,180.48
"Department for Business, Energy and Industrial Strategy",The Coal Authority,29/09/2023,Central Training,People & Organisational Development,ACAS,164025,"3,700.00"
"Department for Business, Energy and Industrial Strategy",The Coal Authority,10/10/2023,Central Training,"Health, Safety & Wellbeing",Mines Rescue Service Limited,165203,193
"Department for Business, Energy and Industrial Strategy",The Coal Authority,05/10/2023,Central Training,"Health, Safety & Wellbeing",Mines Rescue Service Limited,165212,282
"Department for Business, Energy and Industrial Strategy",The Coal Authority,05/10/2023,Central Training,"Health, Safety & Wellbeing",Mines Rescue Service Limited,165213,282
"Department for Business, Energy and Industrial Strategy",The Coal Authority,04/10/2023,Central Training,"Health, Safety & Wellbeing",eDriving Ltd,165571,303
"Department for Business, Energy and Industrial Strategy",The Coal Authority,25/09/2023,Central Training,Staff Network and Groups,Radius Business Ltd,165648,"1,090.00"
"Department for Business, Energy and Industrial Strategy",The Coal Authority,19/09/2023,Central Training,"Health, Safety & Wellbeing",Government Procurement Card,166122,150
"Department for Business, Energy and Industrial Strategy",The Coal Authority,22/09/2023,Central Training,"Health, Safety & Wellbeing",Government Procurement Card,166122,25
"Department for Business, Energy and Industrial Strategy",The Coal Authority,25/10/2023,Central Training,"Health, Safety & Wellbeing",Posturite Ltd,166181,75
"Department for Business, Energy and Industrial Strategy",The Coal Authority,09/10/2023,Consultancy - Branding & Marketing Advice&#10;,Colleague & Corporate Engagement,Redefining Communications Ltd,165909,147.6
"Department for Business, Energy and Industrial Strategy",The Coal Authority,18/09/2023,Consultancy-Legacy Mine Workings,DEV - Licensing,Wardell Armstrong LLP,165329,"8,454.25"
"Department for Business, Energy and Industrial Strategy",The Coal Authority,30/09/2023,Contract Hire Vehicles,Facilities,Enterprise Rent A Car,164472,"2,855.79"
"Department for Business, Energy and Industrial Strategy",The Coal Authority,26/09/2023,Contract Hire Vehicles,PS&S - Management,Kinto UK Limited,164571,611.87
"Department for Business, Energy and Industrial Strategy",The Coal Authority,26/09/2023,Contract Hire Vehicles,PS&S - Management,Kinto UK Limited,164571,"7,192.92"
"Department for Business, Energy and Industrial Strategy",The Coal Authority,26/09/2023,Contract Hire Vehicles,PS&S - Management,Kinto UK Limited,164571,719.29
"Department for Business, Energy and Industrial Strategy",The Coal Authority,01/09/2023,Contract Hire Vehicles,PS&S - General Claims,Days Fleet,164592,55
"Department for Business, Energy and Industrial Strategy",The Coal Authority,01/09/2023,Contract Hire Vehicles,PS&S - General Claims,Days Fleet,164592,25
"Department for Business, Energy and Industrial Strategy",The Coal Authority,28/09/2023,Contract Hire Vehicles,PS&S - General Claims,Kinto UK Limited,164593,40.58
"Department for Business, Energy and Industrial Strategy",The Coal Authority,28/09/2023,Contract Hire Vehicles,PS&S - General Claims,Kinto UK Limited,164593,48.49
"Department for Business, Energy and Industrial Strategy",The Coal Authority,28/09/2023,Contract Hire Vehicles,PS&S - General Claims,Kinto UK Limited,164593,48.5
"Department for Business, Energy and Industrial Strategy",The Coal Authority,28/09/2023,Contract Hire Vehicles,PS&S - General Claims,Kinto UK Limited,164593,447.65
"Department for Business, Energy and Industrial Strategy",The Coal Authority,28/09/2023,Contract Hire Vehicles,PS&S - General Claims,Kinto UK Limited,164593,44.76
"Department for Business, Energy and Industrial Strategy",The Coal Authority,28/09/2023,Contract Hire Vehicles,PS&S - General Claims,Kinto UK Limited,164593,405.81
"Department for Business, Energy and Industrial Strategy",The Coal Authority,01/10/2023,Contract Hire Vehicles,PS&S - General Claims,Days Fleet,164597,59.4
"Department for Business, Energy and Industrial Strategy",The Coal Authority,01/10/2023,Contract Hire Vehicles,PS&S - General Claims,Days Fleet,164597,36.1
"Department for Business, Energy and Industrial Strategy",The Coal Authority,01/10/2023,Contract Hire Vehicles,PS&S - General Claims,Days Fleet,164597,48.97
"Department for Business, Energy and Industrial Strategy",The Coal Authority,01/10/2023,Contract Hire Vehicles,PS&S - General Claims,Days Fleet,164597,38.75
"Department for Business, Energy and Industrial Strategy",The Coal Authority,01/10/2023,Contract Hire Vehicles,PS&S - General Claims,Days Fleet,164597,39.49
"Department for Business, Energy and Industrial Strategy",The Coal Authority,01/10/2023,Contract Hire Vehicles,PS&S - General Claims,Days Fleet,164597,361
"Department for Business, Energy and Industrial Strategy",The Coal Authority,01/10/2023,Contract Hire Vehicles,PS&S - General Claims,Days Fleet,164597,489.76
"Department for Business, Energy and Industrial Strategy",The Coal Authority,01/10/2023,Contract Hire Vehicles,PS&S - General Claims,Days Fleet,164597,86.5
"Department for Business, Energy and Industrial Strategy",The Coal Authority,01/10/2023,Contract Hire Vehicles,PS&S - General Claims,Days Fleet,164597,394.92
"Department for Business, Energy and Industrial Strategy",The Coal Authority,31/08/2023,Contract Hire Vehicles,Facilities,Enterprise Rent A Car,165448,"2,855.79"
"Department for Business, Energy and Industrial Strategy",The Coal Authority,13/10/2023,Contract Hire Vehicles,PS&S - General Claims,Days Fleet,165516,20
"Department for Business, Energy and Industrial Strategy",The Coal Authority,27/09/2023,Contract Hire Vehicles,ENV - Mine Water Operations,Lex Autolease Ltd,165570,668.93
"Department for Business, Energy and Industrial Strategy",The Coal Authority,27/09/2023,Contract Hire Vehicles,PS&S - General Claims,Lex Autolease Ltd,165918,-0.01
"Department for Business, Energy and Industrial Strategy",The Coal Authority,27/09/2023,Contract Hire Vehicles,PS&S - General Claims,Lex Autolease Ltd,165918,"7,755.36"
"Department for Business, Energy and Industrial Strategy",The Coal Authority,27/09/2023,Contract Hire Vehicles,PS&S - General Claims,Lex Autolease Ltd,165918,709.2
"Department for Business, Energy and Industrial Strategy",The Coal Authority,27/09/2023,Contract Hire Vehicles,PS&S - General Claims,Lex Autolease Ltd,165918,775.54
"Department for Business, Energy and Industrial Strategy",The Coal Authority,05/09/2023,Contract Hire Vehicles,PS&S - General Claims,Government Procurement Card,166122,6.66
"Department for Business, Energy and Industrial Strategy",The Coal Authority,19/08/2023,CY - Head Office Buildings - Additions,Facilities,Prestige Blinds,164082,"16,326.00"
"Department for Business, Energy and Industrial Strategy",The Coal Authority,26/09/2023,CY - Head Office Buildings - Additions,Facilities,Acculine Markings Ltd,164096,525
"Department for Business, Energy and Industrial Strategy",The Coal Authority,13/10/2023,CY - Intangible IT - Additions,DIG - Technical Delivery,Inferis Replatforming Grp 1 corr CGI,165105,"-9,410.91"
"Department for Business, Energy and Industrial Strategy",The Coal Authority,18/08/2023,CY - Minewater Scheme - Additions,ENV - Projects & Delivery,AECOM Ltd,164113,"1,451.70"
"Department for Business, Energy and Industrial Strategy",The Coal Authority,10/07/2023,CY - Minewater Scheme - Additions,ENV - Projects & Delivery,AECOM Ltd,164150,887.15
"Department for Business, Energy and Industrial Strategy",The Coal Authority,22/09/2023,CY - Minewater Scheme - Additions,ENV - Projects & Delivery,AECOM Ltd,164151,161.3
"Department for Business, Energy and Industrial Strategy",The Coal Authority,28/09/2023,CY - Minewater Scheme - Additions,ENV - Projects & Delivery,J N Bentley Limited,164196,"57,679.68"
"Department for Business, Energy and Industrial Strategy",The Coal Authority,27/09/2023,CY - Minewater Scheme - Additions,ENV - Mine Water Operations,National Coal Mining Museum,164198,"3,000.00"
"Department for Business, Energy and Industrial Strategy",The Coal Authority,26/09/2023,CY - Minewater Scheme - Additions,ENV - Projects & Delivery,AECOM Ltd,164372,435.16
"Department for Business, Energy and Industrial Strategy",The Coal Authority,26/09/2023,CY - Minewater Scheme - Additions,ENV - Projects & Delivery,AECOM Ltd,164372,"11,982.26"
"Department for Business, Energy and Industrial Strategy",The Coal Authority,27/09/2023,CY - Minewater Scheme - Additions,ENV - Projects & Delivery,Dunelm Geotechnical and Environmental Ltd,164606,"68,944.00"
"Department for Business, Energy and Industrial Strategy",The Coal Authority,30/06/2023,CY - Minewater Scheme - Additions,ENV - Projects & Delivery,Sand Separation Systems Ltd,164613,"72,600.86"
"Department for Business, Energy and Industrial Strategy",The Coal Authority,30/07/2023,CY - Minewater Scheme - Additions,ENV - Projects & Delivery,Sand Separation Systems Ltd,164614,"34,539.86"
"Department for Business, Energy and Industrial Strategy",The Coal Authority,30/08/2023,CY - Minewater Scheme - Additions,ENV - Projects & Delivery,Sand Separation Systems Ltd,164615,"23,726.13"
"Department for Business, Energy and Industrial Strategy",The Coal Authority,05/10/2023,CY - Minewater Scheme - Additions,DEFRA Metal Mine Programme,John F Hunt Regeneration Ltd,164646,"113,009.13"
"Department for Business, Energy and Industrial Strategy",The Coal Authority,11/08/2023,CY - Minewater Scheme - Additions,ENV - Technical,Drilcorp Limited,164704,"223,777.59"
"Department for Business, Energy and Industrial Strategy",The Coal Authority,11/08/2023,CY - Minewater Scheme - Additions,ENV - Technical,Drilcorp Limited,164705,"64,011.03"
"Department for Business, Energy and Industrial Strategy",The Coal Authority,29/09/2023,CY - Minewater Scheme - Additions,ENV - Projects & Delivery,Turner and Townsend Project Management Ltd.,164925,"4,579.00"
"Department for Business, Energy and Industrial Strategy",The Coal Authority,29/09/2023,CY - Minewater Scheme - Additions,ENV - Projects & Delivery,Turner and Townsend Project Management Ltd.,164925,0.03
"Department for Business, Energy and Industrial Strategy",The Coal Authority,29/09/2023,CY - Minewater Scheme - Additions,ENV - Projects & Delivery,Turner and Townsend Project Management Ltd.,164927,0.01
"Department for Business, Energy and Industrial Strategy",The Coal Authority,29/09/2023,CY - Minewater Scheme - Additions,ENV - Projects & Delivery,Turner and Townsend Project Management Ltd.,164927,"2,466.80"
"Department for Business, Energy and Industrial Strategy",The Coal Authority,10/10/2023,CY - Minewater Scheme - Additions,ENV - Projects & Delivery,AECOM Ltd,164978,533.94
"Department for Business, Energy and Industrial Strategy",The Coal Authority,10/10/2023,CY - Minewater Scheme - Additions,ENV - Projects & Delivery,AECOM Ltd,164980,177.98
"Department for Business, Energy and Industrial Strategy",The Coal Authority,22/09/2023,CY - Minewater Scheme - Additions,ENV - Mine Water Operations,AECOM Ltd,165023,"1,612.98"
"Department for Business, Energy and Industrial Strategy",The Coal Authority,10/07/2023,CY - Minewater Scheme - Additions,ENV - Projects & Delivery,AECOM Ltd,165045,"3,280.00"
"Department for Business, Energy and Industrial Strategy",The Coal Authority,10/07/2023,CY - Minewater Scheme - Additions,ENV - Projects & Delivery,AECOM Ltd,165045,"5,914.26"
"Department for Business, Energy and Industrial Strategy",The Coal Authority,09/10/2023,CY - Minewater Scheme - Additions,By-Products - Energy,Severn Trent Serv Ops Uk Ltd,165257,"9,673.03"
"Department for Business, Energy and Industrial Strategy",The Coal Authority,09/10/2023,CY - Minewater Scheme - Additions,By-Products - Energy,Severn Trent Serv Ops Uk Ltd,165257,"9,673.03"
"Department for Business, Energy and Industrial Strategy",The Coal Authority,09/10/2023,CY - Minewater Scheme - Additions,ENV - Mine Water Operations,Severn Trent Serv Ops Uk Ltd,165257,"6,818.59"
"Department for Business, Energy and Industrial Strategy",The Coal Authority,09/10/2023,CY - Minewater Scheme - Additions,ENV - Mine Water Operations,Severn Trent Serv Ops Uk Ltd,165257,751.12
"Department for Business, Energy and Industrial Strategy",The Coal Authority,09/10/2023,CY - Minewater Scheme - Additions,ENV - Mine Water Operations,Severn Trent Serv Ops Uk Ltd,165257,"14,791.09"
"Department for Business, Energy and Industrial Strategy",The Coal Authority,09/10/2023,CY - Minewater Scheme - Additions,ENV - Mine Water Operations,Severn Trent Serv Ops Uk Ltd,165257,45.94
"Department for Business, Energy and Industrial Strategy",The Coal Authority,09/10/2023,CY - Minewater Scheme - Additions,ENV - Mine Water Operations,Severn Trent Serv Ops Uk Ltd,165257,"8,902.88"
"Department for Business, Energy and Industrial Strategy",The Coal Authority,09/10/2023,CY - Minewater Scheme - Additions,ENV - Mine Water Operations,Severn Trent Serv Ops Uk Ltd,165257,196.39
"Department for Business, Energy and Industrial Strategy",The Coal Authority,09/10/2023,CY - Minewater Scheme - Additions,ENV - Mine Water Operations,Severn Trent Serv Ops Uk Ltd,165257,"1,263.35"
"Department for Business, Energy and Industrial Strategy",The Coal Authority,09/10/2023,CY - Minewater Scheme - Additions,ENV - Mine Water Operations,Severn Trent Serv Ops Uk Ltd,165257,44.03
"Department for Business, Energy and Industrial Strategy",The Coal Authority,09/10/2023,CY - Minewater Scheme - Additions,ENV - Mine Water Operations,Severn Trent Serv Ops Uk Ltd,165257,101.37
"Department for Business, Energy and Industrial Strategy",The Coal Authority,09/10/2023,CY - Minewater Scheme - Additions,ENV - Mine Water Operations,Severn Trent Serv Ops Uk Ltd,165257,"15,303.13"
"Department for Business, Energy and Industrial Strategy",The Coal Authority,09/10/2023,CY - Minewater Scheme - Additions,ENV - Mine Water Operations,Severn Trent Serv Ops Uk Ltd,165257,"24,463.05"
"Department for Business, Energy and Industrial Strategy",The Coal Authority,09/10/2023,CY - Minewater Scheme - Additions,ENV - Mine Water Operations,Severn Trent Serv Ops Uk Ltd,165257,88.06
"Department for Business, Energy and Industrial Strategy",The Coal Authority,09/10/2023,CY - Minewater Scheme - Additions,ENV - Mine Water Operations,Severn Trent Serv Ops Uk Ltd,165257,239.59
"Department for Business, Energy and Industrial Strategy",The Coal Authority,09/10/2023,CY - Minewater Scheme - Additions,ENV - Mine Water Operations,Severn Trent Serv Ops Uk Ltd,165257,89.15
"Department for Business, Energy and Industrial Strategy",The Coal Authority,09/10/2023,CY - Minewater Scheme - Additions,ENV - Mine Water Operations,Severn Trent Serv Ops Uk Ltd,165257,"2,706.87"
"Department for Business, Energy and Industrial Strategy",The Coal Authority,09/10/2023,CY - Minewater Scheme - Additions,ENV - Mine Water Operations,Severn Trent Serv Ops Uk Ltd,165257,"3,513.26"
"Department for Business, Energy and Industrial Strategy",The Coal Authority,09/10/2023,CY - Minewater Scheme - Additions,ENV - Mine Water Operations,Severn Trent Serv Ops Uk Ltd,165257,"6,865.09"
"Department for Business, Energy and Industrial Strategy",The Coal Authority,09/10/2023,CY - Minewater Scheme - Additions,ENV - Mine Water Operations,Severn Trent Serv Ops Uk Ltd,165257,183.41
"Department for Business, Energy and Industrial Strategy",The Coal Authority,09/10/2023,CY - Minewater Scheme - Additions,ENV - Mine Water Operations,Severn Trent Serv Ops Uk Ltd,165257,954.7
"Department for Business, Energy and Industrial Strategy",The Coal Authority,09/10/2023,CY - Minewater Scheme - Additions,ENV - Mine Water Operations,Severn Trent Serv Ops Uk Ltd,165257,780.62
"Department for Business, Energy and Industrial Strategy",The Coal Authority,09/10/2023,CY - Minewater Scheme - Additions,ENV - Mine Water Operations,Severn Trent Serv Ops Uk Ltd,165257,"11,048.50"
"Department for Business, Energy and Industrial Strategy",The Coal Authority,09/10/2023,CY - Minewater Scheme - Additions,ENV - Mine Water Operations,Severn Trent Serv Ops Uk Ltd,165257,"5,766.25"
"Department for Business, Energy and Industrial Strategy",The Coal Authority,09/10/2023,CY - Minewater Scheme - Additions,ENV - Mine Water Operations,Severn Trent Serv Ops Uk Ltd,165257,88.06
"Department for Business, Energy and Industrial Strategy",The Coal Authority,09/10/2023,CY - Minewater Scheme - Additions,ENV - Mine Water Operations,Severn Trent Serv Ops Uk Ltd,165257,37.74
"Department for Business, Energy and Industrial Strategy",The Coal Authority,09/10/2023,CY - Minewater Scheme - Additions,ENV - Mine Water Operations,Severn Trent Serv Ops Uk Ltd,165257,88.06
"Department for Business, Energy and Industrial Strategy",The Coal Authority,09/10/2023,CY - Minewater Scheme - Additions,ENV - Mine Water Operations,Severn Trent Serv Ops Uk Ltd,165257,88.06
"Department for Business, Energy and Industrial Strategy",The Coal Authority,09/10/2023,CY - Minewater Scheme - Additions,ENV - Mine Water Operations,Severn Trent Serv Ops Uk Ltd,165257,327.68
"Department for Business, Energy and Industrial Strategy",The Coal Authority,09/10/2023,CY - Minewater Scheme - Additions,ENV - Mine Water Operations,Severn Trent Serv Ops Uk Ltd,165257,"17,748.74"
"Department for Business, Energy and Industrial Strategy",The Coal Authority,09/10/2023,CY - Minewater Scheme - Additions,ENV - Mine Water Operations,Severn Trent Serv Ops Uk Ltd,165257,"6,512.00"
"Department for Business, Energy and Industrial Strategy",The Coal Authority,09/10/2023,CY - Minewater Scheme - Additions,ENV - Mine Water Operations,Severn Trent Serv Ops Uk Ltd,165257,37.74
"Department for Business, Energy and Industrial Strategy",The Coal Authority,09/10/2023,CY - Minewater Scheme - Additions,ENV - Mine Water Operations,Severn Trent Serv Ops Uk Ltd,165257,"15,272.47"
"Department for Business, Energy and Industrial Strategy",The Coal Authority,09/10/2023,CY - Minewater Scheme - Additions,ENV - Mine Water Operations,Severn Trent Serv Ops Uk Ltd,165257,101.22
"Department for Business, Energy and Industrial Strategy",The Coal Authority,09/10/2023,CY - Minewater Scheme - Additions,ENV - Projects & Delivery,Severn Trent Serv Ops Uk Ltd,165257,"1,704.93"
"Department for Business, Energy and Industrial Strategy",The Coal Authority,09/10/2023,CY - Minewater Scheme - Additions,ENV - Projects & Delivery,Severn Trent Serv Ops Uk Ltd,165257,"10,722.51"
"Department for Business, Energy and Industrial Strategy",The Coal Authority,09/10/2023,CY - Minewater Scheme - Additions,ENV - Projects & Delivery,Severn Trent Serv Ops Uk Ltd,165257,569.95
"Department for Business, Energy and Industrial Strategy",The Coal Authority,09/10/2023,CY - Minewater Scheme - Additions,ENV - Projects & Delivery,Severn Trent Serv Ops Uk Ltd,165257,"7,011.73"
"Department for Business, Energy and Industrial Strategy",The Coal Authority,09/10/2023,CY - Minewater Scheme - Additions,ENV - Projects & Delivery,Severn Trent Serv Ops Uk Ltd,165257,477.22
"Department for Business, Energy and Industrial Strategy",The Coal Authority,09/10/2023,CY - Minewater Scheme - Additions,ENV - Projects & Delivery,Severn Trent Serv Ops Uk Ltd,165257,"20,052.97"
"Department for Business, Energy and Industrial Strategy",The Coal Authority,09/10/2023,CY - Minewater Scheme - Additions,ENV - Projects & Delivery,Severn Trent Serv Ops Uk Ltd,165257,"15,025.80"
"Department for Business, Energy and Industrial Strategy",The Coal Authority,09/10/2023,CY - Minewater Scheme - Additions,ENV - Projects & Delivery,Severn Trent Serv Ops Uk Ltd,165257,"9,581.33"
"Department for Business, Energy and Industrial Strategy",The Coal Authority,16/10/2023,CY - Minewater Scheme - Additions,ENV - Mine Water Operations,Water Plus Limited,165595,136.07
"Department for Business, Energy and Industrial Strategy",The Coal Authority,26/09/2023,CY - Minewater Scheme - Additions,ENV - Mine Water Operations,Water Plus Limited,165596,136.07
"Department for Business, Energy and Industrial Strategy",The Coal Authority,17/10/2023,CY - Minewater Scheme - Additions,ENV - Mine Water Operations,Water Plus Limited,165597,130.27
"Department for Business, Energy and Industrial Strategy",The Coal Authority,10/10/2023,CY - Minewater Scheme - Additions,ENV - Mine Water Operations,AECOM Ltd,165643,"2,366.27"
"Department for Business, Energy and Industrial Strategy",The Coal Authority,10/10/2023,CY - Minewater Scheme - Additions,ENV - Mine Water Operations,Dwr Cymru Welsh Water,165930,641.67
"Department for Business, Energy and Industrial Strategy",The Coal Authority,26/09/2023,CY - Non-coal Minewater - Additions,DEFRA LEP Funding,Turner and Townsend Project Management Ltd.,164009,"2,403.96"
"Department for Business, Energy and Industrial Strategy",The Coal Authority,29/09/2023,CY - Non-coal Minewater - Additions,DEFRA Metal Mine Programme,Yorkshire Dales Rivers Trust,164223,"64,331.00"
"Department for Business, Energy and Industrial Strategy",The Coal Authority,29/09/2023,CY - Non-coal Minewater - Additions,DEFRA Metal Mine Programme,Yorkshire Dales Rivers Trust,164223,"36,542.60"
"Department for Business, Energy and Industrial Strategy",The Coal Authority,29/09/2023,CY - Non-coal Minewater - Additions,DEFRA Metal Mine Programme,Yorkshire Dales Rivers Trust,164223,"9,950.64"
"Department for Business, Energy and Industrial Strategy",The Coal Authority,22/09/2023,CY - Non-coal Minewater - Additions,DEFRA LEP Funding,Amenity Horticultural Services Ltd,164922,"1,185.00"
"Department for Business, Energy and Industrial Strategy",The Coal Authority,30/09/2023,CY - Non-coal Minewater - Additions,DEFRA Metal Mine Programme,Yorkshire Dales Rivers Trust,164947,"5,950.48"
"Department for Business, Energy and Industrial Strategy",The Coal Authority,30/09/2023,CY - Non-coal Minewater - Additions,DEFRA Metal Mine Programme,Yorkshire Dales Rivers Trust,164947,765
"Department for Business, Energy and Industrial Strategy",The Coal Authority,30/09/2023,CY - Non-coal Minewater - Additions,DEFRA Metal Mine Programme,Yorkshire Dales Rivers Trust,164947,400
"Department for Business, Energy and Industrial Strategy",The Coal Authority,30/09/2023,CY - Non-coal Minewater - Additions,DEFRA Metal Mine Programme,Yorkshire Dales Rivers Trust,164947,"3,120.00"
"Department for Business, Energy and Industrial Strategy",The Coal Authority,28/09/2023,CY - Non-coal Minewater - Additions,DEFRA LEP Funding,Enviro Centre,164971,"2,000.00"
"Department for Business, Energy and Industrial Strategy",The Coal Authority,12/10/2023,CY - Non-coal Minewater - Additions,DEFRA LEP Funding,I & H Brown Limited,165075,"128,426.16"
"Department for Business, Energy and Industrial Strategy",The Coal Authority,04/09/2023,CY - Non-coal Minewater - Additions,DEFRA LEP Funding,Aecom Infrastructure & Env,165380,"5,735.16"
"Department for Business, Energy and Industrial Strategy",The Coal Authority,04/09/2023,CY - Non-coal Minewater - Additions,DEFRA LEP Funding,Aecom Infrastructure & Env,165380,573.81
"Department for Business, Energy and Industrial Strategy",The Coal Authority,04/09/2023,CY - Non-coal Minewater - Additions,DEFRA LEP Funding,Aecom Infrastructure & Env,165380,"1,500.92"
"Department for Business, Energy and Industrial Strategy",The Coal Authority,04/09/2023,CY - Non-coal Minewater - Additions,DEFRA LEP Funding,Aecom Infrastructure & Env,165380,"1,707.29"
"Department for Business, Energy and Industrial Strategy",The Coal Authority,04/09/2023,CY - Non-coal Minewater - Additions,DEFRA LEP Funding,Aecom Infrastructure & Env,165380,"3,176.77"
"Department for Business, Energy and Industrial Strategy",The Coal Authority,04/09/2023,CY - Non-coal Minewater - Additions,DEFRA LEP Funding,Aecom Infrastructure & Env,165380,"2,896.03"
"Department for Business, Energy and Industrial Strategy",The Coal Authority,04/09/2023,CY - Non-coal Minewater - Additions,DEFRA LEP Funding,Aecom Infrastructure & Env,165380,"1,320.15"
"Department for Business, Energy and Industrial Strategy",The Coal Authority,04/09/2023,CY - Non-coal Minewater - Additions,DEFRA LEP Funding,Aecom Infrastructure & Env,165380,"4,802.62"
"Department for Business, Energy and Industrial Strategy",The Coal Authority,04/09/2023,CY - Non-coal Minewater - Additions,DEFRA LEP Funding,Aecom Infrastructure & Env,165380,"1,609.92"
"Department for Business, Energy and Industrial Strategy",The Coal Authority,04/09/2023,CY - Non-coal Minewater - Additions,DEFRA LEP Funding,Aecom Infrastructure & Env,165380,145.8
"Department for Business, Energy and Industrial Strategy",The Coal Authority,04/09/2023,CY - Non-coal Minewater - Additions,DEFRA LEP Funding,Aecom Infrastructure & Env,165380,"1,623.72"
"Department for Business, Energy and Industrial Strategy",The Coal Authority,19/10/2023,CY - Non-coal Minewater - Additions,DEFRA LEP Funding,Aecom Infrastructure & Env,165393,504.92
"Department for Business, Energy and Industrial Strategy",The Coal Authority,19/10/2023,CY - Non-coal Minewater - Additions,DEFRA LEP Funding,Aecom Infrastructure & Env,165393,"4,519.46"
"Department for Business, Energy and Industrial Strategy",The Coal Authority,19/10/2023,CY - Non-coal Minewater - Additions,DEFRA LEP Funding,Aecom Infrastructure & Env,165394,"4,824.38"
"Department for Business, Energy and Industrial Strategy",The Coal Authority,20/09/2023,CY - Non-coal Minewater - Additions,DEFRA LEP Funding,AECOM Ltd,165569,"2,500.00"
"Department for Business, Energy and Industrial Strategy",The Coal Authority,20/09/2023,CY - Non-coal Minewater - Additions,DEFRA Metal Mine Programme,AECOM Ltd,165569,"2,500.00"
"Department for Business, Energy and Industrial Strategy",The Coal Authority,20/09/2023,CY - Non-coal Minewater - Additions,DEFRA Metal Mine Programme,AECOM Ltd,165569,"2,500.00"
"Department for Business, Energy and Industrial Strategy",The Coal Authority,20/09/2023,CY - Non-coal Minewater - Additions,DEFRA Metal Mine Programme,AECOM Ltd,165569,"2,500.00"
"Department for Business, Energy and Industrial Strategy",The Coal Authority,06/10/2023,CY - Non-coal Minewater - Additions,DEFRA LEP Funding, Northern Powergrid Northeast Limited,165774,240
"Department for Business, Energy and Industrial Strategy",The Coal Authority,26/10/2023,CY - Non-coal Minewater - Additions,DEFRA Metal Mine Programme,AECOM Ltd,165907,500
"Department for Business, Energy and Industrial Strategy",The Coal Authority,26/10/2023,CY - Non-coal Minewater - Additions,DEFRA Metal Mine Programme,AECOM Ltd,165907,500
"Department for Business, Energy and Industrial Strategy",The Coal Authority,26/10/2023,CY - Non-coal Minewater - Additions,DEFRA Metal Mine Programme,AECOM Ltd,165907,500
"Department for Business, Energy and Industrial Strategy",The Coal Authority,26/10/2023,CY - Non-coal Minewater - Additions,DEFRA Metal Mine Programme,AECOM Ltd,165907,"2,000.00"
"Department for Business, Energy and Industrial Strategy",The Coal Authority,26/10/2023,CY - Non-coal Minewater - Additions,DEFRA Metal Mine Programme,AECOM Ltd,165908,500
"Department for Business, Energy and Industrial Strategy",The Coal Authority,26/10/2023,CY - Non-coal Minewater - Additions,DEFRA Metal Mine Programme,AECOM Ltd,165908,500
"Department for Business, Energy and Industrial Strategy",The Coal Authority,26/10/2023,CY - Non-coal Minewater - Additions,DEFRA Metal Mine Programme,AECOM Ltd,165908,500
"Department for Business, Energy and Industrial Strategy",The Coal Authority,26/10/2023,CY - Non-coal Minewater - Additions,DEFRA Metal Mine Programme,AECOM Ltd,165908,"2,000.00"
"Department for Business, Energy and Industrial Strategy",The Coal Authority,26/10/2023,CY - Non-coal Minewater - Additions,DEFRA Metal Mine Programme,WSP UK Ltd,165972,105.71
"Department for Business, Energy and Industrial Strategy",The Coal Authority,23/10/2023,CY - Non-coal Minewater - Additions,DEFRA LEP Funding,Wear Rivers Trust,166059,"6,803.16"
"Department for Business, Energy and Industrial Strategy",The Coal Authority,25/10/2023,CY - Non-coal Minewater - Additions,DEFRA LEP Funding,Turner and Townsend Project Management Ltd.,166102,"3,698.40"
"Department for Business, Energy and Industrial Strategy",The Coal Authority,09/10/2023,CY - Plant & Machinery - Additions,ENV - Mine Water Operations,Severn Trent Serv Ops Uk Ltd,165257,"1,511.25"
"Department for Business, Energy and Industrial Strategy",The Coal Authority,09/10/2023,CY - Plant & Machinery - Additions,ENV - Mine Water Operations,Severn Trent Serv Ops Uk Ltd,165257,"12,263.48"
"Department for Business, Energy and Industrial Strategy",The Coal Authority,31/03/2023,CY - Subsidence Pumping - Additions,ENV - Projects & Delivery,Danvm Drainage Commissioners,164563,"4,338.30"
"Department for Business, Energy and Industrial Strategy",The Coal Authority,31/03/2023,CY - Subsidence Pumping - Additions,ENV - Projects & Delivery,Danvm Drainage Commissioners,164563,"28,922.00"
"Department for Business, Energy and Industrial Strategy",The Coal Authority,23/10/2023,CY - Subsidence Pumping - Additions,ENV - Projects & Delivery,AECOM Ltd,165684,627.27
"Department for Business, Energy and Industrial Strategy",The Coal Authority,01/10/2023,eCommerce Commission Charges,Customer Services & Strategy,Worldpay Limited,164566,250.17
"Department for Business, Energy and Industrial Strategy",The Coal Authority,01/10/2023,eCommerce Commission Charges,DEV - Permissions,Worldpay Limited,165196,8.71
"Department for Business, Energy and Industrial Strategy",The Coal Authority,05/06/2023,Electricity Usage,Facilities,Edf Energy,164133,"17,236.26"
"Department for Business, Energy and Industrial Strategy",The Coal Authority,09/05/2023,Electricity Usage,Facilities,Edf Energy,164384,"18,706.41"
"Department for Business, Energy and Industrial Strategy",The Coal Authority,04/07/2023,Electricity Usage,Facilities,Edf Energy,164399,"18,201.46"
"Department for Business, Energy and Industrial Strategy",The Coal Authority,04/09/2023,Electricity Usage,Facilities,Edf Energy,164658,"17,853.77"
"Department for Business, Energy and Industrial Strategy",The Coal Authority,04/08/2023,Electricity Usage,Facilities,Edf Energy,164669,"17,990.84"
"Department for Business, Energy and Industrial Strategy",The Coal Authority,04/10/2023,Electricity Usage,Facilities,Edf Energy,165413,"17,217.79"
"Department for Business, Energy and Industrial Strategy",The Coal Authority,20/04/2023,Electricity Usage,Facilities,Edf Energy,165420,"12,160.94"
"Department for Business, Energy and Industrial Strategy",The Coal Authority,20/10/2023,Electricity Usage,Facilities,Edf Energy,165464,-662
"Department for Business, Energy and Industrial Strategy",The Coal Authority,17/07/2023,External Agency / Introduction Fees,DEV - Property Management,Government Procurement Card,165405,3
"Department for Business, Energy and Industrial Strategy",The Coal Authority,07/09/2023,External Agency / Introduction Fees,NRW Metal Mine Programme,Government Procurement Card,166122,3
"Department for Business, Energy and Industrial Strategy",The Coal Authority,07/09/2023,External Agency / Introduction Fees,NRW Metal Mine Programme,Government Procurement Card,166122,3
"Department for Business, Energy and Industrial Strategy",The Coal Authority,11/09/2023,External Agency / Introduction Fees,NRW Metal Mine Programme,Government Procurement Card,166122,3
"Department for Business, Energy and Industrial Strategy",The Coal Authority,15/08/2023,Fares - Public Transport,International,Staff Control Expenses,164127,5.5
"Department for Business, Energy and Industrial Strategy",The Coal Authority,21/08/2023,Fares - Public Transport,International,Staff Control Expenses,164127,3.5
"Department for Business, Energy and Industrial Strategy",The Coal Authority,05/09/2023,Fares - Public Transport,International,Staff Control Expenses,164127,3.5
"Department for Business, Energy and Industrial Strategy",The Coal Authority,12/09/2023,Fares - Public Transport,International,Staff Control Expenses,164127,5.5
"Department for Business, Energy and Industrial Strategy",The Coal Authority,17/09/2023,Fares - Public Transport,International,Staff Control Expenses,164127,193
"Department for Business, Energy and Industrial Strategy",The Coal Authority,18/09/2023,Fares - Public Transport,International,Staff Control Expenses,164127,2.7
"Department for Business, Energy and Industrial Strategy",The Coal Authority,21/09/2023,Fares - Public Transport,International,Staff Control Expenses,164127,5.5
"Department for Business, Energy and Industrial Strategy",The Coal Authority,27/09/2023,Fares - Public Transport,Community Response,Staff Control Expenses,164127,5.5
"Department for Business, Energy and Industrial Strategy",The Coal Authority,30/09/2023,Fares - Public Transport,Customer Services & Strategy,Ace Of Mansfield Ltd,164567,45.76
"Department for Business, Energy and Industrial Strategy",The Coal Authority,27/09/2023,Fares - Public Transport,Board,Staff Control Expenses,164713,2
"Department for Business, Energy and Industrial Strategy",The Coal Authority,27/09/2023,Fares - Public Transport,Customer Services & Strategy,Staff Control Expenses,164713,8
"Department for Business, Energy and Industrial Strategy",The Coal Authority,28/09/2023,Fares - Public Transport,Board,Staff Control Expenses,164713,2
"Department for Business, Energy and Industrial Strategy",The Coal Authority,30/08/2023,Fares - Public Transport,DEV - Mine Heat Licensing,Government Procurement Card,165404,12.94
"Department for Business, Energy and Industrial Strategy",The Coal Authority,23/07/2023,Fares - Public Transport,DIG - Service & Assurance,Government Procurement Card,165405,16.2
"Department for Business, Energy and Industrial Strategy",The Coal Authority,12/09/2023,Fares - Public Transport,PS&S - General Claims,Government Procurement Card,165406,3.5
"Department for Business, Energy and Industrial Strategy",The Coal Authority,13/09/2023,Fares - Public Transport,PS&S - General Claims,Government Procurement Card,165406,8
"Department for Business, Energy and Industrial Strategy",The Coal Authority,14/09/2023,Fares - Public Transport,PS&S - General Claims,Government Procurement Card,165406,8
"Department for Business, Energy and Industrial Strategy",The Coal Authority,15/09/2023,Fares - Public Transport,PS&S - General Claims,Government Procurement Card,165406,8
"Department for Business, Energy and Industrial Strategy",The Coal Authority,25/09/2023,Fares - Public Transport,Governance & Risk,Government Procurement Card,165406,72
"Department for Business, Energy and Industrial Strategy",The Coal Authority,27/09/2023,Fares - Public Transport,Governance & Risk,Government Procurement Card,165406,75
"Department for Business, Energy and Industrial Strategy",The Coal Authority,27/09/2023,Fares - Public Transport,Governance & Risk,Government Procurement Card,165406,-43.5
"Department for Business, Energy and Industrial Strategy",The Coal Authority,06/09/2023,Fares - Public Transport,Heat & By-Product Innovation,Government Procurement Card,166122,4.6
"Department for Business, Energy and Industrial Strategy",The Coal Authority,12/09/2023,Fares - Public Transport,Heat & By-Product Innovation,Government Procurement Card,166122,6.1
"Department for Business, Energy and Industrial Strategy",The Coal Authority,12/09/2023,Fares - Public Transport,Heat & By-Product Innovation,Government Procurement Card,166122,5.2
"Department for Business, Energy and Industrial Strategy",The Coal Authority,30/09/2023,Fares - Rail,Finance,Corporate Travel Management North,164823,"6,956.55"
"Department for Business, Energy and Industrial Strategy",The Coal Authority,10/10/2023,Fares - Rail,ENV - Projects & Delivery,Staff Control Expenses,165225,21.4
"Department for Business, Energy and Industrial Strategy",The Coal Authority,12/09/2023,Fares - Rail,Innovation By-Product & Services Delivery,Government Procurement Card,165406,4.1
"Department for Business, Energy and Industrial Strategy",The Coal Authority,19/09/2023,Fares - Rail,PS&S - General Claims,Government Procurement Card,165406,3.6
"Department for Business, Energy and Industrial Strategy",The Coal Authority,19/09/2023,Fares - Rail,PS&S - General Claims,Government Procurement Card,165406,5.2
"Department for Business, Energy and Industrial Strategy",The Coal Authority,19/09/2023,Fares - Rail,PS&S - General Claims,Government Procurement Card,166122,3.6
"Department for Business, Energy and Industrial Strategy",The Coal Authority,14/09/2023,Fuel (Vehicle),ENV - Mine Water Operations,Staff Control Expenses,164127,58.32
"Department for Business, Energy and Industrial Strategy",The Coal Authority,14/09/2023,Fuel (Vehicle),ENV - Mine Water Operations,Staff Control Expenses,164127,25.34
"Department for Business, Energy and Industrial Strategy",The Coal Authority,28/09/2023,Fuel (Vehicle),ENV - Mine Water Operations,Staff Control Expenses,164127,51.42
"Department for Business, Energy and Industrial Strategy",The Coal Authority,29/09/2023,Fuel (Vehicle),ENV - Mine Water Operations,Staff Control Expenses,164127,35.34
"Department for Business, Energy and Industrial Strategy",The Coal Authority,27/09/2023,Fuel (Vehicle),PS&S - General Claims,Allstar Business Solutions Ltd,164542,9.5
"Department for Business, Energy and Industrial Strategy",The Coal Authority,27/09/2023,Fuel (Vehicle),PS&S - General Claims,Allstar Business Solutions Ltd,164542,49.34
"Department for Business, Energy and Industrial Strategy",The Coal Authority,27/09/2023,Fuel (Vehicle),PS&S - General Claims,Allstar Business Solutions Ltd,164542,25
"Department for Business, Energy and Industrial Strategy",The Coal Authority,27/09/2023,Fuel (Vehicle),PS&S - General Claims,Allstar Business Solutions Ltd,164542,48.42
"Department for Business, Energy and Industrial Strategy",The Coal Authority,27/09/2023,Fuel (Vehicle),PS&S - General Claims,Allstar Business Solutions Ltd,164542,42.34
"Department for Business, Energy and Industrial Strategy",The Coal Authority,27/09/2023,Fuel (Vehicle),PS&S - General Claims,Allstar Business Solutions Ltd,164542,56.18
"Department for Business, Energy and Industrial Strategy",The Coal Authority,27/09/2023,Fuel (Vehicle),Tips Response,Allstar Business Solutions Ltd,164542,45.2
"Department for Business, Energy and Industrial Strategy",The Coal Authority,27/09/2023,Fuel (Vehicle),Facilities,Allstar Business Solutions Ltd,164543,53.57
"Department for Business, Energy and Industrial Strategy",The Coal Authority,27/09/2023,Fuel (Vehicle),Facilities,Allstar Business Solutions Ltd,164543,73.94
"Department for Business, Energy and Industrial Strategy",The Coal Authority,27/09/2023,Fuel (Vehicle),Facilities,Allstar Business Solutions Ltd,164543,17.35
"Department for Business, Energy and Industrial Strategy",The Coal Authority,27/09/2023,Fuel (Vehicle),Facilities,Allstar Business Solutions Ltd,164543,89.62
"Department for Business, Energy and Industrial Strategy",The Coal Authority,27/09/2023,Fuel (Vehicle),Facilities,Allstar Business Solutions Ltd,164543,9.5
"Department for Business, Energy and Industrial Strategy",The Coal Authority,07/09/2023,Fuel (Vehicle),Tip Management Services,Staff Control Expenses,164713,68.19
"Department for Business, Energy and Industrial Strategy",The Coal Authority,14/09/2023,Fuel (Vehicle),Tip Management Services,Staff Control Expenses,164713,50.01
"Department for Business, Energy and Industrial Strategy",The Coal Authority,02/10/2023,Fuel (Vehicle),Tip Management Services,Staff Control Expenses,164713,50
"Department for Business, Energy and Industrial Strategy",The Coal Authority,27/09/2023,Fuel (Vehicle),ENV - Mine Water Operations,Allstar Business Solutions Ltd,164900,84.19
"Department for Business, Energy and Industrial Strategy",The Coal Authority,27/09/2023,Fuel (Vehicle),ENV - Projects & Delivery,Allstar Business Solutions Ltd,164900,51.28
"Department for Business, Energy and Industrial Strategy",The Coal Authority,06/09/2023,Fuel (Vehicle),ENV - Mine Water Operations,Allstar Business Solutions Ltd,164959,50.58
"Department for Business, Energy and Industrial Strategy",The Coal Authority,13/09/2023,Fuel (Vehicle),ENV - Mine Water Operations,Allstar Business Solutions Ltd,164960,93.71
"Department for Business, Energy and Industrial Strategy",The Coal Authority,11/10/2023,Fuel (Vehicle),PS&S - General Claims,Allstar Business Solutions Ltd,165027,25
"Department for Business, Energy and Industrial Strategy",The Coal Authority,11/10/2023,Fuel (Vehicle),PS&S - General Claims,Allstar Business Solutions Ltd,165027,41.28
"Department for Business, Energy and Industrial Strategy",The Coal Authority,11/10/2023,Fuel (Vehicle),PS&S - General Claims,Allstar Business Solutions Ltd,165027,11.4
"Department for Business, Energy and Industrial Strategy",The Coal Authority,11/10/2023,Fuel (Vehicle),PS&S - General Claims,Allstar Business Solutions Ltd,165027,53.73
"Department for Business, Energy and Industrial Strategy",The Coal Authority,11/10/2023,Fuel (Vehicle),PS&S - General Claims,Allstar Business Solutions Ltd,165027,5.58
"Department for Business, Energy and Industrial Strategy",The Coal Authority,11/10/2023,Fuel (Vehicle),PS&S - General Claims,Allstar Business Solutions Ltd,165027,48.22
"Department for Business, Energy and Industrial Strategy",The Coal Authority,11/10/2023,Fuel (Vehicle),PS&S - General Claims,Allstar Business Solutions Ltd,165027,53.8
"Department for Business, Energy and Industrial Strategy",The Coal Authority,11/10/2023,Fuel (Vehicle),Tips Response,Allstar Business Solutions Ltd,165027,41.92
"Department for Business, Energy and Industrial Strategy",The Coal Authority,04/10/2023,Fuel (Vehicle),PS&S - General Claims,Allstar Business Solutions Ltd,165030,69.79
"Department for Business, Energy and Industrial Strategy",The Coal Authority,04/10/2023,Fuel (Vehicle),PS&S - General Claims,Allstar Business Solutions Ltd,165030,46.08
"Department for Business, Energy and Industrial Strategy",The Coal Authority,04/10/2023,Fuel (Vehicle),PS&S - General Claims,Allstar Business Solutions Ltd,165030,46.18
"Department for Business, Energy and Industrial Strategy",The Coal Authority,04/10/2023,Fuel (Vehicle),PS&S - General Claims,Allstar Business Solutions Ltd,165030,19
"Department for Business, Energy and Industrial Strategy",The Coal Authority,04/10/2023,Fuel (Vehicle),PS&S - General Claims,Allstar Business Solutions Ltd,165030,40.71
"Department for Business, Energy and Industrial Strategy",The Coal Authority,04/10/2023,Fuel (Vehicle),PS&S - General Claims,Allstar Business Solutions Ltd,165030,54.88
"Department for Business, Energy and Industrial Strategy",The Coal Authority,04/10/2023,Fuel (Vehicle),PS&S - General Claims,Allstar Business Solutions Ltd,165030,109.01
"Department for Business, Energy and Industrial Strategy",The Coal Authority,04/10/2023,Fuel (Vehicle),Tips Response,Allstar Business Solutions Ltd,165030,39.25
"Department for Business, Energy and Industrial Strategy",The Coal Authority,04/10/2023,Fuel (Vehicle),Tips Response,Allstar Business Solutions Ltd,165030,87.37
"Department for Business, Energy and Industrial Strategy",The Coal Authority,11/10/2023,Fuel (Vehicle),Facilities,Allstar Business Solutions Ltd,165119,92.24
"Department for Business, Energy and Industrial Strategy",The Coal Authority,11/10/2023,Fuel (Vehicle),Facilities,Allstar Business Solutions Ltd,165119,44.02
"Department for Business, Energy and Industrial Strategy",The Coal Authority,11/10/2023,Fuel (Vehicle),Facilities,Allstar Business Solutions Ltd,165119,125.33
"Department for Business, Energy and Industrial Strategy",The Coal Authority,11/10/2023,Fuel (Vehicle),Facilities,Allstar Business Solutions Ltd,165119,48.4
"Department for Business, Energy and Industrial Strategy",The Coal Authority,11/10/2023,Fuel (Vehicle),Facilities,Allstar Business Solutions Ltd,165119,15.2
"Department for Business, Energy and Industrial Strategy",The Coal Authority,11/10/2023,Fuel (Vehicle),ENV - Projects & Delivery,Staff Control Expenses,165225,38.4
"Department for Business, Energy and Industrial Strategy",The Coal Authority,22/08/2023,Fuel (Vehicle),ENV - Mine Water Operations,Government Procurement Card,165404,25.84
"Department for Business, Energy and Industrial Strategy",The Coal Authority,10/07/2023,Fuel (Vehicle),ENV - Mine Water Operations,Government Procurement Card,165405,63.54
"Department for Business, Energy and Industrial Strategy",The Coal Authority,11/07/2023,Fuel (Vehicle),DEFRA Metal Mine Programme,Government Procurement Card,165405,65.95
"Department for Business, Energy and Industrial Strategy",The Coal Authority,12/07/2023,Fuel (Vehicle),DEFRA Metal Mine Programme,Government Procurement Card,165405,50.73
"Department for Business, Energy and Industrial Strategy",The Coal Authority,12/07/2023,Fuel (Vehicle),ENV - Mine Water Operations,Government Procurement Card,165405,63.06
"Department for Business, Energy and Industrial Strategy",The Coal Authority,14/07/2023,Fuel (Vehicle),ENV - Mine Water Operations,Government Procurement Card,165405,60.16
"Department for Business, Energy and Industrial Strategy",The Coal Authority,17/07/2023,Fuel (Vehicle),ENV - Mine Water Operations,Government Procurement Card,165405,42.61
"Department for Business, Energy and Industrial Strategy",The Coal Authority,20/07/2023,Fuel (Vehicle),DEV - Historic Property Liabilities,Government Procurement Card,165405,63.61
"Department for Business, Energy and Industrial Strategy",The Coal Authority,25/07/2023,Fuel (Vehicle),ENV - Mine Water Operations,Government Procurement Card,165405,93.29
"Department for Business, Energy and Industrial Strategy",The Coal Authority,27/07/2023,Fuel (Vehicle),ENV - Mine Water Operations,Government Procurement Card,165405,88.79
"Department for Business, Energy and Industrial Strategy",The Coal Authority,27/07/2023,Fuel (Vehicle),ENV - Mine Water Operations,Government Procurement Card,165405,59.25
"Department for Business, Energy and Industrial Strategy",The Coal Authority,01/08/2023,Fuel (Vehicle),ENV - Mine Water Operations,Government Procurement Card,165405,72.07
"Department for Business, Energy and Industrial Strategy",The Coal Authority,01/08/2023,Fuel (Vehicle),ENV - Mine Water Operations,Government Procurement Card,165405,102.01
"Department for Business, Energy and Industrial Strategy",The Coal Authority,31/08/2023,Fuel (Vehicle),NRW Metal Mine Programme,Government Procurement Card,165406,18.04
"Department for Business, Energy and Industrial Strategy",The Coal Authority,31/08/2023,Fuel (Vehicle),PS&S - General Claims,Government Procurement Card,165406,54.34
"Department for Business, Energy and Industrial Strategy",The Coal Authority,03/09/2023,Fuel (Vehicle),DEFRA Metal Mine Programme,Government Procurement Card,165406,73.75
"Department for Business, Energy and Industrial Strategy",The Coal Authority,05/09/2023,Fuel (Vehicle),ENV - Mine Water Operations,Government Procurement Card,165406,70.92
"Department for Business, Energy and Industrial Strategy",The Coal Authority,06/09/2023,Fuel (Vehicle),DEFRA LEP Funding,Government Procurement Card,165406,42.33
"Department for Business, Energy and Industrial Strategy",The Coal Authority,07/09/2023,Fuel (Vehicle),ENV - Mine Water Operations,Government Procurement Card,165406,62.5
"Department for Business, Energy and Industrial Strategy",The Coal Authority,10/09/2023,Fuel (Vehicle),ENV - Mine Water Operations,Government Procurement Card,165406,46.96
"Department for Business, Energy and Industrial Strategy",The Coal Authority,11/09/2023,Fuel (Vehicle),DEFRA Metal Mine Programme,Government Procurement Card,165406,56.25
"Department for Business, Energy and Industrial Strategy",The Coal Authority,11/09/2023,Fuel (Vehicle),DEFRA Metal Mine Programme,Government Procurement Card,165406,49.26
"Department for Business, Energy and Industrial Strategy",The Coal Authority,11/09/2023,Fuel (Vehicle),NRW Metal Mine Programme,Government Procurement Card,165406,28.64
"Department for Business, Energy and Industrial Strategy",The Coal Authority,12/09/2023,Fuel (Vehicle),DEFRA Metal Mine Programme,Government Procurement Card,165406,18.2
"Department for Business, Energy and Industrial Strategy",The Coal Authority,12/09/2023,Fuel (Vehicle),ENV - Mine Water Operations,Government Procurement Card,165406,63.97
"Department for Business, Energy and Industrial Strategy",The Coal Authority,12/09/2023,Fuel (Vehicle),NRW Metal Mine Programme,Government Procurement Card,165406,20.82
"Department for Business, Energy and Industrial Strategy",The Coal Authority,13/09/2023,Fuel (Vehicle),ENV - Mine Water Operations,Government Procurement Card,165406,64.68
"Department for Business, Energy and Industrial Strategy",The Coal Authority,14/09/2023,Fuel (Vehicle),ENV - Mine Water Operations,Government Procurement Card,165406,41.68
"Department for Business, Energy and Industrial Strategy",The Coal Authority,18/09/2023,Fuel (Vehicle),Innovation By-Product & Services Delivery,Government Procurement Card,165406,32.71
"Department for Business, Energy and Industrial Strategy",The Coal Authority,19/09/2023,Fuel (Vehicle),PS&S - General Claims,Government Procurement Card,165406,36.28
"Department for Business, Energy and Industrial Strategy",The Coal Authority,20/09/2023,Fuel (Vehicle),Innovation By-Product & Services Delivery,Government Procurement Card,165406,51.89
"Department for Business, Energy and Industrial Strategy",The Coal Authority,20/09/2023,Fuel (Vehicle),NRW Metal Mine Programme,Government Procurement Card,165406,11.65
"Department for Business, Energy and Industrial Strategy",The Coal Authority,22/09/2023,Fuel (Vehicle),DEFRA LEP Funding,Government Procurement Card,165406,50.17
"Department for Business, Energy and Industrial Strategy",The Coal Authority,22/09/2023,Fuel (Vehicle),ENV - Mine Water Operations,Government Procurement Card,165406,81.01
"Department for Business, Energy and Industrial Strategy",The Coal Authority,22/09/2023,Fuel (Vehicle),ENV - Mine Water Operations,Government Procurement Card,165406,21.68
"Department for Business, Energy and Industrial Strategy",The Coal Authority,24/09/2023,Fuel (Vehicle),PS&S - General Claims,Government Procurement Card,165406,45.12
"Department for Business, Energy and Industrial Strategy",The Coal Authority,25/09/2023,Fuel (Vehicle),ENV - Mine Water Operations,Government Procurement Card,165406,50.95
"Department for Business, Energy and Industrial Strategy",The Coal Authority,25/09/2023,Fuel (Vehicle),PS&S - General Claims,Government Procurement Card,165406,53.28
"Department for Business, Energy and Industrial Strategy",The Coal Authority,25/09/2023,Fuel (Vehicle),PS&S - General Claims,Government Procurement Card,165406,53.46
"Department for Business, Energy and Industrial Strategy",The Coal Authority,26/09/2023,Fuel (Vehicle),DEFRA Metal Mine Programme,Government Procurement Card,165406,23.6
"Department for Business, Energy and Industrial Strategy",The Coal Authority,26/09/2023,Fuel (Vehicle),PS&S - General Claims,Government Procurement Card,165406,52.22
"Department for Business, Energy and Industrial Strategy",The Coal Authority,27/09/2023,Fuel (Vehicle),ENV - Mine Water Operations,Government Procurement Card,165406,59.42
"Department for Business, Energy and Industrial Strategy",The Coal Authority,28/09/2023,Fuel (Vehicle),ENV - Mine Water Operations,Government Procurement Card,165406,80.21
"Department for Business, Energy and Industrial Strategy",The Coal Authority,28/09/2023,Fuel (Vehicle),ENV - Mine Water Operations,Government Procurement Card,165406,53.33
"Department for Business, Energy and Industrial Strategy",The Coal Authority,29/09/2023,Fuel (Vehicle),ENV - Mine Water Operations,Government Procurement Card,165406,20.83
"Department for Business, Energy and Industrial Strategy",The Coal Authority,30/09/2023,Fuel (Vehicle),PS&S - General Claims,Government Procurement Card,165406,43.95
"Department for Business, Energy and Industrial Strategy",The Coal Authority,02/10/2023,Fuel (Vehicle),ENV - Mine Water Operations,Government Procurement Card,165406,73.35
"Department for Business, Energy and Industrial Strategy",The Coal Authority,02/10/2023,Fuel (Vehicle),ENV - Mine Water Operations,Government Procurement Card,165406,16.5
"Department for Business, Energy and Industrial Strategy",The Coal Authority,11/10/2023,Fuel (Vehicle),ENV - Projects & Delivery,Allstar Business Solutions Ltd,165434,19.88
"Department for Business, Energy and Industrial Strategy",The Coal Authority,04/10/2023,Fuel (Vehicle),Facilities,Allstar Business Solutions Ltd,165505,8.46
"Department for Business, Energy and Industrial Strategy",The Coal Authority,04/10/2023,Fuel (Vehicle),Facilities,Allstar Business Solutions Ltd,165505,74.21
"Department for Business, Energy and Industrial Strategy",The Coal Authority,04/10/2023,Fuel (Vehicle),Facilities,Allstar Business Solutions Ltd,165505,30
"Department for Business, Energy and Industrial Strategy",The Coal Authority,04/10/2023,Fuel (Vehicle),Facilities,Allstar Business Solutions Ltd,165505,82.96
"Department for Business, Energy and Industrial Strategy",The Coal Authority,04/10/2023,Fuel (Vehicle),Facilities,Allstar Business Solutions Ltd,165505,9.5
"Department for Business, Energy and Industrial Strategy",The Coal Authority,18/10/2023,Fuel (Vehicle),Facilities,Allstar Business Solutions Ltd,165555,58.85
"Department for Business, Energy and Industrial Strategy",The Coal Authority,18/10/2023,Fuel (Vehicle),Facilities,Allstar Business Solutions Ltd,165555,87.98
"Department for Business, Energy and Industrial Strategy",The Coal Authority,18/10/2023,Fuel (Vehicle),Facilities,Allstar Business Solutions Ltd,165555,57.62
"Department for Business, Energy and Industrial Strategy",The Coal Authority,18/10/2023,Fuel (Vehicle),Facilities,Allstar Business Solutions Ltd,165555,9.5
"Department for Business, Energy and Industrial Strategy",The Coal Authority,18/10/2023,Fuel (Vehicle),PS&S - General Claims,Allstar Business Solutions Ltd,165573,137.21
"Department for Business, Energy and Industrial Strategy",The Coal Authority,18/10/2023,Fuel (Vehicle),PS&S - General Claims,Allstar Business Solutions Ltd,165573,77.78
"Department for Business, Energy and Industrial Strategy",The Coal Authority,18/10/2023,Fuel (Vehicle),PS&S - General Claims,Allstar Business Solutions Ltd,165573,60.33
"Department for Business, Energy and Industrial Strategy",The Coal Authority,18/10/2023,Fuel (Vehicle),PS&S - General Claims,Allstar Business Solutions Ltd,165573,39.18
"Department for Business, Energy and Industrial Strategy",The Coal Authority,18/10/2023,Fuel (Vehicle),PS&S - General Claims,Allstar Business Solutions Ltd,165573,89.95
"Department for Business, Energy and Industrial Strategy",The Coal Authority,18/10/2023,Fuel (Vehicle),PS&S - General Claims,Allstar Business Solutions Ltd,165573,69.02
"Department for Business, Energy and Industrial Strategy",The Coal Authority,18/10/2023,Fuel (Vehicle),PS&S - General Claims,Allstar Business Solutions Ltd,165573,101.52
"Department for Business, Energy and Industrial Strategy",The Coal Authority,18/10/2023,Fuel (Vehicle),PS&S - General Claims,Allstar Business Solutions Ltd,165573,30.4
"Department for Business, Energy and Industrial Strategy",The Coal Authority,18/10/2023,Fuel (Vehicle),Tips Response,Allstar Business Solutions Ltd,165573,41.36
"Department for Business, Energy and Industrial Strategy",The Coal Authority,18/10/2023,Fuel (Vehicle),Tips Response,Allstar Business Solutions Ltd,165573,71.98
"Department for Business, Energy and Industrial Strategy",The Coal Authority,18/10/2023,Fuel (Vehicle),Tips Response,Allstar Business Solutions Ltd,165573,41.21
"Department for Business, Energy and Industrial Strategy",The Coal Authority,06/09/2023,Fuel (Vehicle),Customer Services & Strategy,Staff Control Expenses,165667,16.68
"Department for Business, Energy and Industrial Strategy",The Coal Authority,06/09/2023,Fuel (Vehicle),Customer Services & Strategy,Staff Control Expenses,165667,8.33
"Department for Business, Energy and Industrial Strategy",The Coal Authority,11/10/2023,Fuel (Vehicle),ENV - Technical,Staff Control Expenses,165667,32.21
"Department for Business, Energy and Industrial Strategy",The Coal Authority,11/10/2023,Fuel (Vehicle),ENV - Technical,Staff Control Expenses,165667,18.47
"Department for Business, Energy and Industrial Strategy",The Coal Authority,17/10/2023,Fuel (Vehicle),ENV - Projects & Delivery,Staff Control Expenses,165667,47.02
"Department for Business, Energy and Industrial Strategy",The Coal Authority,19/10/2023,Fuel (Vehicle),ENV - Mine Water Operations,Staff Control Expenses,165667,38.78
"Department for Business, Energy and Industrial Strategy",The Coal Authority,04/10/2023,Fuel (Vehicle),ENV - Mine Water Operations,Allstar Business Solutions Ltd,165872,48.23
"Department for Business, Energy and Industrial Strategy",The Coal Authority,18/10/2023,Fuel (Vehicle),ENV - Mine Water Operations,Allstar Business Solutions Ltd,165873,41.06
"Department for Business, Energy and Industrial Strategy",The Coal Authority,25/10/2023,Fuel (Vehicle),Facilities,Allstar Business Solutions Ltd,165888,37.53
"Department for Business, Energy and Industrial Strategy",The Coal Authority,25/10/2023,Fuel (Vehicle),Facilities,Allstar Business Solutions Ltd,165888,67.58
"Department for Business, Energy and Industrial Strategy",The Coal Authority,25/10/2023,Fuel (Vehicle),Facilities,Allstar Business Solutions Ltd,165888,48.19
"Department for Business, Energy and Industrial Strategy",The Coal Authority,25/10/2023,Fuel (Vehicle),Facilities,Allstar Business Solutions Ltd,165888,38.98
"Department for Business, Energy and Industrial Strategy",The Coal Authority,25/10/2023,Fuel (Vehicle),Facilities,Allstar Business Solutions Ltd,165888,7.6
"Department for Business, Energy and Industrial Strategy",The Coal Authority,31/08/2023,Fuel (Vehicle),DEFRA Metal Mine Programme,Government Procurement Card,166122,48.01
"Department for Business, Energy and Industrial Strategy",The Coal Authority,04/09/2023,Fuel (Vehicle),DEFRA Metal Mine Programme,Government Procurement Card,166122,49.14
"Department for Business, Energy and Industrial Strategy",The Coal Authority,06/09/2023,Fuel (Vehicle),DEFRA Metal Mine Programme,Government Procurement Card,166122,51.51
"Department for Business, Energy and Industrial Strategy",The Coal Authority,06/09/2023,Fuel (Vehicle),Engineering,Government Procurement Card,166122,25
"Department for Business, Energy and Industrial Strategy",The Coal Authority,08/09/2023,Fuel (Vehicle),DEFRA Metal Mine Programme,Government Procurement Card,166122,51.13
"Department for Business, Energy and Industrial Strategy",The Coal Authority,14/09/2023,Fuel (Vehicle),NRW Metal Mine Programme,Government Procurement Card,166122,24.1
"Department for Business, Energy and Industrial Strategy",The Coal Authority,16/09/2023,Fuel (Vehicle),NRW Metal Mine Programme,Government Procurement Card,166122,21.39
"Department for Business, Energy and Industrial Strategy",The Coal Authority,22/09/2023,Fuel (Vehicle),DEFRA Metal Mine Programme,Government Procurement Card,166122,52.62
"Department for Business, Energy and Industrial Strategy",The Coal Authority,22/09/2023,Fuel (Vehicle),DEFRA Metal Mine Programme,Government Procurement Card,166122,32.75
"Department for Business, Energy and Industrial Strategy",The Coal Authority,25/09/2023,Hardware Equipment & Support,Engineering,Government Procurement Card,165406,66.59
"Department for Business, Energy and Industrial Strategy",The Coal Authority,18/04/2023,Hardware Equipment & Support,DIG - Service & Assurance,Government Procurement Card,165861,125
"Department for Business, Energy and Industrial Strategy",The Coal Authority,18/04/2023,Hardware Equipment & Support,DIG - Service & Assurance,Government Procurement Card,165861,125
"Department for Business, Energy and Industrial Strategy",The Coal Authority,21/04/2023,Hardware Equipment & Support,DIG - Service & Assurance,Government Procurement Card,165861,196.17
"Department for Business, Energy and Industrial Strategy",The Coal Authority,07/08/2023,Hardware Licenses,DIG - Technical Delivery,Government Procurement Card,165856,191.31
"Department for Business, Energy and Industrial Strategy",The Coal Authority,30/09/2023,Hotel & Accommodation,Finance,Corporate Travel Management North,164823,"11,007.95"
"Department for Business, Energy and Industrial Strategy",The Coal Authority,10/07/2023,Hotel & Accommodation,ENV - Mine Water Operations,Government Procurement Card,165405,98
"Department for Business, Energy and Industrial Strategy",The Coal Authority,05/09/2023,Hotel & Accommodation,DEFRA Metal Mine Programme,Government Procurement Card,166122,6.58
"Department for Business, Energy and Industrial Strategy",The Coal Authority,11/09/2023,Incidentals,Engineering,Staff Control Expenses,164127,4.42
"Department for Business, Energy and Industrial Strategy",The Coal Authority,14/09/2023,Incidentals,ENV - Mine Water Operations,Staff Control Expenses,164127,7.92
"Department for Business, Energy and Industrial Strategy",The Coal Authority,21/09/2023,Incidentals,Corporate Programme Office,Staff Control Expenses,164127,11.67
"Department for Business, Energy and Industrial Strategy",The Coal Authority,25/09/2023,Incidentals,Engineering,Staff Control Expenses,164127,4.42
"Department for Business, Energy and Industrial Strategy",The Coal Authority,27/09/2023,Incidentals,ENV - Mine Water Operations,Staff Control Expenses,164127,2.2
"Department for Business, Energy and Industrial Strategy",The Coal Authority,01/08/2023,Incidentals,Customer Services & Strategy,Security Plus Limited,164570,16.61
"Department for Business, Energy and Industrial Strategy",The Coal Authority,13/09/2023,Incidentals,Heat & By-Product Innovation,Staff Control Expenses,164713,12
"Department for Business, Energy and Industrial Strategy",The Coal Authority,29/09/2023,Incidentals,Innovation By-Product & Services Delivery,Staff Control Expenses,164713,4.4
"Department for Business, Energy and Industrial Strategy",The Coal Authority,02/10/2023,Incidentals,Engineering,Staff Control Expenses,164713,4.42
"Department for Business, Energy and Industrial Strategy",The Coal Authority,03/10/2023,Incidentals,Heat & By-Product Innovation,Staff Control Expenses,164713,8
"Department for Business, Energy and Industrial Strategy",The Coal Authority,19/09/2023,Incidentals,PS&S - General Claims,Staff Control Expenses,165225,1.33
"Department for Business, Energy and Industrial Strategy",The Coal Authority,20/09/2023,Incidentals,PS&S - General Claims,Staff Control Expenses,165225,8.5
"Department for Business, Energy and Industrial Strategy",The Coal Authority,09/10/2023,Incidentals,Engineering,Staff Control Expenses,165225,4.42
"Department for Business, Energy and Industrial Strategy",The Coal Authority,10/10/2023,Incidentals,People & Organisational Development,Staff Control Expenses,165225,17.95
"Department for Business, Energy and Industrial Strategy",The Coal Authority,13/10/2023,Incidentals,PS&S - General Claims,Staff Control Expenses,165225,999
"Department for Business, Energy and Industrial Strategy",The Coal Authority,16/10/2023,Incidentals,Mining Reports,Burrell Jenkins Solicitors,165350,48.41
"Department for Business, Energy and Industrial Strategy",The Coal Authority,10/08/2023,Incidentals,Incident & Emergency Response,Government Procurement Card,165404,9.5
"Department for Business, Energy and Industrial Strategy",The Coal Authority,20/07/2023,Incidentals,DEV - Historic Property Liabilities,Government Procurement Card,165405,5
"Department for Business, Energy and Industrial Strategy",The Coal Authority,01/09/2023,Incidentals,By-Products - Ochre,Government Procurement Card,165406,2.2
"Department for Business, Energy and Industrial Strategy",The Coal Authority,01/09/2023,Incidentals,By-Products - Ochre,Government Procurement Card,165406,2.2
"Department for Business, Energy and Industrial Strategy",The Coal Authority,01/09/2023,Incidentals,Customer Services & Strategy,Government Procurement Card,165406,424
"Department for Business, Energy and Industrial Strategy",The Coal Authority,03/09/2023,Incidentals,PS&S - General Claims,Government Procurement Card,165406,8
"Department for Business, Energy and Industrial Strategy",The Coal Authority,06/09/2023,Incidentals,PS&S - General Claims,Government Procurement Card,165406,18.33
"Department for Business, Energy and Industrial Strategy",The Coal Authority,07/09/2023,Incidentals,ENV - Salinity Programme,Government Procurement Card,165406,2.2
"Department for Business, Energy and Industrial Strategy",The Coal Authority,11/09/2023,Incidentals,Customer Services & Strategy,Government Procurement Card,165406,50
"Department for Business, Energy and Industrial Strategy",The Coal Authority,12/09/2023,Incidentals,Innovation By-Product & Services Delivery,Government Procurement Card,165406,12
"Department for Business, Energy and Industrial Strategy",The Coal Authority,12/09/2023,Incidentals,Innovation By-Product & Services Delivery,Government Procurement Card,165406,20
"Department for Business, Energy and Industrial Strategy",The Coal Authority,13/09/2023,Incidentals,NRW Metal Mine Programme,Government Procurement Card,165406,7.17
"Department for Business, Energy and Industrial Strategy",The Coal Authority,13/09/2023,Incidentals,NRW Metal Mine Programme,Government Procurement Card,165406,4.83
"Department for Business, Energy and Industrial Strategy",The Coal Authority,19/09/2023,Incidentals,Innovation By-Product & Services Delivery,Government Procurement Card,165406,2.2
"Department for Business, Energy and Industrial Strategy",The Coal Authority,19/09/2023,Incidentals,PS&S - General Claims,Government Procurement Card,165406,1.33
"Department for Business, Energy and Industrial Strategy",The Coal Authority,19/09/2023,Incidentals,PS&S - General Claims,Government Procurement Card,165406,6.5
"Department for Business, Energy and Industrial Strategy",The Coal Authority,19/09/2023,Incidentals,PS&S - General Claims,Government Procurement Card,165406,15
"Department for Business, Energy and Industrial Strategy",The Coal Authority,19/09/2023,Incidentals,PS&S - General Claims,Government Procurement Card,165406,1.33
"Department for Business, Energy and Industrial Strategy",The Coal Authority,20/09/2023,Incidentals,Community Response,Government Procurement Card,165406,16.63
"Department for Business, Energy and Industrial Strategy",The Coal Authority,20/09/2023,Incidentals,Innovation By-Product & Services Delivery,Government Procurement Card,165406,2.2
"Department for Business, Energy and Industrial Strategy",The Coal Authority,20/09/2023,Incidentals,PS&S - General Claims,Government Procurement Card,165406,8.5
"Department for Business, Energy and Industrial Strategy",The Coal Authority,20/09/2023,Incidentals,PS&S - General Claims,Government Procurement Card,165406,7.92
"Department for Business, Energy and Industrial Strategy",The Coal Authority,20/09/2023,Incidentals,PS&S - General Claims,Government Procurement Card,165406,7.73
"Department for Business, Energy and Industrial Strategy",The Coal Authority,20/09/2023,Incidentals,PS&S - Management,Government Procurement Card,165406,23.33
"Department for Business, Energy and Industrial Strategy",The Coal Authority,21/09/2023,Incidentals,PS&S - General Claims,Government Procurement Card,165406,29.53
"Department for Business, Energy and Industrial Strategy",The Coal Authority,22/09/2023,Incidentals,PS&S - General Claims,Government Procurement Card,165406,8.5
"Department for Business, Energy and Industrial Strategy",The Coal Authority,26/09/2023,Incidentals,Governance & Risk,Government Procurement Card,165406,13.25
"Department for Business, Energy and Industrial Strategy",The Coal Authority,27/09/2023,Incidentals,Innovation By-Product & Services Delivery,Government Procurement Card,165406,4
"Department for Business, Energy and Industrial Strategy",The Coal Authority,27/09/2023,Incidentals,PS&S - General Claims,Government Procurement Card,165406,15.25
"Department for Business, Energy and Industrial Strategy",The Coal Authority,28/09/2023,Incidentals,DEV - Property Management,Government Procurement Card,165406,24
"Department for Business, Energy and Industrial Strategy",The Coal Authority,28/09/2023,Incidentals,ENV - Mine Water Operations,Government Procurement Card,165406,2.2
"Department for Business, Energy and Industrial Strategy",The Coal Authority,28/09/2023,Incidentals,ENV - Mine Water Operations,Government Procurement Card,165406,2.2
"Department for Business, Energy and Industrial Strategy",The Coal Authority,28/09/2023,Incidentals,Executive,Government Procurement Card,165406,23.33
"Department for Business, Energy and Industrial Strategy",The Coal Authority,28/09/2023,Incidentals,Governance & Risk,Government Procurement Card,165406,1.67
"Department for Business, Energy and Industrial Strategy",The Coal Authority,28/09/2023,Incidentals,PS&S - General Claims,Government Procurement Card,165406,43.46
"Department for Business, Energy and Industrial Strategy",The Coal Authority,28/09/2023,Incidentals,PS&S - Management,Government Procurement Card,165406,23.33
"Department for Business, Energy and Industrial Strategy",The Coal Authority,16/03/2023,Incidentals,Legal & Governance,Government Procurement Card,165416,42
"Department for Business, Energy and Industrial Strategy",The Coal Authority,12/09/2023,Incidentals,DIG - GIS,Staff Control Expenses,165667,4.96
"Department for Business, Energy and Industrial Strategy",The Coal Authority,13/09/2023,Incidentals,DIG - GIS,Staff Control Expenses,165667,14.96
"Department for Business, Energy and Industrial Strategy",The Coal Authority,22/09/2023,Incidentals,DIG - GIS,Staff Control Expenses,165667,4.96
"Department for Business, Energy and Industrial Strategy",The Coal Authority,04/10/2023,Incidentals,Heat & By-Product Innovation,Staff Control Expenses,165667,2.2
"Department for Business, Energy and Industrial Strategy",The Coal Authority,04/10/2023,Incidentals,Innovation By-Product & Services Delivery,Staff Control Expenses,165667,4.4
"Department for Business, Energy and Industrial Strategy",The Coal Authority,16/10/2023,Incidentals,Engineering,Staff Control Expenses,165667,4.42
"Department for Business, Energy and Industrial Strategy",The Coal Authority,17/10/2023,Incidentals,Heat & By-Product Innovation,Staff Control Expenses,165667,8
"Department for Business, Energy and Industrial Strategy",The Coal Authority,19/10/2023,Incidentals,Engineering,Staff Control Expenses,166010,2.7
"Department for Business, Energy and Industrial Strategy",The Coal Authority,23/10/2023,Incidentals,Engineering,Staff Control Expenses,166010,4.42
"Department for Business, Energy and Industrial Strategy",The Coal Authority,24/10/2023,Incidentals,Engineering,Staff Control Expenses,166010,5
"Department for Business, Energy and Industrial Strategy",The Coal Authority,11/09/2023,Incidentals,Heat & By-Product Innovation,Government Procurement Card,166122,5
"Department for Business, Energy and Industrial Strategy",The Coal Authority,28/09/2023,Incidentals,Executive,Government Procurement Card,166122,13.25
"Department for Business, Energy and Industrial Strategy",The Coal Authority,28/09/2023,Incidentals,Executive,Government Procurement Card,166122,23.33
"Department for Business, Energy and Industrial Strategy",The Coal Authority,28/09/2023,Incidentals,Executive Assistants,Government Procurement Card,166122,15
"Department for Business, Energy and Industrial Strategy",The Coal Authority,28/09/2023,Incidentals,Executive Assistants,Government Procurement Card,166122,35
"Department for Business, Energy and Industrial Strategy",The Coal Authority,28/09/2023,Incidentals,PS&S - General Claims,Government Procurement Card,166122,7
"Department for Business, Energy and Industrial Strategy",The Coal Authority,03/10/2023,Innovation Costs,Heat & By-Product Innovation,S P Foods,164364,81.45
"Department for Business, Energy and Industrial Strategy",The Coal Authority,09/10/2023,Innovation Costs,Innovation By-Product & Services Delivery,Severn Trent Serv Ops Uk Ltd,165172,"61,966.54"
"Department for Business, Energy and Industrial Strategy",The Coal Authority,09/10/2023,Innovation Costs,Innovation By-Product & Services Delivery,Severn Trent Serv Ops Uk Ltd,165172,604.99
"Department for Business, Energy and Industrial Strategy",The Coal Authority,05/09/2023,Innovation Costs,Innovation By-Product & Services Delivery,Government Procurement Card,165406,21.17
"Department for Business, Energy and Industrial Strategy",The Coal Authority,09/10/2023,Internal Audit Fees,Finance,Gbs Re Treasury Votes Cash 1,165013,"15,492.00"
"Department for Business, Energy and Industrial Strategy",The Coal Authority,09/10/2023,Internal Audit Fees,Finance,Gbs Re Treasury Votes Cash 1,165013,200
"Department for Business, Energy and Industrial Strategy",The Coal Authority,28/09/2023,Legal - General,Legal & Governance,Browne Jacobson Llp Client Account,164670,"2,124.40"
"Department for Business, Energy and Industrial Strategy",The Coal Authority,28/09/2023,Legal - General,Legal & Governance,Browne Jacobson Llp Client Account,164671,"5,396.90"
"Department for Business, Energy and Industrial Strategy",The Coal Authority,28/09/2023,Legal - General,Legal & Governance,Browne Jacobson Llp Client Account,164672,"1,521.20"
"Department for Business, Energy and Industrial Strategy",The Coal Authority,25/09/2023,Legal - General,Legal & Governance,Browne Jacobson Llp Client Account,164673,"1,915.60"
"Department for Business, Energy and Industrial Strategy",The Coal Authority,19/09/2023,Legal - General,Legal & Governance,Browne Jacobson Llp Client Account,164893,422.4
"Department for Business, Energy and Industrial Strategy",The Coal Authority,20/09/2023,Legal - General,Legal & Governance,Browne Jacobson Llp Client Account,164894,578.4
"Department for Business, Energy and Industrial Strategy",The Coal Authority,20/09/2023,Legal - General,Legal & Governance,Browne Jacobson Llp Client Account,164895,354
"Department for Business, Energy and Industrial Strategy",The Coal Authority,20/09/2023,Legal - General,Legal & Governance,Browne Jacobson Llp Client Account,164896,"1,798.00"
"Department for Business, Energy and Industrial Strategy",The Coal Authority,19/09/2023,Legal - General,People & Organisational Development,Browne Jacobson Llp Client Account,164970,192
"Department for Business, Energy and Industrial Strategy",The Coal Authority,12/10/2023,Legal - General,Legal & Governance,Anderson Strathern,165133,6
"Department for Business, Energy and Industrial Strategy",The Coal Authority,12/10/2023,Legal - General,Legal & Governance,Anderson Strathern,165134,26
"Department for Business, Energy and Industrial Strategy",The Coal Authority,25/09/2023,Legal - General,Legal & Governance,Browne Jacobson Llp Client Account,165263,"8,300.00"
"Department for Business, Energy and Industrial Strategy",The Coal Authority,25/09/2023,Legal - General,Legal & Governance,Browne Jacobson Llp Client Account,165263,"5,584.07"
"Department for Business, Energy and Industrial Strategy",The Coal Authority,18/10/2023,Legal - General,Legal & Governance,Dla Piper Scotland Llp,165381,"11,833.40"
"Department for Business, Energy and Industrial Strategy",The Coal Authority,18/10/2023,Legal - General,Legal & Governance,Dla Piper Scotland Llp,165381,"4,000.00"
"Department for Business, Energy and Industrial Strategy",The Coal Authority,18/10/2023,Legal - General,Legal & Governance,Dla Piper Scotland Llp,165381,57.2
"Department for Business, Energy and Industrial Strategy",The Coal Authority,18/10/2023,Legal - General,Legal & Governance,Dla Piper Uk Llp,165475,22.54
"Department for Business, Energy and Industrial Strategy",The Coal Authority,18/10/2023,Legal - General,Legal & Governance,Dla Piper Uk Llp,165475,"6,734.39"
"Department for Business, Energy and Industrial Strategy",The Coal Authority,20/09/2023,Legal - General,Legal & Governance,Browne Jacobson Llp Client Account,165478,"4,454.70"
"Department for Business, Energy and Industrial Strategy",The Coal Authority,28/09/2023,Legal - General,Legal & Governance,Browne Jacobson Llp Client Account,165545,232
"Department for Business, Energy and Industrial Strategy",The Coal Authority,10/10/2023,Legal - General,PS&S - General Claims,Anderson Strathern,165798,"217,916.00"
"Department for Business, Energy and Industrial Strategy",The Coal Authority,19/10/2023,Legal - General,People & Organisational Development,Browne Jacobson Llp Client Account,166147,288
"Department for Business, Energy and Industrial Strategy",The Coal Authority,27/09/2023,Legal - Property Title Search,Legal & Governance,Land Registry,164229,87
"Department for Business, Energy and Industrial Strategy",The Coal Authority,22/09/2023,Legal - Property Title Search,Legal & Governance,Land Registry,164230,18
"Department for Business, Energy and Industrial Strategy",The Coal Authority,06/10/2023,Legal - Property Title Search,Legal & Governance,Land Registry,165056,33
"Department for Business, Energy and Industrial Strategy",The Coal Authority,05/10/2023,Legal - Property Title Search,Legal & Governance,Land Registry,165057,51
"Department for Business, Energy and Industrial Strategy",The Coal Authority,13/10/2023,Legal - Property Title Search,Legal & Governance,Land Registry,165553,48
"Department for Business, Energy and Industrial Strategy",The Coal Authority,16/10/2023,Legal - Property Title Search,Legal & Governance,Land Registry,165554,60
"Department for Business, Energy and Industrial Strategy",The Coal Authority,24/10/2023,Legal - Property Title Search,Legal & Governance,Land Registry,166190,57
"Department for Business, Energy and Industrial Strategy",The Coal Authority,20/10/2023,Legal - Property Title Search,Legal & Governance,Land Registry,166191,30
"Department for Business, Energy and Industrial Strategy",The Coal Authority,19/10/2023,Legal - Property Valuation Fees,DEV - Property Management,Lambert Smith Hampton,165446,"2,275.00"
"Department for Business, Energy and Industrial Strategy",The Coal Authority,16/10/2023,Membership Subscriptions,Legal & Governance,Information Commissioners Office,165277,"2,900.00"
"Department for Business, Energy and Industrial Strategy",The Coal Authority,03/09/2023,Membership Subscriptions,Innovation By-Product & Services Delivery,Government Procurement Card,166122,198.15
"Department for Business, Energy and Industrial Strategy",The Coal Authority,07/06/2023,Mileage Payments,Engineering,Staff Control Expenses,164127,11.48
"Department for Business, Energy and Industrial Strategy",The Coal Authority,07/06/2023,Mileage Payments,Engineering,Staff Control Expenses,164127,11.47
"Department for Business, Energy and Industrial Strategy",The Coal Authority,04/09/2023,Mileage Payments,PS&S - General Claims,Staff Control Expenses,164127,34.65
"Department for Business, Energy and Industrial Strategy",The Coal Authority,07/09/2023,Mileage Payments,ENV - Projects & Delivery,Staff Control Expenses,164127,26.1
"Department for Business, Energy and Industrial Strategy",The Coal Authority,07/09/2023,Mileage Payments,Tip Management Services,Staff Control Expenses,164127,13.05
"Department for Business, Energy and Industrial Strategy",The Coal Authority,07/09/2023,Mileage Payments,Tip Management Services,Staff Control Expenses,164127,13.17
"Department for Business, Energy and Industrial Strategy",The Coal Authority,11/09/2023,Mileage Payments,Engineering,Staff Control Expenses,164127,10.35
"Department for Business, Energy and Industrial Strategy",The Coal Authority,11/09/2023,Mileage Payments,Engineering,Staff Control Expenses,164127,10.35
"Department for Business, Energy and Industrial Strategy",The Coal Authority,13/09/2023,Mileage Payments,PS&S - General Claims,Staff Control Expenses,164127,16.75
"Department for Business, Energy and Industrial Strategy",The Coal Authority,13/09/2023,Mileage Payments,PS&S - General Claims,Staff Control Expenses,164127,3.26
"Department for Business, Energy and Industrial Strategy",The Coal Authority,13/09/2023,Mileage Payments,PS&S - General Claims,Staff Control Expenses,164127,18.71
"Department for Business, Energy and Industrial Strategy",The Coal Authority,13/09/2023,Mileage Payments,Tip Management Services,Staff Control Expenses,164127,6.63
"Department for Business, Energy and Industrial Strategy",The Coal Authority,13/09/2023,Mileage Payments,Tip Management Services,Staff Control Expenses,164127,6.58
"Department for Business, Energy and Industrial Strategy",The Coal Authority,14/09/2023,Mileage Payments,Tip Management Services,Staff Control Expenses,164127,11.63
"Department for Business, Energy and Industrial Strategy",The Coal Authority,14/09/2023,Mileage Payments,Tip Management Services,Staff Control Expenses,164127,11.54
"Department for Business, Energy and Industrial Strategy",The Coal Authority,20/09/2023,Mileage Payments,PS&S - General Claims,Staff Control Expenses,164127,23.04
"Department for Business, Energy and Industrial Strategy",The Coal Authority,20/09/2023,Mileage Payments,PS&S - General Claims,Staff Control Expenses,164127,23.81
"Department for Business, Energy and Industrial Strategy",The Coal Authority,21/09/2023,Mileage Payments,Corporate Programme Office,Staff Control Expenses,164127,14.4
"Department for Business, Energy and Industrial Strategy",The Coal Authority,21/09/2023,Mileage Payments,ENV - Technical,Staff Control Expenses,164127,1.88
"Department for Business, Energy and Industrial Strategy",The Coal Authority,21/09/2023,Mileage Payments,ENV - Technical,Staff Control Expenses,164127,1.59
"Department for Business, Energy and Industrial Strategy",The Coal Authority,21/09/2023,Mileage Payments,ENV - Technical,Staff Control Expenses,164127,0.45
"Department for Business, Energy and Industrial Strategy",The Coal Authority,21/09/2023,Mileage Payments,ENV - Technical,Staff Control Expenses,164127,1.42
"Department for Business, Energy and Industrial Strategy",The Coal Authority,21/09/2023,Mileage Payments,ENV - Technical,Staff Control Expenses,164127,2.85
"Department for Business, Energy and Industrial Strategy",The Coal Authority,21/09/2023,Mileage Payments,ENV - Technical,Staff Control Expenses,164127,13.95
"Department for Business, Energy and Industrial Strategy",The Coal Authority,21/09/2023,Mileage Payments,ENV - Technical,Staff Control Expenses,164127,13.95
"Department for Business, Energy and Industrial Strategy",The Coal Authority,21/09/2023,Mileage Payments,ENV - Technical,Staff Control Expenses,164127,2.27
"Department for Business, Energy and Industrial Strategy",The Coal Authority,21/09/2023,Mileage Payments,ENV - Technical,Staff Control Expenses,164127,1.69
"Department for Business, Energy and Industrial Strategy",The Coal Authority,21/09/2023,Mileage Payments,ENV - Technical,Staff Control Expenses,164127,1.43
"Department for Business, Energy and Industrial Strategy",The Coal Authority,22/09/2023,Mileage Payments,PS&S - General Claims,Staff Control Expenses,164127,36
"Department for Business, Energy and Industrial Strategy",The Coal Authority,22/09/2023,Mileage Payments,PS&S - General Claims,Staff Control Expenses,164127,5.6
"Department for Business, Energy and Industrial Strategy",The Coal Authority,25/09/2023,Mileage Payments,Engineering,Staff Control Expenses,164127,10.35
"Department for Business, Energy and Industrial Strategy",The Coal Authority,25/09/2023,Mileage Payments,Engineering,Staff Control Expenses,164127,10.35
"Department for Business, Energy and Industrial Strategy",The Coal Authority,26/09/2023,Mileage Payments,Engineering,Staff Control Expenses,164127,11.47
"Department for Business, Energy and Industrial Strategy",The Coal Authority,26/09/2023,Mileage Payments,Engineering,Staff Control Expenses,164127,11.48
"Department for Business, Energy and Industrial Strategy",The Coal Authority,28/09/2023,Mileage Payments,ENV - Salinity Programme,Staff Control Expenses,164127,3.12
"Department for Business, Energy and Industrial Strategy",The Coal Authority,28/09/2023,Mileage Payments,ENV - Salinity Programme,Staff Control Expenses,164127,4.89
"Department for Business, Energy and Industrial Strategy",The Coal Authority,28/09/2023,Mileage Payments,ENV - Salinity Programme,Staff Control Expenses,164127,7.49
"Department for Business, Energy and Industrial Strategy",The Coal Authority,28/09/2023,Mileage Payments,ENV - Salinity Programme,Staff Control Expenses,164127,1.78
"Department for Business, Energy and Industrial Strategy",The Coal Authority,28/09/2023,Mileage Payments,ENV - Salinity Programme,Staff Control Expenses,164127,2.59
"Department for Business, Energy and Industrial Strategy",The Coal Authority,28/09/2023,Mileage Payments,Tip Management Services,Staff Control Expenses,164127,4.62
"Department for Business, Energy and Industrial Strategy",The Coal Authority,28/09/2023,Mileage Payments,Tip Management Services,Staff Control Expenses,164127,4.55
"Department for Business, Energy and Industrial Strategy",The Coal Authority,11/09/2023,Mileage Payments,Heat & By-Product Innovation,Staff Control Expenses,164713,7.2
"Department for Business, Energy and Industrial Strategy",The Coal Authority,13/09/2023,Mileage Payments,Heat & By-Product Innovation,Staff Control Expenses,164713,7.2
"Department for Business, Energy and Industrial Strategy",The Coal Authority,13/09/2023,Mileage Payments,PS&S - General Claims,Staff Control Expenses,164713,10.8
"Department for Business, Energy and Industrial Strategy",The Coal Authority,13/09/2023,Mileage Payments,PS&S - General Claims,Staff Control Expenses,164713,19.35
"Department for Business, Energy and Industrial Strategy",The Coal Authority,13/09/2023,Mileage Payments,PS&S - General Claims,Staff Control Expenses,164713,12.6
"Department for Business, Energy and Industrial Strategy",The Coal Authority,19/09/2023,Mileage Payments,PS&S - General Claims,Staff Control Expenses,164713,6.75
"Department for Business, Energy and Industrial Strategy",The Coal Authority,20/09/2023,Mileage Payments,PS&S - General Claims,Staff Control Expenses,164713,6.75
"Department for Business, Energy and Industrial Strategy",The Coal Authority,21/09/2023,Mileage Payments,DEFRA LEP Funding,Staff Control Expenses,164713,54.45
"Department for Business, Energy and Industrial Strategy",The Coal Authority,21/09/2023,Mileage Payments,PS&S - General Claims,Staff Control Expenses,164713,10.35
"Department for Business, Energy and Industrial Strategy",The Coal Authority,21/09/2023,Mileage Payments,PS&S - General Claims,Staff Control Expenses,164713,17.55
"Department for Business, Energy and Industrial Strategy",The Coal Authority,21/09/2023,Mileage Payments,PS&S - General Claims,Staff Control Expenses,164713,25.65
"Department for Business, Energy and Industrial Strategy",The Coal Authority,22/09/2023,Mileage Payments,DEFRA LEP Funding,Staff Control Expenses,164713,54
"Department for Business, Energy and Industrial Strategy",The Coal Authority,22/09/2023,Mileage Payments,Innovation By-Product & Services Delivery,Staff Control Expenses,164713,9.79
"Department for Business, Energy and Industrial Strategy",The Coal Authority,22/09/2023,Mileage Payments,PS&S - General Claims,Staff Control Expenses,164713,10.35
"Department for Business, Energy and Industrial Strategy",The Coal Authority,22/09/2023,Mileage Payments,PS&S - General Claims,Staff Control Expenses,164713,7.65
"Department for Business, Energy and Industrial Strategy",The Coal Authority,22/09/2023,Mileage Payments,PS&S - General Claims,Staff Control Expenses,164713,6.75
"Department for Business, Energy and Industrial Strategy",The Coal Authority,25/09/2023,Mileage Payments,DEFRA LEP Funding,Staff Control Expenses,164713,62.5
"Department for Business, Energy and Industrial Strategy",The Coal Authority,25/09/2023,Mileage Payments,PS&S - General Claims,Staff Control Expenses,164713,21.6
"Department for Business, Energy and Industrial Strategy",The Coal Authority,26/09/2023,Mileage Payments,DEFRA LEP Funding,Staff Control Expenses,164713,69.5
"Department for Business, Energy and Industrial Strategy",The Coal Authority,26/09/2023,Mileage Payments,PS&S - General Claims,Staff Control Expenses,164713,21.6
"Department for Business, Energy and Industrial Strategy",The Coal Authority,27/09/2023,Mileage Payments,Innovation By-Product & Services Delivery,Staff Control Expenses,164713,56.7
"Department for Business, Energy and Industrial Strategy",The Coal Authority,27/09/2023,Mileage Payments,Innovation By-Product & Services Delivery,Staff Control Expenses,164713,54.9
"Department for Business, Energy and Industrial Strategy",The Coal Authority,27/09/2023,Mileage Payments,Innovation By-Product & Services Delivery,Staff Control Expenses,164713,18.45
"Department for Business, Energy and Industrial Strategy",The Coal Authority,27/09/2023,Mileage Payments,Innovation By-Product & Services Delivery,Staff Control Expenses,164713,19.16
"Department for Business, Energy and Industrial Strategy",The Coal Authority,27/09/2023,Mileage Payments,Innovation By-Product & Services Delivery,Staff Control Expenses,164713,3.96
"Department for Business, Energy and Industrial Strategy",The Coal Authority,27/09/2023,Mileage Payments,Innovation By-Product & Services Delivery,Staff Control Expenses,164713,56.07
"Department for Business, Energy and Industrial Strategy",The Coal Authority,27/09/2023,Mileage Payments,Innovation By-Product & Services Delivery,Staff Control Expenses,164713,55.34
"Department for Business, Energy and Industrial Strategy",The Coal Authority,27/09/2023,Mileage Payments,PS&S - General Claims,Staff Control Expenses,164713,21.6
"Department for Business, Energy and Industrial Strategy",The Coal Authority,28/09/2023,Mileage Payments,Innovation By-Product & Services Delivery,Staff Control Expenses,164713,14.85
"Department for Business, Energy and Industrial Strategy",The Coal Authority,28/09/2023,Mileage Payments,Innovation By-Product & Services Delivery,Staff Control Expenses,164713,39.6
"Department for Business, Energy and Industrial Strategy",The Coal Authority,28/09/2023,Mileage Payments,Innovation By-Product & Services Delivery,Staff Control Expenses,164713,25.01
"Department for Business, Energy and Industrial Strategy",The Coal Authority,28/09/2023,Mileage Payments,PS&S - General Claims,Staff Control Expenses,164713,21.6
"Department for Business, Energy and Industrial Strategy",The Coal Authority,29/09/2023,Mileage Payments,Innovation By-Product & Services Delivery,Staff Control Expenses,164713,15.04
"Department for Business, Energy and Industrial Strategy",The Coal Authority,29/09/2023,Mileage Payments,Innovation By-Product & Services Delivery,Staff Control Expenses,164713,14.46
"Department for Business, Energy and Industrial Strategy",The Coal Authority,29/09/2023,Mileage Payments,Innovation By-Product & Services Delivery,Staff Control Expenses,164713,6.08
"Department for Business, Energy and Industrial Strategy",The Coal Authority,02/10/2023,Mileage Payments,Engineering,Staff Control Expenses,164713,10.35
"Department for Business, Energy and Industrial Strategy",The Coal Authority,02/10/2023,Mileage Payments,Engineering,Staff Control Expenses,164713,10.35
"Department for Business, Energy and Industrial Strategy",The Coal Authority,02/10/2023,Mileage Payments,Heat & By-Product Innovation,Staff Control Expenses,164713,7.2
"Department for Business, Energy and Industrial Strategy",The Coal Authority,03/10/2023,Mileage Payments,DIG - Technical Delivery,Staff Control Expenses,164713,4.08
"Department for Business, Energy and Industrial Strategy",The Coal Authority,03/10/2023,Mileage Payments,DIG - Technical Delivery,Staff Control Expenses,164713,4.15
"Department for Business, Energy and Industrial Strategy",The Coal Authority,03/10/2023,Mileage Payments,Heat & By-Product Innovation,Staff Control Expenses,164713,7.2
"Department for Business, Energy and Industrial Strategy",The Coal Authority,05/10/2023,Mileage Payments,Incident & Emergency Response,Staff Control Expenses,164713,26.37
"Department for Business, Energy and Industrial Strategy",The Coal Authority,12/02/2023,Mileage Payments,People & Organisational Development,Staff Control Expenses,165225,6.75
"Department for Business, Energy and Industrial Strategy",The Coal Authority,11/08/2023,Mileage Payments,NRW Metal Mine Programme,Staff Control Expenses,165225,32.4
"Department for Business, Energy and Industrial Strategy",The Coal Authority,17/08/2023,Mileage Payments,NRW Metal Mine Programme,Staff Control Expenses,165225,7.29
"Department for Business, Energy and Industrial Strategy",The Coal Authority,23/08/2023,Mileage Payments,NRW Metal Mine Programme,Staff Control Expenses,165225,5.4
"Department for Business, Energy and Industrial Strategy",The Coal Authority,31/08/2023,Mileage Payments,NRW Metal Mine Programme,Staff Control Expenses,165225,2.79
"Department for Business, Energy and Industrial Strategy",The Coal Authority,07/09/2023,Mileage Payments,NRW Metal Mine Programme,Staff Control Expenses,165225,2.79
"Department for Business, Energy and Industrial Strategy",The Coal Authority,11/09/2023,Mileage Payments,PS&S - General Claims,Staff Control Expenses,165225,6.98
"Department for Business, Energy and Industrial Strategy",The Coal Authority,11/09/2023,Mileage Payments,PS&S - General Claims,Staff Control Expenses,165225,6.63
"Department for Business, Energy and Industrial Strategy",The Coal Authority,15/09/2023,Mileage Payments,PS&S - General Claims,Staff Control Expenses,165225,6.98
"Department for Business, Energy and Industrial Strategy",The Coal Authority,15/09/2023,Mileage Payments,PS&S - General Claims,Staff Control Expenses,165225,6.64
"Department for Business, Energy and Industrial Strategy",The Coal Authority,20/09/2023,Mileage Payments,NRW Metal Mine Programme,Staff Control Expenses,165225,2.79
"Department for Business, Energy and Industrial Strategy",The Coal Authority,25/09/2023,Mileage Payments,PS&S - General Claims,Staff Control Expenses,165225,3.99
"Department for Business, Energy and Industrial Strategy",The Coal Authority,25/09/2023,Mileage Payments,PS&S - General Claims,Staff Control Expenses,165225,2.32
"Department for Business, Energy and Industrial Strategy",The Coal Authority,25/09/2023,Mileage Payments,PS&S - General Claims,Staff Control Expenses,165225,8.43
"Department for Business, Energy and Industrial Strategy",The Coal Authority,26/09/2023,Mileage Payments,PS&S - General Claims,Staff Control Expenses,165225,7.76
"Department for Business, Energy and Industrial Strategy",The Coal Authority,26/09/2023,Mileage Payments,PS&S - General Claims,Staff Control Expenses,165225,7.38
"Department for Business, Energy and Industrial Strategy",The Coal Authority,27/09/2023,Mileage Payments,PS&S - General Claims,Staff Control Expenses,165225,6.98
"Department for Business, Energy and Industrial Strategy",The Coal Authority,27/09/2023,Mileage Payments,PS&S - General Claims,Staff Control Expenses,165225,6.64
"Department for Business, Energy and Industrial Strategy",The Coal Authority,28/09/2023,Mileage Payments,NRW Metal Mine Programme,Staff Control Expenses,165225,2.52
"Department for Business, Energy and Industrial Strategy",The Coal Authority,29/09/2023,Mileage Payments,PS&S - General Claims,Staff Control Expenses,165225,6.98
"Department for Business, Energy and Industrial Strategy",The Coal Authority,29/09/2023,Mileage Payments,PS&S - General Claims,Staff Control Expenses,165225,6.63
"Department for Business, Energy and Industrial Strategy",The Coal Authority,05/10/2023,Mileage Payments,ENV - Mine Water Operations,Staff Control Expenses,165225,1.19
"Department for Business, Energy and Industrial Strategy",The Coal Authority,05/10/2023,Mileage Payments,ENV - Mine Water Operations,Staff Control Expenses,165225,10.35
"Department for Business, Energy and Industrial Strategy",The Coal Authority,05/10/2023,Mileage Payments,ENV - Mine Water Operations,Staff Control Expenses,165225,9.45
"Department for Business, Energy and Industrial Strategy",The Coal Authority,05/10/2023,Mileage Payments,ENV - Mine Water Operations,Staff Control Expenses,165225,1.27
"Department for Business, Energy and Industrial Strategy",The Coal Authority,05/10/2023,Mileage Payments,ENV - Mine Water Operations,Staff Control Expenses,165225,2.73
"Department for Business, Energy and Industrial Strategy",The Coal Authority,05/10/2023,Mileage Payments,ENV - Mine Water Operations,Staff Control Expenses,165225,3.83
"Department for Business, Energy and Industrial Strategy",The Coal Authority,05/10/2023,Mileage Payments,PS&S - General Claims,Staff Control Expenses,165225,6.98
"Department for Business, Energy and Industrial Strategy",The Coal Authority,05/10/2023,Mileage Payments,PS&S - General Claims,Staff Control Expenses,165225,6.64
"Department for Business, Energy and Industrial Strategy",The Coal Authority,06/10/2023,Mileage Payments,DEFRA Metal Mine Programme,Staff Control Expenses,165225,27.18
"Department for Business, Energy and Industrial Strategy",The Coal Authority,06/10/2023,Mileage Payments,PS&S - General Claims,Staff Control Expenses,165225,6.98
"Department for Business, Energy and Industrial Strategy",The Coal Authority,06/10/2023,Mileage Payments,PS&S - General Claims,Staff Control Expenses,165225,6.64
"Department for Business, Energy and Industrial Strategy",The Coal Authority,09/10/2023,Mileage Payments,DIG - Technical Delivery,Staff Control Expenses,165225,10.69
"Department for Business, Energy and Industrial Strategy",The Coal Authority,09/10/2023,Mileage Payments,DIG - Technical Delivery,Staff Control Expenses,165225,13.12
"Department for Business, Energy and Industrial Strategy",The Coal Authority,09/10/2023,Mileage Payments,Engineering,Staff Control Expenses,165225,10.35
"Department for Business, Energy and Industrial Strategy",The Coal Authority,09/10/2023,Mileage Payments,Engineering,Staff Control Expenses,165225,10.35
"Department for Business, Energy and Industrial Strategy",The Coal Authority,10/10/2023,Mileage Payments,NRW Metal Mine Programme,Staff Control Expenses,165225,81.45
"Department for Business, Energy and Industrial Strategy",The Coal Authority,12/10/2023,Mileage Payments,Engineering,Staff Control Expenses,165225,26.81
"Department for Business, Energy and Industrial Strategy",The Coal Authority,12/10/2023,Mileage Payments,Engineering,Staff Control Expenses,165225,5.22
"Department for Business, Energy and Industrial Strategy",The Coal Authority,12/10/2023,Mileage Payments,Engineering,Staff Control Expenses,165225,22.68
"Department for Business, Energy and Industrial Strategy",The Coal Authority,12/10/2023,Mileage Payments,People & Organisational Development,Staff Control Expenses,165225,8.55
"Department for Business, Energy and Industrial Strategy",The Coal Authority,12/10/2023,Mileage Payments,Procurement,Staff Control Expenses,165225,14.85
"Department for Business, Energy and Industrial Strategy",The Coal Authority,12/10/2023,Mileage Payments,Procurement,Staff Control Expenses,165225,14.85
"Department for Business, Energy and Industrial Strategy",The Coal Authority,11/09/2023,Mileage Payments,NRW Metal Mine Programme,Staff Control Expenses,165667,57.6
"Department for Business, Energy and Industrial Strategy",The Coal Authority,13/09/2023,Mileage Payments,DIG - GIS,Staff Control Expenses,165667,40.5
"Department for Business, Energy and Industrial Strategy",The Coal Authority,29/09/2023,Mileage Payments,Heat & By-Product Innovation,Staff Control Expenses,165667,24.3
"Department for Business, Energy and Industrial Strategy",The Coal Authority,02/10/2023,Mileage Payments,PS&S - General Claims,Staff Control Expenses,165667,75.6
"Department for Business, Energy and Industrial Strategy",The Coal Authority,03/10/2023,Mileage Payments,PS&S - General Claims,Staff Control Expenses,165667,20.7
"Department for Business, Energy and Industrial Strategy",The Coal Authority,04/10/2023,Mileage Payments,Heat & By-Product Innovation,Staff Control Expenses,165667,29.69
"Department for Business, Energy and Industrial Strategy",The Coal Authority,04/10/2023,Mileage Payments,Heat & By-Product Innovation,Staff Control Expenses,165667,73.82
"Department for Business, Energy and Industrial Strategy",The Coal Authority,04/10/2023,Mileage Payments,Heat & By-Product Innovation,Staff Control Expenses,165667,55.7
"Department for Business, Energy and Industrial Strategy",The Coal Authority,04/10/2023,Mileage Payments,Innovation By-Product & Services Delivery,Staff Control Expenses,165667,35.78
"Department for Business, Energy and Industrial Strategy",The Coal Authority,04/10/2023,Mileage Payments,Innovation By-Product & Services Delivery,Staff Control Expenses,165667,20.11
"Department for Business, Energy and Industrial Strategy",The Coal Authority,04/10/2023,Mileage Payments,Innovation By-Product & Services Delivery,Staff Control Expenses,165667,17.77
"Department for Business, Energy and Industrial Strategy",The Coal Authority,04/10/2023,Mileage Payments,PS&S - General Claims,Staff Control Expenses,165667,10.35
"Department for Business, Energy and Industrial Strategy",The Coal Authority,04/10/2023,Mileage Payments,PS&S - General Claims,Staff Control Expenses,165667,7.2
"Department for Business, Energy and Industrial Strategy",The Coal Authority,04/10/2023,Mileage Payments,PS&S - General Claims,Staff Control Expenses,165667,6.75
"Department for Business, Energy and Industrial Strategy",The Coal Authority,06/10/2023,Mileage Payments,PS&S - General Claims,Staff Control Expenses,165667,22.5
"Department for Business, Energy and Industrial Strategy",The Coal Authority,06/10/2023,Mileage Payments,PS&S - General Claims,Staff Control Expenses,165667,15.75
"Department for Business, Energy and Industrial Strategy",The Coal Authority,06/10/2023,Mileage Payments,PS&S - General Claims,Staff Control Expenses,165667,25.65
"Department for Business, Energy and Industrial Strategy",The Coal Authority,09/10/2023,Mileage Payments,PS&S - General Claims,Staff Control Expenses,165667,9.9
"Department for Business, Energy and Industrial Strategy",The Coal Authority,10/10/2023,Mileage Payments,PS&S - General Claims,Staff Control Expenses,165667,21.6
"Department for Business, Energy and Industrial Strategy",The Coal Authority,11/10/2023,Mileage Payments,Heat & By-Product Innovation,Staff Control Expenses,165667,23.4
"Department for Business, Energy and Industrial Strategy",The Coal Authority,11/10/2023,Mileage Payments,PS&S - General Claims,Staff Control Expenses,165667,13.5
"Department for Business, Energy and Industrial Strategy",The Coal Authority,12/10/2023,Mileage Payments,Innovation By-Product & Services Delivery,Staff Control Expenses,165667,62.58
"Department for Business, Energy and Industrial Strategy",The Coal Authority,12/10/2023,Mileage Payments,Innovation By-Product & Services Delivery,Staff Control Expenses,165667,63.21
"Department for Business, Energy and Industrial Strategy",The Coal Authority,12/10/2023,Mileage Payments,PS&S - General Claims,Staff Control Expenses,165667,37.35
"Department for Business, Energy and Industrial Strategy",The Coal Authority,12/10/2023,Mileage Payments,PS&S - General Claims,Staff Control Expenses,165667,3.15
"Department for Business, Energy and Industrial Strategy",The Coal Authority,12/10/2023,Mileage Payments,PS&S - General Claims,Staff Control Expenses,165667,0.9
"Department for Business, Energy and Industrial Strategy",The Coal Authority,12/10/2023,Mileage Payments,PS&S - General Claims,Staff Control Expenses,165667,3.6
"Department for Business, Energy and Industrial Strategy",The Coal Authority,12/10/2023,Mileage Payments,PS&S - General Claims,Staff Control Expenses,165667,1.8
"Department for Business, Energy and Industrial Strategy",The Coal Authority,12/10/2023,Mileage Payments,PS&S - General Claims,Staff Control Expenses,165667,48.6
"Department for Business, Energy and Industrial Strategy",The Coal Authority,13/10/2023,Mileage Payments,PS&S - General Claims,Staff Control Expenses,165667,17.1
"Department for Business, Energy and Industrial Strategy",The Coal Authority,15/10/2023,Mileage Payments,Heat & By-Product Innovation,Staff Control Expenses,165667,40.5
"Department for Business, Energy and Industrial Strategy",The Coal Authority,16/10/2023,Mileage Payments,Engineering,Staff Control Expenses,165667,10.35
"Department for Business, Energy and Industrial Strategy",The Coal Authority,16/10/2023,Mileage Payments,Engineering,Staff Control Expenses,165667,10.35
"Department for Business, Energy and Industrial Strategy",The Coal Authority,17/10/2023,Mileage Payments,DIG - Technical Delivery,Staff Control Expenses,165667,10.68
"Department for Business, Energy and Industrial Strategy",The Coal Authority,17/10/2023,Mileage Payments,DIG - Technical Delivery,Staff Control Expenses,165667,13.12
"Department for Business, Energy and Industrial Strategy",The Coal Authority,17/10/2023,Mileage Payments,Heat & By-Product Innovation,Staff Control Expenses,165667,14.4
"Department for Business, Energy and Industrial Strategy",The Coal Authority,18/10/2023,Mileage Payments,Community Response,Staff Control Expenses,165667,24.39
"Department for Business, Energy and Industrial Strategy",The Coal Authority,18/10/2023,Mileage Payments,Community Response,Staff Control Expenses,165667,31.05
"Department for Business, Energy and Industrial Strategy",The Coal Authority,18/10/2023,Mileage Payments,ENV - Salinity Programme,Staff Control Expenses,165667,3.15
"Department for Business, Energy and Industrial Strategy",The Coal Authority,18/10/2023,Mileage Payments,ENV - Salinity Programme,Staff Control Expenses,165667,3.15
"Department for Business, Energy and Industrial Strategy",The Coal Authority,18/10/2023,Mileage Payments,Facilities,Staff Control Expenses,165667,13.1
"Department for Business, Energy and Industrial Strategy",The Coal Authority,18/10/2023,Mileage Payments,Facilities,Staff Control Expenses,165667,13.56
"Department for Business, Energy and Industrial Strategy",The Coal Authority,18/10/2023,Mileage Payments,Facilities,Staff Control Expenses,165667,4.89
"Department for Business, Energy and Industrial Strategy",The Coal Authority,18/10/2023,Mileage Payments,Facilities,Staff Control Expenses,165667,4.9
"Department for Business, Energy and Industrial Strategy",The Coal Authority,19/10/2023,Mileage Payments,PS&S - General Claims,Staff Control Expenses,165667,6.75
"Department for Business, Energy and Industrial Strategy",The Coal Authority,19/10/2023,Mileage Payments,PS&S - General Claims,Staff Control Expenses,165667,49.5
"Department for Business, Energy and Industrial Strategy",The Coal Authority,19/10/2023,Mileage Payments,PS&S - General Claims,Staff Control Expenses,165667,9.9
"Department for Business, Energy and Industrial Strategy",The Coal Authority,19/10/2023,Mileage Payments,PS&S - General Claims,Staff Control Expenses,165667,12.15
"Department for Business, Energy and Industrial Strategy",The Coal Authority,19/10/2023,Mileage Payments,PS&S - General Claims,Staff Control Expenses,165667,13.5
"Department for Business, Energy and Industrial Strategy",The Coal Authority,19/10/2023,Mileage Payments,PS&S - General Claims,Staff Control Expenses,165667,22.05
"Department for Business, Energy and Industrial Strategy",The Coal Authority,20/10/2023,Mileage Payments,DIG - Technical Delivery,Staff Control Expenses,165667,10.69
"Department for Business, Energy and Industrial Strategy",The Coal Authority,20/10/2023,Mileage Payments,DIG - Technical Delivery,Staff Control Expenses,165667,13.12
"Department for Business, Energy and Industrial Strategy",The Coal Authority,11/10/2023,Mileage Payments,NRW Metal Mine Programme,Staff Control Expenses,166010,8.06
"Department for Business, Energy and Industrial Strategy",The Coal Authority,11/10/2023,Mileage Payments,NRW Metal Mine Programme,Staff Control Expenses,166010,8.09
"Department for Business, Energy and Industrial Strategy",The Coal Authority,23/10/2023,Mileage Payments,Engineering,Staff Control Expenses,166010,10.35
"Department for Business, Energy and Industrial Strategy",The Coal Authority,23/10/2023,Mileage Payments,Engineering,Staff Control Expenses,166010,10.35
"Department for Business, Energy and Industrial Strategy",The Coal Authority,25/10/2023,Mileage Payments,NRW Metal Mine Programme,Staff Control Expenses,166010,8.1
"Department for Business, Energy and Industrial Strategy",The Coal Authority,25/10/2023,Mileage Payments,NRW Metal Mine Programme,Staff Control Expenses,166010,8.06
"Department for Business, Energy and Industrial Strategy",The Coal Authority,29/09/2023,Mine Entry Inspection - Contractor Costs,PS&S - General Claims,Interlocks Surveys,165317,"8,151.84"
"Department for Business, Energy and Industrial Strategy",The Coal Authority,05/10/2023,Minewater Chemicals - Operational Sites,DEFRA Metal Mine Programme,John F Hunt Regeneration Ltd,164646,"18,143.29"
"Department for Business, Energy and Industrial Strategy",The Coal Authority,29/09/2023,Minewater Contractor Add. Task Order - Ops Site,ENV - Mine Water Operations,National Coal Mining Museum,164199,"7,211.43"
"Department for Business, Energy and Industrial Strategy",The Coal Authority,05/10/2023,Minewater Contractor Add. Task Order - Ops Site,DEFRA Metal Mine Programme,John F Hunt Regeneration Ltd,164646,"2,897.19"
"Department for Business, Energy and Industrial Strategy",The Coal Authority,09/10/2023,Minewater Contractor Add. Task Order - Ops Site,ENV - Mine Water Operations,Severn Trent Serv Ops Uk Ltd,165257,"13,102.96"
"Department for Business, Energy and Industrial Strategy",The Coal Authority,09/10/2023,Minewater Contractor Add. Task Order - Ops Site,ENV - Mine Water Operations,Severn Trent Serv Ops Uk Ltd,165257,88.06
"Department for Business, Energy and Industrial Strategy",The Coal Authority,09/10/2023,Minewater Contractor Add. Task Order - Ops Site,ENV - Mine Water Operations,Severn Trent Serv Ops Uk Ltd,165257,"9,473.29"
"Department for Business, Energy and Industrial Strategy",The Coal Authority,09/10/2023,Minewater Contractor Add. Task Order - Ops Site,ENV - Mine Water Operations,Severn Trent Serv Ops Uk Ltd,165257,736.37
"Department for Business, Energy and Industrial Strategy",The Coal Authority,09/10/2023,Minewater Contractor Add. Task Order - Ops Site,ENV - Mine Water Operations,Severn Trent Serv Ops Uk Ltd,165257,88.06
"Department for Business, Energy and Industrial Strategy",The Coal Authority,09/10/2023,Minewater Contractor Add. Task Order - Ops Site,ENV - Mine Water Operations,Severn Trent Serv Ops Uk Ltd,165257,146.89
"Department for Business, Energy and Industrial Strategy",The Coal Authority,09/10/2023,Minewater Contractor Add. Task Order - Ops Site,ENV - Mine Water Operations,Severn Trent Serv Ops Uk Ltd,165257,"2,238.13"
"Department for Business, Energy and Industrial Strategy",The Coal Authority,09/10/2023,Minewater Contractor Add. Task Order - Ops Site,ENV - Mine Water Operations,Severn Trent Serv Ops Uk Ltd,165257,134.11
"Department for Business, Energy and Industrial Strategy",The Coal Authority,09/10/2023,Minewater Contractor Add. Task Order - Ops Site,ENV - Mine Water Operations,Severn Trent Serv Ops Uk Ltd,165257,60.23
"Department for Business, Energy and Industrial Strategy",The Coal Authority,09/10/2023,Minewater Contractor Add. Task Order - Ops Site,ENV - Salinity Programme,Severn Trent Serv Ops Uk Ltd,165257,476.6
"Department for Business, Energy and Industrial Strategy",The Coal Authority,05/10/2023,Minewater Contractor Maint. Visits - Ops Site,DEFRA Metal Mine Programme,John F Hunt Regeneration Ltd,164646,"19,251.00"
"Department for Business, Energy and Industrial Strategy",The Coal Authority,09/10/2023,Minewater Contractor Maint. Visits - Ops Site,ENV - Mine Water Operations,Severn Trent Serv Ops Uk Ltd,165173,"512,902.08"
"Department for Business, Energy and Industrial Strategy",The Coal Authority,06/10/2023,Minewater Contractor Maint. Visits - Ops Site,ENV - Mine Water Operations,Severn Trent Serv Ops Uk Ltd,165174,"8,921.08"
"Department for Business, Energy and Industrial Strategy",The Coal Authority,09/10/2023,Minewater Contractor Maint. Visits - Ops Site,ENV - Mine Water Operations,Severn Trent Serv Ops Uk Ltd,165257,220.6
"Department for Business, Energy and Industrial Strategy",The Coal Authority,22/09/2023,Minewater Cost Benefit Analysis,ENV - Projects & Delivery,AECOM Ltd,165359,0.09
"Department for Business, Energy and Industrial Strategy",The Coal Authority,22/09/2023,Minewater Cost Benefit Analysis,ENV - Projects & Delivery,AECOM Ltd,165359,"8,512.47"
"Department for Business, Energy and Industrial Strategy",The Coal Authority,17/08/2023,Minewater Feasibility / Scoping,ENV - Projects & Delivery,AECOM Ltd,164118,"1,354.67"
"Department for Business, Energy and Industrial Strategy",The Coal Authority,17/08/2023,Minewater Feasibility / Scoping,ENV - Projects & Delivery,AECOM Ltd,164118,"1,145.33"
"Department for Business, Energy and Industrial Strategy",The Coal Authority,17/08/2023,Minewater Feasibility / Scoping,ENV - Projects & Delivery,AECOM Ltd,164118,"7,215.50"
"Department for Business, Energy and Industrial Strategy",The Coal Authority,17/08/2023,Minewater Feasibility / Scoping,ENV - Projects & Delivery,AECOM Ltd,164118,"1,483.95"
"Department for Business, Energy and Industrial Strategy",The Coal Authority,02/08/2023,Minewater Feasibility / Scoping,ENV - Projects & Delivery,AECOM Ltd,164119,"2,921.50"
"Department for Business, Energy and Industrial Strategy",The Coal Authority,02/08/2023,Minewater Feasibility / Scoping,ENV - Projects & Delivery,AECOM Ltd,164119,"2,577.13"
"Department for Business, Energy and Industrial Strategy",The Coal Authority,02/08/2023,Minewater Feasibility / Scoping,ENV - Projects & Delivery,AECOM Ltd,164119,"1,962.00"
"Department for Business, Energy and Industrial Strategy",The Coal Authority,02/08/2023,Minewater Feasibility / Scoping,ENV - Projects & Delivery,AECOM Ltd,164119,"1,320.93"
"Department for Business, Energy and Industrial Strategy",The Coal Authority,02/08/2023,Minewater Feasibility / Scoping,ENV - Projects & Delivery,AECOM Ltd,164119,74
"Department for Business, Energy and Industrial Strategy",The Coal Authority,02/08/2023,Minewater Feasibility / Scoping,ENV - Projects & Delivery,AECOM Ltd,164119,122.5
"Department for Business, Energy and Industrial Strategy",The Coal Authority,02/08/2023,Minewater Feasibility / Scoping,ENV - Projects & Delivery,AECOM Ltd,164119,"3,438.90"
"Department for Business, Energy and Industrial Strategy",The Coal Authority,18/08/2023,Minewater Feasibility / Scoping,NRW Metal Mine Programme,Jeremy Benn Associates Ltd,164885,"8,403.62"
"Department for Business, Energy and Industrial Strategy",The Coal Authority,30/09/2023,Minewater Feasibility / Scoping,NRW Metal Mine Programme,TerraDat UK Limited,164967,"9,780.00"
"Department for Business, Energy and Industrial Strategy",The Coal Authority,10/10/2023,Minewater Feasibility / Scoping,ENV - Projects & Delivery,AECOM Ltd,164977,"1,176.00"
"Department for Business, Energy and Industrial Strategy",The Coal Authority,10/10/2023,Minewater Feasibility / Scoping,ENV - Projects & Delivery,AECOM Ltd,164977,41
"Department for Business, Energy and Industrial Strategy",The Coal Authority,10/10/2023,Minewater Feasibility / Scoping,ENV - Projects & Delivery,AECOM Ltd,164977,"1,078.00"
"Department for Business, Energy and Industrial Strategy",The Coal Authority,10/10/2023,Minewater Feasibility / Scoping,ENV - Projects & Delivery,AECOM Ltd,164977,821
"Department for Business, Energy and Industrial Strategy",The Coal Authority,10/10/2023,Minewater Feasibility / Scoping,ENV - Projects & Delivery,AECOM Ltd,164977,500
"Department for Business, Energy and Industrial Strategy",The Coal Authority,10/10/2023,Minewater Feasibility / Scoping,ENV - Projects & Delivery,AECOM Ltd,164977,"6,906.00"
"Department for Business, Energy and Industrial Strategy",The Coal Authority,10/10/2023,Minewater Feasibility / Scoping,NRW Metal Mine Programme,AECOM Ltd,164979,"2,532.63"
"Department for Business, Energy and Industrial Strategy",The Coal Authority,10/10/2023,Minewater Feasibility / Scoping,NRW Metal Mine Programme,AECOM Ltd,164979,"2,316.34"
"Department for Business, Energy and Industrial Strategy",The Coal Authority,10/10/2023,Minewater Feasibility / Scoping,NRW Metal Mine Programme,AECOM Ltd,164979,"3,831.74"
"Department for Business, Energy and Industrial Strategy",The Coal Authority,23/09/2023,Minewater Feasibility / Scoping,ENV - Projects & Delivery,WSP UK Ltd,164981,"40,423.03"
"Department for Business, Energy and Industrial Strategy",The Coal Authority,14/09/2023,Minewater Feasibility / Scoping,DEV - Property Management,Wardell Armstrong LLP,165307,"1,286.00"
"Department for Business, Energy and Industrial Strategy",The Coal Authority,04/10/2023,Minewater Feasibility / Scoping,ENV - Projects & Delivery,WSP UK Ltd,165560,"2,900.40"
"Department for Business, Energy and Industrial Strategy",The Coal Authority,23/10/2023,Minewater Feasibility / Scoping,ENV - Projects & Delivery,AECOM Ltd,165833,16.67
"Department for Business, Energy and Industrial Strategy",The Coal Authority,23/10/2023,Minewater Feasibility / Scoping,ENV - Projects & Delivery,AECOM Ltd,165833,424.87
"Department for Business, Energy and Industrial Strategy",The Coal Authority,23/10/2023,Minewater Feasibility / Scoping,ENV - Projects & Delivery,AECOM Ltd,165833,3.97
"Department for Business, Energy and Industrial Strategy",The Coal Authority,23/10/2023,Minewater Feasibility / Scoping,ENV - Projects & Delivery,AECOM Ltd,165833,535.09
"Department for Business, Energy and Industrial Strategy",The Coal Authority,23/10/2023,Minewater Feasibility / Scoping,ENV - Projects & Delivery,AECOM Ltd,165833,251.85
"Department for Business, Energy and Industrial Strategy",The Coal Authority,23/10/2023,Minewater Feasibility / Scoping,ENV - Projects & Delivery,AECOM Ltd,165833,"2,336.05"
"Department for Business, Energy and Industrial Strategy",The Coal Authority,23/10/2023,Minewater Feasibility / Scoping,ENV - Projects & Delivery,AECOM Ltd,165833,"2,236.00"
"Department for Business, Energy and Industrial Strategy",The Coal Authority,23/10/2023,Minewater Feasibility / Scoping,ENV - Projects & Delivery,AECOM Ltd,165833,"1,077.00"
"Department for Business, Energy and Industrial Strategy",The Coal Authority,27/09/2023,Minewater Investigation Studies,ENV - Salinity Programme,Robertson Geologging Ltd,164017,"2,310.00"
"Department for Business, Energy and Industrial Strategy",The Coal Authority,27/09/2023,Minewater Investigation Studies,ENV - Salinity Programme,Robertson Geologging Ltd,164019,"2,340.00"
"Department for Business, Energy and Industrial Strategy",The Coal Authority,27/09/2023,Minewater Investigation Studies,ENV - Salinity Programme,Robertson Geologging Ltd,164020,"2,360.00"
"Department for Business, Energy and Industrial Strategy",The Coal Authority,17/10/2023,Minewater Investigation Studies,ENV - Salinity Programme,Robertson Geologging Ltd,165297,"2,780.00"
"Department for Business, Energy and Industrial Strategy",The Coal Authority,17/10/2023,Minewater Investigation Studies,ENV - Salinity Programme,Robertson Geologging Ltd,165298,"2,430.00"
"Department for Business, Energy and Industrial Strategy",The Coal Authority,17/10/2023,Minewater Investigation Studies,ENV - Salinity Programme,Robertson Geologging Ltd,165299,"2,430.00"
"Department for Business, Energy and Industrial Strategy",The Coal Authority,19/10/2023,Minewater Investigation Studies,ENV - Salinity Programme,European Geophysical Services,165828,"3,495.50"
"Department for Business, Energy and Industrial Strategy",The Coal Authority,25/09/2023,Minewater Investigation Studies,ENV - Salinity Programme,European Geophysical Services,165860,"2,772.50"
"Department for Business, Energy and Industrial Strategy",The Coal Authority,03/10/2023,Minewater Land Agents (Acquisitions),DEV - Property Management,Staff Control Expenses,164713,977.33
"Department for Business, Energy and Industrial Strategy",The Coal Authority,29/09/2023,Minewater Land Option / Access Payments,DEFRA LEP Funding,H & H Land And Property Ltd,164242,"1,950.00"
"Department for Business, Energy and Industrial Strategy",The Coal Authority,09/10/2023,Minewater Landscaping,ENV - Mine Water Operations,Severn Trent Serv Ops Uk Ltd,165257,176.11
"Department for Business, Energy and Industrial Strategy",The Coal Authority,09/10/2023,Minewater Landscaping,ENV - Mine Water Operations,Severn Trent Serv Ops Uk Ltd,165257,10.01
"Department for Business, Energy and Industrial Strategy",The Coal Authority,09/10/2023,Minewater Landscaping,ENV - Technical,Severn Trent Serv Ops Uk Ltd,165257,88.06
"Department for Business, Energy and Industrial Strategy",The Coal Authority,13/10/2023,Minewater Landscaping,DEFRA LEP Funding,Scottish Woodlands Ltd,165279,380
"Department for Business, Energy and Industrial Strategy",The Coal Authority,22/10/2023,Minewater Landscaping,NRW Metal Mine Programme,Tir a Choed Ltd,165693,"4,950.00"
"Department for Business, Energy and Industrial Strategy",The Coal Authority,17/10/2023,Minewater Landscaping,DEFRA LEP Funding,Scottish Woodlands Ltd,165751,126.32
"Department for Business, Energy and Industrial Strategy",The Coal Authority,17/10/2023,Minewater Landscaping,DEFRA LEP Funding,Scottish Woodlands Ltd,165751,"2,620.00"
"Department for Business, Energy and Industrial Strategy",The Coal Authority,18/09/2023,Minewater Liability & Monitoring Sites - Maint.,ENV - Mine Water Operations,Detectronic Limited,166101,900
"Department for Business, Energy and Industrial Strategy",The Coal Authority,05/10/2023,Minewater Management Fees,DEFRA Metal Mine Programme,John F Hunt Regeneration Ltd,164646,"51,566.73"
"Department for Business, Energy and Industrial Strategy",The Coal Authority,09/10/2023,Minewater Management Fees,ENV - Mine Water Operations,Severn Trent Serv Ops Uk Ltd,165257,759.55
"Department for Business, Energy and Industrial Strategy",The Coal Authority,09/10/2023,Minewater Management Fees,ENV - Mine Water Operations,Severn Trent Serv Ops Uk Ltd,165257,107.72
"Department for Business, Energy and Industrial Strategy",The Coal Authority,29/09/2023,Minewater Monitoring & Flow Measurement,NRW Metal Mine Programme,Hydro-Logic Services Int Limited,164166,"1,785.00"
"Department for Business, Energy and Industrial Strategy",The Coal Authority,29/09/2023,Minewater Monitoring & Flow Measurement,NRW Metal Mine Programme,Hydro-Logic Services Int Limited,164166,625
"Department for Business, Energy and Industrial Strategy",The Coal Authority,30/09/2023,Minewater Monitoring & Flow Measurement,NRW Metal Mine Programme,Socotec UK Limited,164881,553.77
"Department for Business, Energy and Industrial Strategy",The Coal Authority,11/10/2023,Minewater Monitoring & Flow Measurement,ENV - Mine Water Operations,Socotec UK Limited,165165,507.72
"Department for Business, Energy and Industrial Strategy",The Coal Authority,30/09/2023,Minewater Monitoring & Flow Measurement,ENV - Projects & Delivery,Socotec UK Limited,165216,"1,214.50"
"Department for Business, Energy and Industrial Strategy",The Coal Authority,30/09/2023,Minewater Monitoring & Flow Measurement,ENV - Projects & Delivery,Socotec UK Limited,165216,645.94
"Department for Business, Energy and Industrial Strategy",The Coal Authority,24/10/2023,Minewater Monitoring & Flow Measurement,NRW Metal Mine Programme,Hydro-Logic Services Int Limited,165951,"1,367.50"
"Department for Business, Energy and Industrial Strategy",The Coal Authority,29/09/2023,Minewater Monitoring & Flow Measurement,ENV - Salinity Programme,Government Procurement Card,166122,54.79
"Department for Business, Energy and Industrial Strategy",The Coal Authority,05/06/2023,Minewater Power Costs,DEFRA Metal Mine Programme,Edf Energy,164133,"3,182.81"
"Department for Business, Energy and Industrial Strategy",The Coal Authority,05/06/2023,Minewater Power Costs,DEFRA Metal Mine Programme,Edf Energy,164133,"62,872.96"
"Department for Business, Energy and Industrial Strategy",The Coal Authority,05/06/2023,Minewater Power Costs,ENV - Mine Water Operations,Edf Energy,164133,"14,114.72"
"Department for Business, Energy and Industrial Strategy",The Coal Authority,05/06/2023,Minewater Power Costs,ENV - Mine Water Operations,Edf Energy,164133,"1,081.66"
"Department for Business, Energy and Industrial Strategy",The Coal Authority,05/06/2023,Minewater Power Costs,ENV - Mine Water Operations,Edf Energy,164133,"19,662.09"
"Department for Business, Energy and Industrial Strategy",The Coal Authority,05/06/2023,Minewater Power Costs,ENV - Mine Water Operations,Edf Energy,164133,"2,982.58"
"Department for Business, Energy and Industrial Strategy",The Coal Authority,05/06/2023,Minewater Power Costs,ENV - Mine Water Operations,Edf Energy,164133,"2,714.19"
"Department for Business, Energy and Industrial Strategy",The Coal Authority,05/06/2023,Minewater Power Costs,ENV - Mine Water Operations,Edf Energy,164133,"10,571.35"
"Department for Business, Energy and Industrial Strategy",The Coal Authority,05/06/2023,Minewater Power Costs,ENV - Mine Water Operations,Edf Energy,164133,"9,331.06"
"Department for Business, Energy and Industrial Strategy",The Coal Authority,05/06/2023,Minewater Power Costs,ENV - Mine Water Operations,Edf Energy,164133,"16,274.16"
"Department for Business, Energy and Industrial Strategy",The Coal Authority,05/06/2023,Minewater Power Costs,ENV - Mine Water Operations,Edf Energy,164133,"1,995.74"
"Department for Business, Energy and Industrial Strategy",The Coal Authority,05/06/2023,Minewater Power Costs,ENV - Mine Water Operations,Edf Energy,164133,"19,573.45"
"Department for Business, Energy and Industrial Strategy",The Coal Authority,05/06/2023,Minewater Power Costs,ENV - Mine Water Operations,Edf Energy,164133,"5,992.64"
"Department for Business, Energy and Industrial Strategy",The Coal Authority,05/06/2023,Minewater Power Costs,ENV - Mine Water Operations,Edf Energy,164133,915.7
"Department for Business, Energy and Industrial Strategy",The Coal Authority,05/06/2023,Minewater Power Costs,ENV - Mine Water Operations,Edf Energy,164133,"3,218.16"
"Department for Business, Energy and Industrial Strategy",The Coal Authority,05/06/2023,Minewater Power Costs,ENV - Mine Water Operations,Edf Energy,164133,"5,257.21"
"Department for Business, Energy and Industrial Strategy",The Coal Authority,05/06/2023,Minewater Power Costs,ENV - Mine Water Operations,Edf Energy,164133,953.84
"Department for Business, Energy and Industrial Strategy",The Coal Authority,05/06/2023,Minewater Power Costs,ENV - Mine Water Operations,Edf Energy,164133,"2,998.05"
"Department for Business, Energy and Industrial Strategy",The Coal Authority,05/06/2023,Minewater Power Costs,ENV - Mine Water Operations,Edf Energy,164133,"16,611.07"
"Department for Business, Energy and Industrial Strategy",The Coal Authority,05/06/2023,Minewater Power Costs,ENV - Mine Water Operations,Edf Energy,164133,"23,528.44"
"Department for Business, Energy and Industrial Strategy",The Coal Authority,05/06/2023,Minewater Power Costs,ENV - Mine Water Operations,Edf Energy,164133,"2,697.22"
"Department for Business, Energy and Industrial Strategy",The Coal Authority,05/06/2023,Minewater Power Costs,ENV - Mine Water Operations,Edf Energy,164133,"4,718.94"
"Department for Business, Energy and Industrial Strategy",The Coal Authority,05/06/2023,Minewater Power Costs,ENV - Mine Water Operations,Edf Energy,164133,"3,969.76"
"Department for Business, Energy and Industrial Strategy",The Coal Authority,05/06/2023,Minewater Power Costs,ENV - Mine Water Operations,Edf Energy,164133,"32,599.12"
"Department for Business, Energy and Industrial Strategy",The Coal Authority,05/06/2023,Minewater Power Costs,ENV - Mine Water Operations,Edf Energy,164133,"6,022.64"
"Department for Business, Energy and Industrial Strategy",The Coal Authority,05/06/2023,Minewater Power Costs,ENV - Mine Water Operations,Edf Energy,164133,"9,343.04"
"Department for Business, Energy and Industrial Strategy",The Coal Authority,05/06/2023,Minewater Power Costs,ENV - Mine Water Operations,Edf Energy,164133,"4,170.22"
"Department for Business, Energy and Industrial Strategy",The Coal Authority,05/06/2023,Minewater Power Costs,ENV - Mine Water Operations,Edf Energy,164133,"26,125.22"
"Department for Business, Energy and Industrial Strategy",The Coal Authority,05/06/2023,Minewater Power Costs,ENV - Mine Water Operations,Edf Energy,164133,"3,498.23"
"Department for Business, Energy and Industrial Strategy",The Coal Authority,05/06/2023,Minewater Power Costs,ENV - Mine Water Operations,Edf Energy,164133,"2,764.81"
"Department for Business, Energy and Industrial Strategy",The Coal Authority,05/06/2023,Minewater Power Costs,ENV - Mine Water Operations,Edf Energy,164133,"4,241.81"
"Department for Business, Energy and Industrial Strategy",The Coal Authority,05/06/2023,Minewater Power Costs,ENV - Mine Water Operations,Edf Energy,164133,"5,540.16"
"Department for Business, Energy and Industrial Strategy",The Coal Authority,05/06/2023,Minewater Power Costs,ENV - Mine Water Operations,Edf Energy,164133,"6,033.74"
"Department for Business, Energy and Industrial Strategy",The Coal Authority,05/06/2023,Minewater Power Costs,ENV - Mine Water Operations,Edf Energy,164133,"4,029.82"
"Department for Business, Energy and Industrial Strategy",The Coal Authority,05/06/2023,Minewater Power Costs,ENV - Mine Water Operations,Edf Energy,164133,435.28
"Department for Business, Energy and Industrial Strategy",The Coal Authority,05/06/2023,Minewater Power Costs,ENV - Mine Water Operations,Edf Energy,164133,"5,059.20"
"Department for Business, Energy and Industrial Strategy",The Coal Authority,05/06/2023,Minewater Power Costs,ENV - Mine Water Operations,Edf Energy,164133,"27,060.22"
"Department for Business, Energy and Industrial Strategy",The Coal Authority,05/06/2023,Minewater Power Costs,ENV - Mine Water Operations,Edf Energy,164133,"1,734.46"
"Department for Business, Energy and Industrial Strategy",The Coal Authority,05/06/2023,Minewater Power Costs,ENV - Mine Water Operations,Edf Energy,164133,154.22
"Department for Business, Energy and Industrial Strategy",The Coal Authority,05/06/2023,Minewater Power Costs,ENV - Mine Water Operations,Edf Energy,164133,"1,519.26"
"Department for Business, Energy and Industrial Strategy",The Coal Authority,05/06/2023,Minewater Power Costs,ENV - Mine Water Operations,Edf Energy,164133,"3,452.93"
"Department for Business, Energy and Industrial Strategy",The Coal Authority,05/06/2023,Minewater Power Costs,ENV - Mine Water Operations,Edf Energy,164133,883.5
"Department for Business, Energy and Industrial Strategy",The Coal Authority,05/06/2023,Minewater Power Costs,ENV - Mine Water Operations,Edf Energy,164133,701.12
"Department for Business, Energy and Industrial Strategy",The Coal Authority,05/06/2023,Minewater Power Costs,ENV - Mine Water Operations,Edf Energy,164133,"32,764.01"
"Department for Business, Energy and Industrial Strategy",The Coal Authority,05/06/2023,Minewater Power Costs,ENV - Mine Water Operations,Edf Energy,164133,"41,545.64"
"Department for Business, Energy and Industrial Strategy",The Coal Authority,05/06/2023,Minewater Power Costs,ENV - Mine Water Operations,Edf Energy,164133,"3,474.64"
"Department for Business, Energy and Industrial Strategy",The Coal Authority,05/06/2023,Minewater Power Costs,ENV - Mine Water Operations,Edf Energy,164133,"29,874.38"
"Department for Business, Energy and Industrial Strategy",The Coal Authority,05/06/2023,Minewater Power Costs,ENV - Mine Water Operations,Edf Energy,164133,"3,125.05"
"Department for Business, Energy and Industrial Strategy",The Coal Authority,05/06/2023,Minewater Power Costs,ENV - Projects & Delivery,Edf Energy,164133,611.8
"Department for Business, Energy and Industrial Strategy",The Coal Authority,29/09/2023,Minewater Power Costs,ENV - Mine Water Operations,National Coal Mining Museum,164197,"2,980.00"
"Department for Business, Energy and Industrial Strategy",The Coal Authority,09/05/2023,Minewater Power Costs,DEFRA Metal Mine Programme,Edf Energy,164384,"73,929.49"
"Department for Business, Energy and Industrial Strategy",The Coal Authority,09/05/2023,Minewater Power Costs,DEFRA Metal Mine Programme,Edf Energy,164384,"3,257.01"
"Department for Business, Energy and Industrial Strategy",The Coal Authority,09/05/2023,Minewater Power Costs,ENV - Mine Water Operations,Edf Energy,164384,"3,396.56"
"Department for Business, Energy and Industrial Strategy",The Coal Authority,09/05/2023,Minewater Power Costs,ENV - Mine Water Operations,Edf Energy,164384,"6,897.57"
"Department for Business, Energy and Industrial Strategy",The Coal Authority,09/05/2023,Minewater Power Costs,ENV - Mine Water Operations,Edf Energy,164384,"2,036.23"
"Department for Business, Energy and Industrial Strategy",The Coal Authority,09/05/2023,Minewater Power Costs,ENV - Mine Water Operations,Edf Energy,164384,"10,707.35"
"Department for Business, Energy and Industrial Strategy",The Coal Authority,09/05/2023,Minewater Power Costs,ENV - Mine Water Operations,Edf Energy,164384,"14,638.84"
"Department for Business, Energy and Industrial Strategy",The Coal Authority,09/05/2023,Minewater Power Costs,ENV - Mine Water Operations,Edf Energy,164384,"6,038.33"
"Department for Business, Energy and Industrial Strategy",The Coal Authority,09/05/2023,Minewater Power Costs,ENV - Mine Water Operations,Edf Energy,164384,"38,198.18"
"Department for Business, Energy and Industrial Strategy",The Coal Authority,09/05/2023,Minewater Power Costs,ENV - Mine Water Operations,Edf Energy,164384,"3,611.06"
"Department for Business, Energy and Industrial Strategy",The Coal Authority,09/05/2023,Minewater Power Costs,ENV - Mine Water Operations,Edf Energy,164384,"8,637.34"
"Department for Business, Energy and Industrial Strategy",The Coal Authority,09/05/2023,Minewater Power Costs,ENV - Mine Water Operations,Edf Energy,164384,"29,978.05"
"Department for Business, Energy and Industrial Strategy",The Coal Authority,09/05/2023,Minewater Power Costs,ENV - Mine Water Operations,Edf Energy,164384,"26,438.67"
"Department for Business, Energy and Industrial Strategy",The Coal Authority,09/05/2023,Minewater Power Costs,ENV - Mine Water Operations,Edf Energy,164384,"3,841.75"
"Department for Business, Energy and Industrial Strategy",The Coal Authority,09/05/2023,Minewater Power Costs,ENV - Mine Water Operations,Edf Energy,164384,"1,679.31"
"Department for Business, Energy and Industrial Strategy",The Coal Authority,09/05/2023,Minewater Power Costs,ENV - Mine Water Operations,Edf Energy,164384,"19,426.63"
"Department for Business, Energy and Industrial Strategy",The Coal Authority,09/05/2023,Minewater Power Costs,ENV - Mine Water Operations,Edf Energy,164384,"3,780.87"
"Department for Business, Energy and Industrial Strategy",The Coal Authority,09/05/2023,Minewater Power Costs,ENV - Mine Water Operations,Edf Energy,164384,"10,358.53"
"Department for Business, Energy and Industrial Strategy",The Coal Authority,09/05/2023,Minewater Power Costs,ENV - Mine Water Operations,Edf Energy,164384,"2,200.43"
"Department for Business, Energy and Industrial Strategy",The Coal Authority,09/05/2023,Minewater Power Costs,ENV - Mine Water Operations,Edf Energy,164384,"3,645.21"
"Department for Business, Energy and Industrial Strategy",The Coal Authority,09/05/2023,Minewater Power Costs,ENV - Mine Water Operations,Edf Energy,164384,"3,152.56"
"Department for Business, Energy and Industrial Strategy",The Coal Authority,09/05/2023,Minewater Power Costs,ENV - Mine Water Operations,Edf Energy,164384,"6,232.47"
"Department for Business, Energy and Industrial Strategy",The Coal Authority,09/05/2023,Minewater Power Costs,ENV - Mine Water Operations,Edf Energy,164384,"1,293.93"
"Department for Business, Energy and Industrial Strategy",The Coal Authority,09/05/2023,Minewater Power Costs,ENV - Mine Water Operations,Edf Energy,164384,861.61
"Department for Business, Energy and Industrial Strategy",The Coal Authority,09/05/2023,Minewater Power Costs,ENV - Mine Water Operations,Edf Energy,164384,"33,466.04"
"Department for Business, Energy and Industrial Strategy",The Coal Authority,09/05/2023,Minewater Power Costs,ENV - Mine Water Operations,Edf Energy,164384,"19,390.48"
"Department for Business, Energy and Industrial Strategy",The Coal Authority,09/05/2023,Minewater Power Costs,ENV - Mine Water Operations,Edf Energy,164384,"3,895.09"
"Department for Business, Energy and Industrial Strategy",The Coal Authority,09/05/2023,Minewater Power Costs,ENV - Mine Water Operations,Edf Energy,164384,"5,751.38"
"Department for Business, Energy and Industrial Strategy",The Coal Authority,09/05/2023,Minewater Power Costs,ENV - Mine Water Operations,Edf Energy,164384,"1,009.31"
"Department for Business, Energy and Industrial Strategy",The Coal Authority,09/05/2023,Minewater Power Costs,ENV - Mine Water Operations,Edf Energy,164384,"19,037.25"
"Department for Business, Energy and Industrial Strategy",The Coal Authority,09/05/2023,Minewater Power Costs,ENV - Mine Water Operations,Edf Energy,164384,"32,089.74"
"Department for Business, Energy and Industrial Strategy",The Coal Authority,09/05/2023,Minewater Power Costs,ENV - Mine Water Operations,Edf Energy,164384,196.49
"Department for Business, Energy and Industrial Strategy",The Coal Authority,09/05/2023,Minewater Power Costs,ENV - Mine Water Operations,Edf Energy,164384,"1,513.51"
"Department for Business, Energy and Industrial Strategy",The Coal Authority,09/05/2023,Minewater Power Costs,ENV - Mine Water Operations,Edf Energy,164384,"3,585.39"
"Department for Business, Energy and Industrial Strategy",The Coal Authority,09/05/2023,Minewater Power Costs,ENV - Mine Water Operations,Edf Energy,164384,"1,396.39"
"Department for Business, Energy and Industrial Strategy",The Coal Authority,09/05/2023,Minewater Power Costs,ENV - Mine Water Operations,Edf Energy,164384,"3,433.13"
"Department for Business, Energy and Industrial Strategy",The Coal Authority,09/05/2023,Minewater Power Costs,ENV - Mine Water Operations,Edf Energy,164384,381.75
"Department for Business, Energy and Industrial Strategy",The Coal Authority,09/05/2023,Minewater Power Costs,ENV - Mine Water Operations,Edf Energy,164384,"1,223.22"
"Department for Business, Energy and Industrial Strategy",The Coal Authority,09/05/2023,Minewater Power Costs,ENV - Mine Water Operations,Edf Energy,164384,"5,060.03"
"Department for Business, Energy and Industrial Strategy",The Coal Authority,09/05/2023,Minewater Power Costs,ENV - Mine Water Operations,Edf Energy,164384,"8,323.66"
"Department for Business, Energy and Industrial Strategy",The Coal Authority,09/05/2023,Minewater Power Costs,ENV - Mine Water Operations,Edf Energy,164384,"11,076.43"
"Department for Business, Energy and Industrial Strategy",The Coal Authority,09/05/2023,Minewater Power Costs,ENV - Mine Water Operations,Edf Energy,164384,"32,321.68"
"Department for Business, Energy and Industrial Strategy",The Coal Authority,09/05/2023,Minewater Power Costs,ENV - Mine Water Operations,Edf Energy,164384,"6,098.02"
"Department for Business, Energy and Industrial Strategy",The Coal Authority,09/05/2023,Minewater Power Costs,ENV - Mine Water Operations,Edf Energy,164384,14.05
"Department for Business, Energy and Industrial Strategy",The Coal Authority,09/05/2023,Minewater Power Costs,ENV - Mine Water Operations,Edf Energy,164384,"16,023.14"
"Department for Business, Energy and Industrial Strategy",The Coal Authority,09/05/2023,Minewater Power Costs,ENV - Mine Water Operations,Edf Energy,164384,"1,501.00"
"Department for Business, Energy and Industrial Strategy",The Coal Authority,09/05/2023,Minewater Power Costs,ENV - Mine Water Operations,Edf Energy,164384,"3,048.78"
"Department for Business, Energy and Industrial Strategy",The Coal Authority,04/07/2023,Minewater Power Costs,DEFRA Metal Mine Programme,Edf Energy,164399,"2,852.96"
"Department for Business, Energy and Industrial Strategy",The Coal Authority,04/07/2023,Minewater Power Costs,DEFRA Metal Mine Programme,Edf Energy,164399,"51,967.33"
"Department for Business, Energy and Industrial Strategy",The Coal Authority,04/07/2023,Minewater Power Costs,ENV - Mine Water Operations,Edf Energy,164399,"8,670.69"
"Department for Business, Energy and Industrial Strategy",The Coal Authority,04/07/2023,Minewater Power Costs,ENV - Mine Water Operations,Edf Energy,164399,"13,792.55"
"Department for Business, Energy and Industrial Strategy",The Coal Authority,04/07/2023,Minewater Power Costs,ENV - Mine Water Operations,Edf Energy,164399,"16,810.83"
"Department for Business, Energy and Industrial Strategy",The Coal Authority,04/07/2023,Minewater Power Costs,ENV - Mine Water Operations,Edf Energy,164399,"4,670.06"
"Department for Business, Energy and Industrial Strategy",The Coal Authority,04/07/2023,Minewater Power Costs,ENV - Mine Water Operations,Edf Energy,164399,"32,022.58"
"Department for Business, Energy and Industrial Strategy",The Coal Authority,04/07/2023,Minewater Power Costs,ENV - Mine Water Operations,Edf Energy,164399,"1,213.58"
"Department for Business, Energy and Industrial Strategy",The Coal Authority,04/07/2023,Minewater Power Costs,ENV - Mine Water Operations,Edf Energy,164399,"19,233.20"
"Department for Business, Energy and Industrial Strategy",The Coal Authority,04/07/2023,Minewater Power Costs,ENV - Mine Water Operations,Edf Energy,164399,"1,866.26"
"Department for Business, Energy and Industrial Strategy",The Coal Authority,04/07/2023,Minewater Power Costs,ENV - Mine Water Operations,Edf Energy,164399,"2,018.07"
"Department for Business, Energy and Industrial Strategy",The Coal Authority,04/07/2023,Minewater Power Costs,ENV - Mine Water Operations,Edf Energy,164399,"3,650.89"
"Department for Business, Energy and Industrial Strategy",The Coal Authority,04/07/2023,Minewater Power Costs,ENV - Mine Water Operations,Edf Energy,164399,"3,918.62"
"Department for Business, Energy and Industrial Strategy",The Coal Authority,04/07/2023,Minewater Power Costs,ENV - Mine Water Operations,Edf Energy,164399,"1,401.10"
"Department for Business, Energy and Industrial Strategy",The Coal Authority,04/07/2023,Minewater Power Costs,ENV - Mine Water Operations,Edf Energy,164399,"2,980.93"
"Department for Business, Energy and Industrial Strategy",The Coal Authority,04/07/2023,Minewater Power Costs,ENV - Mine Water Operations,Edf Energy,164399,"1,978.82"
"Department for Business, Energy and Industrial Strategy",The Coal Authority,04/07/2023,Minewater Power Costs,ENV - Mine Water Operations,Edf Energy,164399,"5,291.37"
"Department for Business, Energy and Industrial Strategy",The Coal Authority,04/07/2023,Minewater Power Costs,ENV - Mine Water Operations,Edf Energy,164399,"1,533.49"
"Department for Business, Energy and Industrial Strategy",The Coal Authority,04/07/2023,Minewater Power Costs,ENV - Mine Water Operations,Edf Energy,164399,"15,863.77"
"Department for Business, Energy and Industrial Strategy",The Coal Authority,04/07/2023,Minewater Power Costs,ENV - Mine Water Operations,Edf Energy,164399,"1,261.02"
"Department for Business, Energy and Industrial Strategy",The Coal Authority,04/07/2023,Minewater Power Costs,ENV - Mine Water Operations,Edf Energy,164399,"1,041.36"
"Department for Business, Energy and Industrial Strategy",The Coal Authority,04/07/2023,Minewater Power Costs,ENV - Mine Water Operations,Edf Energy,164399,"19,046.45"
"Department for Business, Energy and Industrial Strategy",The Coal Authority,04/07/2023,Minewater Power Costs,ENV - Mine Water Operations,Edf Energy,164399,"1,325.84"
"Department for Business, Energy and Industrial Strategy",The Coal Authority,04/07/2023,Minewater Power Costs,ENV - Mine Water Operations,Edf Energy,164399,"3,047.27"
"Department for Business, Energy and Industrial Strategy",The Coal Authority,04/07/2023,Minewater Power Costs,ENV - Mine Water Operations,Edf Energy,164399,"3,369.42"
"Department for Business, Energy and Industrial Strategy",The Coal Authority,04/07/2023,Minewater Power Costs,ENV - Mine Water Operations,Edf Energy,164399,"3,728.88"
"Department for Business, Energy and Industrial Strategy",The Coal Authority,04/07/2023,Minewater Power Costs,ENV - Mine Water Operations,Edf Energy,164399,"3,304.71"
"Department for Business, Energy and Industrial Strategy",The Coal Authority,04/07/2023,Minewater Power Costs,ENV - Mine Water Operations,Edf Energy,164399,"12,263.92"
"Department for Business, Energy and Industrial Strategy",The Coal Authority,04/07/2023,Minewater Power Costs,ENV - Mine Water Operations,Edf Energy,164399,"2,205.81"
"Department for Business, Energy and Industrial Strategy",The Coal Authority,04/07/2023,Minewater Power Costs,ENV - Mine Water Operations,Edf Energy,164399,"30,660.20"
"Department for Business, Energy and Industrial Strategy",The Coal Authority,04/07/2023,Minewater Power Costs,ENV - Mine Water Operations,Edf Energy,164399,"37,840.13"
"Department for Business, Energy and Industrial Strategy",The Coal Authority,04/07/2023,Minewater Power Costs,ENV - Mine Water Operations,Edf Energy,164399,"5,069.65"
"Department for Business, Energy and Industrial Strategy",The Coal Authority,04/07/2023,Minewater Power Costs,ENV - Mine Water Operations,Edf Energy,164399,"9,840.85"
"Department for Business, Energy and Industrial Strategy",The Coal Authority,04/07/2023,Minewater Power Costs,ENV - Mine Water Operations,Edf Energy,164399,"1,640.05"
"Department for Business, Energy and Industrial Strategy",The Coal Authority,04/07/2023,Minewater Power Costs,ENV - Mine Water Operations,Edf Energy,164399,"26,001.61"
"Department for Business, Energy and Industrial Strategy",The Coal Authority,04/07/2023,Minewater Power Costs,ENV - Mine Water Operations,Edf Energy,164399,"32,332.07"
"Department for Business, Energy and Industrial Strategy",The Coal Authority,04/07/2023,Minewater Power Costs,ENV - Mine Water Operations,Edf Energy,164399,898.17
"Department for Business, Energy and Industrial Strategy",The Coal Authority,04/07/2023,Minewater Power Costs,ENV - Mine Water Operations,Edf Energy,164399,"2,536.86"
"Department for Business, Energy and Industrial Strategy",The Coal Authority,04/07/2023,Minewater Power Costs,ENV - Mine Water Operations,Edf Energy,164399,"1,603.72"
"Department for Business, Energy and Industrial Strategy",The Coal Authority,04/07/2023,Minewater Power Costs,ENV - Mine Water Operations,Edf Energy,164399,78.58
"Department for Business, Energy and Industrial Strategy",The Coal Authority,04/07/2023,Minewater Power Costs,ENV - Mine Water Operations,Edf Energy,164399,"1,552.52"
"Department for Business, Energy and Industrial Strategy",The Coal Authority,04/07/2023,Minewater Power Costs,ENV - Mine Water Operations,Edf Energy,164399,"3,455.05"
"Department for Business, Energy and Industrial Strategy",The Coal Authority,04/07/2023,Minewater Power Costs,ENV - Mine Water Operations,Edf Energy,164399,"21,005.78"
"Department for Business, Energy and Industrial Strategy",The Coal Authority,04/07/2023,Minewater Power Costs,ENV - Mine Water Operations,Edf Energy,164399,"9,687.14"
"Department for Business, Energy and Industrial Strategy",The Coal Authority,04/07/2023,Minewater Power Costs,ENV - Mine Water Operations,Edf Energy,164399,"5,011.51"
"Department for Business, Energy and Industrial Strategy",The Coal Authority,04/07/2023,Minewater Power Costs,ENV - Mine Water Operations,Edf Energy,164399,245.46
"Department for Business, Energy and Industrial Strategy",The Coal Authority,04/07/2023,Minewater Power Costs,ENV - Mine Water Operations,Edf Energy,164399,"10,441.35"
"Department for Business, Energy and Industrial Strategy",The Coal Authority,04/07/2023,Minewater Power Costs,ENV - Mine Water Operations,Edf Energy,164399,"2,304.93"
"Department for Business, Energy and Industrial Strategy",The Coal Authority,04/07/2023,Minewater Power Costs,ENV - Mine Water Operations,Edf Energy,164399,"2,184.87"
"Department for Business, Energy and Industrial Strategy",The Coal Authority,04/07/2023,Minewater Power Costs,ENV - Projects & Delivery,Edf Energy,164399,308.54
"Department for Business, Energy and Industrial Strategy",The Coal Authority,04/09/2023,Minewater Power Costs,DEFRA Metal Mine Programme,Edf Energy,164658,"3,291.63"
"Department for Business, Energy and Industrial Strategy",The Coal Authority,04/09/2023,Minewater Power Costs,DEFRA Metal Mine Programme,Edf Energy,164658,"46,554.06"
"Department for Business, Energy and Industrial Strategy",The Coal Authority,04/09/2023,Minewater Power Costs,ENV - Mine Water Operations,Edf Energy,164658,"15,214.94"
"Department for Business, Energy and Industrial Strategy",The Coal Authority,04/09/2023,Minewater Power Costs,ENV - Mine Water Operations,Edf Energy,164658,"12,506.05"
"Department for Business, Energy and Industrial Strategy",The Coal Authority,04/09/2023,Minewater Power Costs,ENV - Mine Water Operations,Edf Energy,164658,"1,951.42"
"Department for Business, Energy and Industrial Strategy",The Coal Authority,04/09/2023,Minewater Power Costs,ENV - Mine Water Operations,Edf Energy,164658,"1,364.69"
"Department for Business, Energy and Industrial Strategy",The Coal Authority,04/09/2023,Minewater Power Costs,ENV - Mine Water Operations,Edf Energy,164658,"1,602.78"
"Department for Business, Energy and Industrial Strategy",The Coal Authority,04/09/2023,Minewater Power Costs,ENV - Mine Water Operations,Edf Energy,164658,"3,432.56"
"Department for Business, Energy and Industrial Strategy",The Coal Authority,04/09/2023,Minewater Power Costs,ENV - Mine Water Operations,Edf Energy,164658,"1,744.70"
"Department for Business, Energy and Industrial Strategy",The Coal Authority,04/09/2023,Minewater Power Costs,ENV - Mine Water Operations,Edf Energy,164658,"32,557.05"
"Department for Business, Energy and Industrial Strategy",The Coal Authority,04/09/2023,Minewater Power Costs,ENV - Mine Water Operations,Edf Energy,164658,879.67
"Department for Business, Energy and Industrial Strategy",The Coal Authority,04/09/2023,Minewater Power Costs,ENV - Mine Water Operations,Edf Energy,164658,"28,438.49"
"Department for Business, Energy and Industrial Strategy",The Coal Authority,04/09/2023,Minewater Power Costs,ENV - Mine Water Operations,Edf Energy,164658,"21,048.50"
"Department for Business, Energy and Industrial Strategy",The Coal Authority,04/09/2023,Minewater Power Costs,ENV - Mine Water Operations,Edf Energy,164658,"19,954.62"
"Department for Business, Energy and Industrial Strategy",The Coal Authority,04/09/2023,Minewater Power Costs,ENV - Mine Water Operations,Edf Energy,164658,"3,049.11"
"Department for Business, Energy and Industrial Strategy",The Coal Authority,04/09/2023,Minewater Power Costs,ENV - Mine Water Operations,Edf Energy,164658,"5,673.36"
"Department for Business, Energy and Industrial Strategy",The Coal Authority,04/09/2023,Minewater Power Costs,ENV - Mine Water Operations,Edf Energy,164658,"4,726.39"
"Department for Business, Energy and Industrial Strategy",The Coal Authority,04/09/2023,Minewater Power Costs,ENV - Mine Water Operations,Edf Energy,164658,"26,032.06"
"Department for Business, Energy and Industrial Strategy",The Coal Authority,04/09/2023,Minewater Power Costs,ENV - Mine Water Operations,Edf Energy,164658,"2,275.56"
"Department for Business, Energy and Industrial Strategy",The Coal Authority,04/09/2023,Minewater Power Costs,ENV - Mine Water Operations,Edf Energy,164658,"1,203.03"
"Department for Business, Energy and Industrial Strategy",The Coal Authority,04/09/2023,Minewater Power Costs,ENV - Mine Water Operations,Edf Energy,164658,"2,702.10"
"Department for Business, Energy and Industrial Strategy",The Coal Authority,04/09/2023,Minewater Power Costs,ENV - Mine Water Operations,Edf Energy,164658,206.07
"Department for Business, Energy and Industrial Strategy",The Coal Authority,04/09/2023,Minewater Power Costs,ENV - Mine Water Operations,Edf Energy,164658,"10,465.53"
"Department for Business, Energy and Industrial Strategy",The Coal Authority,04/09/2023,Minewater Power Costs,ENV - Mine Water Operations,Edf Energy,164658,"3,425.57"
"Department for Business, Energy and Industrial Strategy",The Coal Authority,04/09/2023,Minewater Power Costs,ENV - Mine Water Operations,Edf Energy,164658,"1,229.95"
"Department for Business, Energy and Industrial Strategy",The Coal Authority,04/09/2023,Minewater Power Costs,ENV - Mine Water Operations,Edf Energy,164658,"3,152.63"
"Department for Business, Energy and Industrial Strategy",The Coal Authority,04/09/2023,Minewater Power Costs,ENV - Mine Water Operations,Edf Energy,164658,"1,924.43"
"Department for Business, Energy and Industrial Strategy",The Coal Authority,04/09/2023,Minewater Power Costs,ENV - Mine Water Operations,Edf Energy,164658,"4,337.10"
"Department for Business, Energy and Industrial Strategy",The Coal Authority,04/09/2023,Minewater Power Costs,ENV - Mine Water Operations,Edf Energy,164658,"8,594.25"
"Department for Business, Energy and Industrial Strategy",The Coal Authority,04/09/2023,Minewater Power Costs,ENV - Mine Water Operations,Edf Energy,164658,"4,626.91"
"Department for Business, Energy and Industrial Strategy",The Coal Authority,04/09/2023,Minewater Power Costs,ENV - Mine Water Operations,Edf Energy,164658,"10,234.66"
"Department for Business, Energy and Industrial Strategy",The Coal Authority,04/09/2023,Minewater Power Costs,ENV - Mine Water Operations,Edf Energy,164658,"5,780.11"
"Department for Business, Energy and Industrial Strategy",The Coal Authority,04/09/2023,Minewater Power Costs,ENV - Mine Water Operations,Edf Energy,164658,"1,284.62"
"Department for Business, Energy and Industrial Strategy",The Coal Authority,04/09/2023,Minewater Power Costs,ENV - Mine Water Operations,Edf Energy,164658,"1,830.68"
"Department for Business, Energy and Industrial Strategy",The Coal Authority,04/09/2023,Minewater Power Costs,ENV - Mine Water Operations,Edf Energy,164658,"1,411.64"
"Department for Business, Energy and Industrial Strategy",The Coal Authority,04/09/2023,Minewater Power Costs,ENV - Mine Water Operations,Edf Energy,164658,"31,328.94"
"Department for Business, Energy and Industrial Strategy",The Coal Authority,04/09/2023,Minewater Power Costs,ENV - Mine Water Operations,Edf Energy,164658,"25,370.52"
"Department for Business, Energy and Industrial Strategy",The Coal Authority,04/09/2023,Minewater Power Costs,ENV - Mine Water Operations,Edf Energy,164658,"3,256.78"
"Department for Business, Energy and Industrial Strategy",The Coal Authority,04/09/2023,Minewater Power Costs,ENV - Mine Water Operations,Edf Energy,164658,"11,655.05"
"Department for Business, Energy and Industrial Strategy",The Coal Authority,04/09/2023,Minewater Power Costs,ENV - Mine Water Operations,Edf Energy,164658,"4,670.88"
"Department for Business, Energy and Industrial Strategy",The Coal Authority,04/09/2023,Minewater Power Costs,ENV - Mine Water Operations,Edf Energy,164658,"19,033.47"
"Department for Business, Energy and Industrial Strategy",The Coal Authority,04/09/2023,Minewater Power Costs,ENV - Mine Water Operations,Edf Energy,164658,"16,697.74"
"Department for Business, Energy and Industrial Strategy",The Coal Authority,04/09/2023,Minewater Power Costs,ENV - Mine Water Operations,Edf Energy,164658,"5,025.68"
"Department for Business, Energy and Industrial Strategy",The Coal Authority,04/09/2023,Minewater Power Costs,ENV - Mine Water Operations,Edf Energy,164658,"1,527.46"
"Department for Business, Energy and Industrial Strategy",The Coal Authority,04/09/2023,Minewater Power Costs,ENV - Projects & Delivery,Edf Energy,164658,295.14
"Department for Business, Energy and Industrial Strategy",The Coal Authority,04/08/2023,Minewater Power Costs,DEFRA Metal Mine Programme,Edf Energy,164669,"3,026.73"
"Department for Business, Energy and Industrial Strategy",The Coal Authority,04/08/2023,Minewater Power Costs,DEFRA Metal Mine Programme,Edf Energy,164669,"48,130.33"
"Department for Business, Energy and Industrial Strategy",The Coal Authority,04/08/2023,Minewater Power Costs,ENV - Mine Water Operations,Edf Energy,164669,"4,266.63"
"Department for Business, Energy and Industrial Strategy",The Coal Authority,04/08/2023,Minewater Power Costs,ENV - Mine Water Operations,Edf Energy,164669,"10,246.54"
"Department for Business, Energy and Industrial Strategy",The Coal Authority,04/08/2023,Minewater Power Costs,ENV - Mine Water Operations,Edf Energy,164669,"3,442.61"
"Department for Business, Energy and Industrial Strategy",The Coal Authority,04/08/2023,Minewater Power Costs,ENV - Mine Water Operations,Edf Energy,164669,"10,116.99"
"Department for Business, Energy and Industrial Strategy",The Coal Authority,04/08/2023,Minewater Power Costs,ENV - Mine Water Operations,Edf Energy,164669,"12,021.53"
"Department for Business, Energy and Industrial Strategy",The Coal Authority,04/08/2023,Minewater Power Costs,ENV - Mine Water Operations,Edf Energy,164669,"25,363.32"
"Department for Business, Energy and Industrial Strategy",The Coal Authority,04/08/2023,Minewater Power Costs,ENV - Mine Water Operations,Edf Energy,164669,"20,577.30"
"Department for Business, Energy and Industrial Strategy",The Coal Authority,04/08/2023,Minewater Power Costs,ENV - Mine Water Operations,Edf Energy,164669,"1,968.77"
"Department for Business, Energy and Industrial Strategy",The Coal Authority,04/08/2023,Minewater Power Costs,ENV - Mine Water Operations,Edf Energy,164669,"10,496.25"
"Department for Business, Energy and Industrial Strategy",The Coal Authority,04/08/2023,Minewater Power Costs,ENV - Mine Water Operations,Edf Energy,164669,"4,328.58"
"Department for Business, Energy and Industrial Strategy",The Coal Authority,04/08/2023,Minewater Power Costs,ENV - Mine Water Operations,Edf Energy,164669,"3,100.80"
"Department for Business, Energy and Industrial Strategy",The Coal Authority,04/08/2023,Minewater Power Costs,ENV - Mine Water Operations,Edf Energy,164669,"3,479.81"
"Department for Business, Energy and Industrial Strategy",The Coal Authority,04/08/2023,Minewater Power Costs,ENV - Mine Water Operations,Edf Energy,164669,"1,330.21"
"Department for Business, Energy and Industrial Strategy",The Coal Authority,04/08/2023,Minewater Power Costs,ENV - Mine Water Operations,Edf Energy,164669,"7,847.54"
"Department for Business, Energy and Industrial Strategy",The Coal Authority,04/08/2023,Minewater Power Costs,ENV - Mine Water Operations,Edf Energy,164669,"4,698.21"
"Department for Business, Energy and Industrial Strategy",The Coal Authority,04/08/2023,Minewater Power Costs,ENV - Mine Water Operations,Edf Energy,164669,"1,273.54"
"Department for Business, Energy and Industrial Strategy",The Coal Authority,04/08/2023,Minewater Power Costs,ENV - Mine Water Operations,Edf Energy,164669,"16,642.13"
"Department for Business, Energy and Industrial Strategy",The Coal Authority,04/08/2023,Minewater Power Costs,ENV - Mine Water Operations,Edf Energy,164669,"14,756.53"
"Department for Business, Energy and Industrial Strategy",The Coal Authority,04/08/2023,Minewater Power Costs,ENV - Mine Water Operations,Edf Energy,164669,"1,246.68"
"Department for Business, Energy and Industrial Strategy",The Coal Authority,04/08/2023,Minewater Power Costs,ENV - Mine Water Operations,Edf Energy,164669,"1,450.51"
"Department for Business, Energy and Industrial Strategy",The Coal Authority,04/08/2023,Minewater Power Costs,ENV - Mine Water Operations,Edf Energy,164669,"5,035.83"
"Department for Business, Energy and Industrial Strategy",The Coal Authority,04/08/2023,Minewater Power Costs,ENV - Mine Water Operations,Edf Energy,164669,"29,076.48"
"Department for Business, Energy and Industrial Strategy",The Coal Authority,04/08/2023,Minewater Power Costs,ENV - Mine Water Operations,Edf Energy,164669,"3,216.11"
"Department for Business, Energy and Industrial Strategy",The Coal Authority,04/08/2023,Minewater Power Costs,ENV - Mine Water Operations,Edf Energy,164669,"3,829.50"
"Department for Business, Energy and Industrial Strategy",The Coal Authority,04/08/2023,Minewater Power Costs,ENV - Mine Water Operations,Edf Energy,164669,"26,191.45"
"Department for Business, Energy and Industrial Strategy",The Coal Authority,04/08/2023,Minewater Power Costs,ENV - Mine Water Operations,Edf Energy,164669,"1,986.56"
"Department for Business, Energy and Industrial Strategy",The Coal Authority,04/08/2023,Minewater Power Costs,ENV - Mine Water Operations,Edf Energy,164669,"1,074.46"
"Department for Business, Energy and Industrial Strategy",The Coal Authority,04/08/2023,Minewater Power Costs,ENV - Mine Water Operations,Edf Energy,164669,203.95
"Department for Business, Energy and Industrial Strategy",The Coal Authority,04/08/2023,Minewater Power Costs,ENV - Mine Water Operations,Edf Energy,164669,"1,468.48"
"Department for Business, Energy and Industrial Strategy",The Coal Authority,04/08/2023,Minewater Power Costs,ENV - Mine Water Operations,Edf Energy,164669,"3,426.07"
"Department for Business, Energy and Industrial Strategy",The Coal Authority,04/08/2023,Minewater Power Costs,ENV - Mine Water Operations,Edf Energy,164669,"1,298.22"
"Department for Business, Energy and Industrial Strategy",The Coal Authority,04/08/2023,Minewater Power Costs,ENV - Mine Water Operations,Edf Energy,164669,"2,583.29"
"Department for Business, Energy and Industrial Strategy",The Coal Authority,04/08/2023,Minewater Power Costs,ENV - Mine Water Operations,Edf Energy,164669,"1,546.29"
"Department for Business, Energy and Industrial Strategy",The Coal Authority,04/08/2023,Minewater Power Costs,ENV - Mine Water Operations,Edf Energy,164669,"2,014.56"
"Department for Business, Energy and Industrial Strategy",The Coal Authority,04/08/2023,Minewater Power Costs,ENV - Mine Water Operations,Edf Energy,164669,"3,029.02"
"Department for Business, Energy and Industrial Strategy",The Coal Authority,04/08/2023,Minewater Power Costs,ENV - Mine Water Operations,Edf Energy,164669,"3,099.45"
"Department for Business, Energy and Industrial Strategy",The Coal Authority,04/08/2023,Minewater Power Costs,ENV - Mine Water Operations,Edf Energy,164669,"32,204.99"
"Department for Business, Energy and Industrial Strategy",The Coal Authority,04/08/2023,Minewater Power Costs,ENV - Mine Water Operations,Edf Energy,164669,787.19
"Department for Business, Energy and Industrial Strategy",The Coal Authority,04/08/2023,Minewater Power Costs,ENV - Mine Water Operations,Edf Energy,164669,"29,318.24"
"Department for Business, Energy and Industrial Strategy",The Coal Authority,04/08/2023,Minewater Power Costs,ENV - Mine Water Operations,Edf Energy,164669,"19,217.01"
"Department for Business, Energy and Industrial Strategy",The Coal Authority,04/08/2023,Minewater Power Costs,ENV - Mine Water Operations,Edf Energy,164669,"7,227.65"
"Department for Business, Energy and Industrial Strategy",The Coal Authority,04/08/2023,Minewater Power Costs,ENV - Mine Water Operations,Edf Energy,164669,"32,673.53"
"Department for Business, Energy and Industrial Strategy",The Coal Authority,04/08/2023,Minewater Power Costs,ENV - Projects & Delivery,Edf Energy,164669,263.62
"Department for Business, Energy and Industrial Strategy",The Coal Authority,29/09/2023,Minewater Power Costs,DEFRA Metal Mine Programme,Wheal Jane Ltd,164990,632.12
"Department for Business, Energy and Industrial Strategy",The Coal Authority,30/09/2023,Minewater Power Costs,ENV - Mine Water Operations,National Coal Mining Museum,165022,"9,870.00"
"Department for Business, Energy and Industrial Strategy",The Coal Authority,04/10/2023,Minewater Power Costs,DEFRA Metal Mine Programme,Edf Energy,165413,"3,449.91"
"Department for Business, Energy and Industrial Strategy",The Coal Authority,04/10/2023,Minewater Power Costs,DEFRA Metal Mine Programme,Edf Energy,165413,"43,916.32"
"Department for Business, Energy and Industrial Strategy",The Coal Authority,04/10/2023,Minewater Power Costs,ENV - Mine Water Operations,Edf Energy,165413,"26,546.83"
"Department for Business, Energy and Industrial Strategy",The Coal Authority,04/10/2023,Minewater Power Costs,ENV - Mine Water Operations,Edf Energy,165413,"2,991.30"
"Department for Business, Energy and Industrial Strategy",The Coal Authority,04/10/2023,Minewater Power Costs,ENV - Mine Water Operations,Edf Energy,165413,"1,549.72"
"Department for Business, Energy and Industrial Strategy",The Coal Authority,04/10/2023,Minewater Power Costs,ENV - Mine Water Operations,Edf Energy,165413,"4,002.20"
"Department for Business, Energy and Industrial Strategy",The Coal Authority,04/10/2023,Minewater Power Costs,ENV - Mine Water Operations,Edf Energy,165413,"1,092.62"
"Department for Business, Energy and Industrial Strategy",The Coal Authority,04/10/2023,Minewater Power Costs,ENV - Mine Water Operations,Edf Energy,165413,"1,621.77"
"Department for Business, Energy and Industrial Strategy",The Coal Authority,04/10/2023,Minewater Power Costs,ENV - Mine Water Operations,Edf Energy,165413,"4,781.88"
"Department for Business, Energy and Industrial Strategy",The Coal Authority,04/10/2023,Minewater Power Costs,ENV - Mine Water Operations,Edf Energy,165413,"31,373.80"
"Department for Business, Energy and Industrial Strategy",The Coal Authority,04/10/2023,Minewater Power Costs,ENV - Mine Water Operations,Edf Energy,165413,"12,087.60"
"Department for Business, Energy and Industrial Strategy",The Coal Authority,04/10/2023,Minewater Power Costs,ENV - Mine Water Operations,Edf Energy,165413,"1,386.72"
"Department for Business, Energy and Industrial Strategy",The Coal Authority,04/10/2023,Minewater Power Costs,ENV - Mine Water Operations,Edf Energy,165413,"23,047.13"
"Department for Business, Energy and Industrial Strategy",The Coal Authority,04/10/2023,Minewater Power Costs,ENV - Mine Water Operations,Edf Energy,165413,"27,674.64"
"Department for Business, Energy and Industrial Strategy",The Coal Authority,04/10/2023,Minewater Power Costs,ENV - Mine Water Operations,Edf Energy,165413,"23,280.79"
"Department for Business, Energy and Industrial Strategy",The Coal Authority,04/10/2023,Minewater Power Costs,ENV - Mine Water Operations,Edf Energy,165413,"2,092.51"
"Department for Business, Energy and Industrial Strategy",The Coal Authority,04/10/2023,Minewater Power Costs,ENV - Mine Water Operations,Edf Energy,165413,"3,098.33"
"Department for Business, Energy and Industrial Strategy",The Coal Authority,04/10/2023,Minewater Power Costs,ENV - Mine Water Operations,Edf Energy,165413,"20,172.11"
"Department for Business, Energy and Industrial Strategy",The Coal Authority,04/10/2023,Minewater Power Costs,ENV - Mine Water Operations,Edf Energy,165413,198.32
"Department for Business, Energy and Industrial Strategy",The Coal Authority,04/10/2023,Minewater Power Costs,ENV - Mine Water Operations,Edf Energy,165413,"4,769.96"
"Department for Business, Energy and Industrial Strategy",The Coal Authority,04/10/2023,Minewater Power Costs,ENV - Mine Water Operations,Edf Energy,165413,"1,797.91"
"Department for Business, Energy and Industrial Strategy",The Coal Authority,04/10/2023,Minewater Power Costs,ENV - Mine Water Operations,Edf Energy,165413,"2,976.87"
"Department for Business, Energy and Industrial Strategy",The Coal Authority,04/10/2023,Minewater Power Costs,ENV - Mine Water Operations,Edf Energy,165413,"3,287.52"
"Department for Business, Energy and Industrial Strategy",The Coal Authority,04/10/2023,Minewater Power Costs,ENV - Mine Water Operations,Edf Energy,165413,"1,099.69"
"Department for Business, Energy and Industrial Strategy",The Coal Authority,04/10/2023,Minewater Power Costs,ENV - Mine Water Operations,Edf Energy,165413,"4,711.15"
"Department for Business, Energy and Industrial Strategy",The Coal Authority,04/10/2023,Minewater Power Costs,ENV - Mine Water Operations,Edf Energy,165413,"8,526.87"
"Department for Business, Energy and Industrial Strategy",The Coal Authority,04/10/2023,Minewater Power Costs,ENV - Mine Water Operations,Edf Energy,165413,"5,177.36"
"Department for Business, Energy and Industrial Strategy",The Coal Authority,04/10/2023,Minewater Power Costs,ENV - Mine Water Operations,Edf Energy,165413,"2,211.72"
"Department for Business, Energy and Industrial Strategy",The Coal Authority,04/10/2023,Minewater Power Costs,ENV - Mine Water Operations,Edf Energy,165413,"15,008.15"
"Department for Business, Energy and Industrial Strategy",The Coal Authority,04/10/2023,Minewater Power Costs,ENV - Mine Water Operations,Edf Energy,165413,"1,147.29"
"Department for Business, Energy and Industrial Strategy",The Coal Authority,04/10/2023,Minewater Power Costs,ENV - Mine Water Operations,Edf Energy,165413,"2,583.13"
"Department for Business, Energy and Industrial Strategy",The Coal Authority,04/10/2023,Minewater Power Costs,ENV - Mine Water Operations,Edf Energy,165413,"4,915.75"
"Department for Business, Energy and Industrial Strategy",The Coal Authority,04/10/2023,Minewater Power Costs,ENV - Mine Water Operations,Edf Energy,165413,"10,886.15"
"Department for Business, Energy and Industrial Strategy",The Coal Authority,04/10/2023,Minewater Power Costs,ENV - Mine Water Operations,Edf Energy,165413,"1,203.87"
"Department for Business, Energy and Industrial Strategy",The Coal Authority,04/10/2023,Minewater Power Costs,ENV - Mine Water Operations,Edf Energy,165413,"1,496.22"
"Department for Business, Energy and Industrial Strategy",The Coal Authority,04/10/2023,Minewater Power Costs,ENV - Mine Water Operations,Edf Energy,165413,"1,448.06"
"Department for Business, Energy and Industrial Strategy",The Coal Authority,04/10/2023,Minewater Power Costs,ENV - Mine Water Operations,Edf Energy,165413,"9,998.40"
"Department for Business, Energy and Industrial Strategy",The Coal Authority,04/10/2023,Minewater Power Costs,ENV - Mine Water Operations,Edf Energy,165413,"4,328.91"
"Department for Business, Energy and Industrial Strategy",The Coal Authority,04/10/2023,Minewater Power Costs,ENV - Mine Water Operations,Edf Energy,165413,843.78
"Department for Business, Energy and Industrial Strategy",The Coal Authority,04/10/2023,Minewater Power Costs,ENV - Mine Water Operations,Edf Energy,165413,"9,573.32"
"Department for Business, Energy and Industrial Strategy",The Coal Authority,04/10/2023,Minewater Power Costs,ENV - Mine Water Operations,Edf Energy,165413,"30,402.35"
"Department for Business, Energy and Industrial Strategy",The Coal Authority,04/10/2023,Minewater Power Costs,ENV - Mine Water Operations,Edf Energy,165413,801.98
"Department for Business, Energy and Industrial Strategy",The Coal Authority,04/10/2023,Minewater Power Costs,ENV - Mine Water Operations,Edf Energy,165413,"1,919.29"
"Department for Business, Energy and Industrial Strategy",The Coal Authority,04/10/2023,Minewater Power Costs,ENV - Mine Water Operations,Edf Energy,165413,"15,690.52"
"Department for Business, Energy and Industrial Strategy",The Coal Authority,04/10/2023,Minewater Power Costs,ENV - Mine Water Operations,Edf Energy,165413,"6,328.30"
"Department for Business, Energy and Industrial Strategy",The Coal Authority,04/10/2023,Minewater Power Costs,ENV - Mine Water Operations,Edf Energy,165413,"16,893.63"
"Department for Business, Energy and Industrial Strategy",The Coal Authority,04/10/2023,Minewater Power Costs,ENV - Mine Water Operations,Edf Energy,165413,"3,373.12"
"Department for Business, Energy and Industrial Strategy",The Coal Authority,04/10/2023,Minewater Power Costs,ENV - Mine Water Operations,Edf Energy,165413,"46,818.08"
"Department for Business, Energy and Industrial Strategy",The Coal Authority,04/10/2023,Minewater Power Costs,ENV - Projects & Delivery,Edf Energy,165413,"1,417.15"
"Department for Business, Energy and Industrial Strategy",The Coal Authority,20/04/2023,Minewater Power Costs,DEFRA Metal Mine Programme,Edf Energy,165420,"32,844.11"
"Department for Business, Energy and Industrial Strategy",The Coal Authority,20/04/2023,Minewater Power Costs,DEFRA Metal Mine Programme,Edf Energy,165420,"1,629.86"
"Department for Business, Energy and Industrial Strategy",The Coal Authority,20/04/2023,Minewater Power Costs,ENV - Mine Water Operations,Edf Energy,165420,"2,695.15"
"Department for Business, Energy and Industrial Strategy",The Coal Authority,20/04/2023,Minewater Power Costs,ENV - Mine Water Operations,Edf Energy,165420,"2,586.75"
"Department for Business, Energy and Industrial Strategy",The Coal Authority,20/04/2023,Minewater Power Costs,ENV - Mine Water Operations,Edf Energy,165420,"12,855.16"
"Department for Business, Energy and Industrial Strategy",The Coal Authority,20/04/2023,Minewater Power Costs,ENV - Mine Water Operations,Edf Energy,165420,691.34
"Department for Business, Energy and Industrial Strategy",The Coal Authority,20/04/2023,Minewater Power Costs,ENV - Mine Water Operations,Edf Energy,165420,"7,524.77"
"Department for Business, Energy and Industrial Strategy",The Coal Authority,20/04/2023,Minewater Power Costs,ENV - Mine Water Operations,Edf Energy,165420,"2,410.40"
"Department for Business, Energy and Industrial Strategy",The Coal Authority,20/04/2023,Minewater Power Costs,ENV - Mine Water Operations,Edf Energy,165420,"7,427.04"
"Department for Business, Energy and Industrial Strategy",The Coal Authority,20/04/2023,Minewater Power Costs,ENV - Mine Water Operations,Edf Energy,165420,"2,092.07"
"Department for Business, Energy and Industrial Strategy",The Coal Authority,20/04/2023,Minewater Power Costs,ENV - Mine Water Operations,Edf Energy,165420,"7,413.34"
"Department for Business, Energy and Industrial Strategy",The Coal Authority,20/04/2023,Minewater Power Costs,ENV - Mine Water Operations,Edf Energy,165420,"2,362.09"
"Department for Business, Energy and Industrial Strategy",The Coal Authority,20/04/2023,Minewater Power Costs,ENV - Mine Water Operations,Edf Energy,165420,883.45
"Department for Business, Energy and Industrial Strategy",The Coal Authority,20/04/2023,Minewater Power Costs,ENV - Mine Water Operations,Edf Energy,165420,"10,304.02"
"Department for Business, Energy and Industrial Strategy",The Coal Authority,20/04/2023,Minewater Power Costs,ENV - Mine Water Operations,Edf Energy,165420,"1,213.48"
"Department for Business, Energy and Industrial Strategy",The Coal Authority,20/04/2023,Minewater Power Costs,ENV - Mine Water Operations,Edf Energy,165420,"1,438.00"
"Department for Business, Energy and Industrial Strategy",The Coal Authority,20/04/2023,Minewater Power Costs,ENV - Mine Water Operations,Edf Energy,165420,"4,960.31"
"Department for Business, Energy and Industrial Strategy",The Coal Authority,20/04/2023,Minewater Power Costs,ENV - Mine Water Operations,Edf Energy,165420,"1,896.11"
"Department for Business, Energy and Industrial Strategy",The Coal Authority,20/04/2023,Minewater Power Costs,ENV - Mine Water Operations,Edf Energy,165420,"1,307.40"
"Department for Business, Energy and Industrial Strategy",The Coal Authority,20/04/2023,Minewater Power Costs,ENV - Mine Water Operations,Edf Energy,165420,"1,569.29"
"Department for Business, Energy and Industrial Strategy",The Coal Authority,20/04/2023,Minewater Power Costs,ENV - Mine Water Operations,Edf Energy,165420,"1,079.17"
"Department for Business, Energy and Industrial Strategy",The Coal Authority,20/04/2023,Minewater Power Costs,ENV - Mine Water Operations,Edf Energy,165420,340.17
"Department for Business, Energy and Industrial Strategy",The Coal Authority,20/04/2023,Minewater Power Costs,ENV - Mine Water Operations,Edf Energy,165420,"9,459.93"
"Department for Business, Energy and Industrial Strategy",The Coal Authority,20/04/2023,Minewater Power Costs,ENV - Mine Water Operations,Edf Energy,165420,"2,506.28"
"Department for Business, Energy and Industrial Strategy",The Coal Authority,20/04/2023,Minewater Power Costs,ENV - Mine Water Operations,Edf Energy,165420,"1,769.70"
"Department for Business, Energy and Industrial Strategy",The Coal Authority,20/04/2023,Minewater Power Costs,ENV - Mine Water Operations,Edf Energy,165420,"3,522.94"
"Department for Business, Energy and Industrial Strategy",The Coal Authority,20/04/2023,Minewater Power Costs,ENV - Mine Water Operations,Edf Energy,165420,"4,206.04"
"Department for Business, Energy and Industrial Strategy",The Coal Authority,20/04/2023,Minewater Power Costs,ENV - Mine Water Operations,Edf Energy,165420,"4,547.72"
"Department for Business, Energy and Industrial Strategy",The Coal Authority,20/04/2023,Minewater Power Costs,ENV - Mine Water Operations,Edf Energy,165420,"1,551.81"
"Department for Business, Energy and Industrial Strategy",The Coal Authority,20/04/2023,Minewater Power Costs,ENV - Mine Water Operations,Edf Energy,165420,"3,955.26"
"Department for Business, Energy and Industrial Strategy",The Coal Authority,20/04/2023,Minewater Power Costs,ENV - Mine Water Operations,Edf Energy,165420,"15,528.41"
"Department for Business, Energy and Industrial Strategy",The Coal Authority,20/04/2023,Minewater Power Costs,ENV - Mine Water Operations,Edf Energy,165420,"1,833.49"
"Department for Business, Energy and Industrial Strategy",The Coal Authority,20/04/2023,Minewater Power Costs,ENV - Mine Water Operations,Edf Energy,165420,"1,672.70"
"Department for Business, Energy and Industrial Strategy",The Coal Authority,20/04/2023,Minewater Power Costs,ENV - Mine Water Operations,Edf Energy,165420,"1,930.20"
"Department for Business, Energy and Industrial Strategy",The Coal Authority,20/04/2023,Minewater Power Costs,ENV - Mine Water Operations,Edf Energy,165420,"2,634.12"
"Department for Business, Energy and Industrial Strategy",The Coal Authority,20/04/2023,Minewater Power Costs,ENV - Mine Water Operations,Edf Energy,165420,764.81
"Department for Business, Energy and Industrial Strategy",The Coal Authority,20/04/2023,Minewater Power Costs,ENV - Mine Water Operations,Edf Energy,165420,431.96
"Department for Business, Energy and Industrial Strategy",The Coal Authority,20/04/2023,Minewater Power Costs,ENV - Mine Water Operations,Edf Energy,165420,"11,690.59"
"Department for Business, Energy and Industrial Strategy",The Coal Authority,20/04/2023,Minewater Power Costs,ENV - Mine Water Operations,Edf Energy,165420,88.39
"Department for Business, Energy and Industrial Strategy",The Coal Authority,20/04/2023,Minewater Power Costs,ENV - Mine Water Operations,Edf Energy,165420,914.58
"Department for Business, Energy and Industrial Strategy",The Coal Authority,20/04/2023,Minewater Power Costs,ENV - Mine Water Operations,Edf Energy,165420,"15,546.85"
"Department for Business, Energy and Industrial Strategy",The Coal Authority,20/04/2023,Minewater Power Costs,ENV - Mine Water Operations,Edf Energy,165420,"2,439.70"
"Department for Business, Energy and Industrial Strategy",The Coal Authority,20/04/2023,Minewater Power Costs,ENV - Mine Water Operations,Edf Energy,165420,"16,310.44"
"Department for Business, Energy and Industrial Strategy",The Coal Authority,20/04/2023,Minewater Power Costs,ENV - Mine Water Operations,Edf Energy,165420,"15,923.51"
"Department for Business, Energy and Industrial Strategy",The Coal Authority,20/10/2023,Minewater Power Costs,ENV - Projects & Delivery,Edf Energy,165464,-137.1
"Department for Business, Energy and Industrial Strategy",The Coal Authority,09/10/2023,Minewater Pump Overhauls,ENV - Mine Water Operations,Severn Trent Serv Ops Uk Ltd,165257,"2,064.14"
"Department for Business, Energy and Industrial Strategy",The Coal Authority,05/06/2023,Minewater Pumping Tests,ENV - Salinity Programme,Edf Energy,164133,40.28
"Department for Business, Energy and Industrial Strategy",The Coal Authority,09/05/2023,Minewater Pumping Tests,ENV - Salinity Programme,Edf Energy,164384,439.62
"Department for Business, Energy and Industrial Strategy",The Coal Authority,09/10/2023,Minewater Pumping Tests,ENV - Projects & Delivery,Severn Trent Serv Ops Uk Ltd,165257,27.68
"Department for Business, Energy and Industrial Strategy",The Coal Authority,09/10/2023,Minewater Pumping Tests,ENV - Projects & Delivery,Severn Trent Serv Ops Uk Ltd,165257,571.55
"Department for Business, Energy and Industrial Strategy",The Coal Authority,09/10/2023,Minewater Pumping Tests,ENV - Projects & Delivery,Severn Trent Serv Ops Uk Ltd,165257,"1,476.71"
"Department for Business, Energy and Industrial Strategy",The Coal Authority,09/10/2023,Minewater Pumping Tests,ENV - Projects & Delivery,Severn Trent Serv Ops Uk Ltd,165257,43.71
"Department for Business, Energy and Industrial Strategy",The Coal Authority,09/10/2023,Minewater Pumping Tests,ENV - Salinity Programme,Severn Trent Serv Ops Uk Ltd,165257,668.6
"Department for Business, Energy and Industrial Strategy",The Coal Authority,09/10/2023,Minewater Pumping Tests,ENV - Salinity Programme,Severn Trent Serv Ops Uk Ltd,165257,"5,959.58"
"Department for Business, Energy and Industrial Strategy",The Coal Authority,04/10/2023,Minewater Pumping Tests,ENV - Salinity Programme,Edf Energy,165413,"28,573.17"
"Department for Business, Energy and Industrial Strategy",The Coal Authority,20/10/2023,Minewater Pumping Tests,ENV - Salinity Programme,Edf Energy,165464,"-1,808.25"
"Department for Business, Energy and Industrial Strategy",The Coal Authority,09/10/2023,Minewater Remediation,ENV - Mine Water Operations,Severn Trent Serv Ops Uk Ltd,165257,593.22
"Department for Business, Energy and Industrial Strategy",The Coal Authority,09/10/2023,Minewater Remediation,ENV - Mine Water Operations,Severn Trent Serv Ops Uk Ltd,165257,"1,673.45"
"Department for Business, Energy and Industrial Strategy",The Coal Authority,09/10/2023,Minewater Remediation,ENV - Mine Water Operations,Severn Trent Serv Ops Uk Ltd,165257,"1,171.03"
"Department for Business, Energy and Industrial Strategy",The Coal Authority,09/02/2022,Minewater Rent,ENV - Mine Water Operations,Network Rail,164142,40
"Department for Business, Energy and Industrial Strategy",The Coal Authority,02/10/2023,Minewater Rent,ENV - Mine Water Operations,Walker Morris,164344,"15,219.00"
"Department for Business, Energy and Industrial Strategy",The Coal Authority,04/10/2023,Minewater Rent,ENV - Projects & Delivery,Rental Payment,164473,"1,000.00"
"Department for Business, Energy and Industrial Strategy",The Coal Authority,04/10/2023,Minewater Rent,ENV - Mine Water Operations,Rental Payment,164475,100
"Department for Business, Energy and Industrial Strategy",The Coal Authority,04/10/2023,Minewater Rent,ENV - Mine Water Operations,Rental Payment,164476,555.78
"Department for Business, Energy and Industrial Strategy",The Coal Authority,04/10/2023,Minewater Rent,ENV - Mine Water Operations,Harworth Estates Investments Ltd,164477,400
"Department for Business, Energy and Industrial Strategy",The Coal Authority,04/10/2023,Minewater Rent,ENV - Mine Water Operations,Rental Payment,164478,"17,899.37"
"Department for Business, Energy and Industrial Strategy",The Coal Authority,04/10/2023,Minewater Rent,ENV - Mine Water Operations,Rental Payment,164479,100
"Department for Business, Energy and Industrial Strategy",The Coal Authority,01/10/2023,Minewater Rent,ENV - Mine Water Operations,Balgonie Estates Ltd,165124,150
"Department for Business, Energy and Industrial Strategy",The Coal Authority,12/10/2023,Minewater Rent,ENV - Projects & Delivery,Rental Payment,165154,500
"Department for Business, Energy and Industrial Strategy",The Coal Authority,26/09/2023,Minewater Rent,DEFRA Metal Mine Programme,Wharton Estates,165631,"2,411.94"
"Department for Business, Energy and Industrial Strategy",The Coal Authority,01/05/2023,Minewater Rent,ENV - Mine Water Operations,Wentworth Joint Estates,165914,350
"Department for Business, Energy and Industrial Strategy",The Coal Authority,01/11/2023,Minewater Rent,ENV - Mine Water Operations,Wentworth Joint Estates,166165,350
"Department for Business, Energy and Industrial Strategy",The Coal Authority,04/10/2023,Minewater Sampling - 'Non-operational' Sites,ENV - Projects & Delivery,Staffordshire County Council,164385,400
"Department for Business, Energy and Industrial Strategy",The Coal Authority,27/09/2023,Minewater Sampling - 'Non-operational' Sites,ENV - Salinity Programme,QED Environmental Systems Ltd,164474,"2,739.34"
"Department for Business, Energy and Industrial Strategy",The Coal Authority,18/09/2023,Minewater Sampling - 'Non-operational' Sites,ENV - Salinity Programme,Socotec UK Limited,164536,"2,215.84"
"Department for Business, Energy and Industrial Strategy",The Coal Authority,30/09/2023,Minewater Sampling - 'Non-operational' Sites,ENV - Salinity Programme,Socotec UK Limited,164607,956.41
"Department for Business, Energy and Industrial Strategy",The Coal Authority,30/09/2023,Minewater Sampling - 'Non-operational' Sites,ENV - Salinity Programme,Socotec UK Limited,164607,0.1
"Department for Business, Energy and Industrial Strategy",The Coal Authority,31/08/2023,Minewater Sampling - 'Non-operational' Sites,DEFRA Metal Mine Programme,Socotec UK Limited,164920,177.86
"Department for Business, Energy and Industrial Strategy",The Coal Authority,12/09/2023,Minewater Sampling - 'Non-operational' Sites,DEFRA Metal Mine Programme,Socotec UK Limited,164921,177.86
"Department for Business, Energy and Industrial Strategy",The Coal Authority,26/09/2023,Minewater Sampling - 'Non-operational' Sites,DEFRA Metal Mine Programme,Socotec UK Limited,164923,177.86
"Department for Business, Energy and Industrial Strategy",The Coal Authority,06/10/2023,Minewater Sampling - 'Non-operational' Sites,ENV - Salinity Programme,Socotec UK Limited,165142,146.9
"Department for Business, Energy and Industrial Strategy",The Coal Authority,06/10/2023,Minewater Sampling - 'Non-operational' Sites,ENV - Salinity Programme,Socotec UK Limited,165142,724
"Department for Business, Energy and Industrial Strategy",The Coal Authority,09/10/2023,Minewater Sampling - 'Non-operational' Sites,ENV - Salinity Programme,Socotec UK Limited,165143,24.64
"Department for Business, Energy and Industrial Strategy",The Coal Authority,09/10/2023,Minewater Sampling - 'Non-operational' Sites,ENV - Salinity Programme,Socotec UK Limited,165143,482.22
"Department for Business, Energy and Industrial Strategy",The Coal Authority,30/08/2023,Minewater Sampling - 'Non-operational' Sites,ENV - Salinity Programme,European Geophysical Services,165768,"3,655.00"
"Department for Business, Energy and Industrial Strategy",The Coal Authority,13/10/2023,Minewater Sampling - 'Non-operational' Sites,ENV - Salinity Programme,Socotec UK Limited,165777,"1,070.00"
"Department for Business, Energy and Industrial Strategy",The Coal Authority,13/10/2023,Minewater Sampling - 'Non-operational' Sites,ENV - Salinity Programme,Socotec UK Limited,165777,750.12
"Department for Business, Energy and Industrial Strategy",The Coal Authority,12/10/2023,Minewater Sampling - 'Non-operational' Sites,ENV - Salinity Programme,Socotec UK Limited,165778,177.39
"Department for Business, Energy and Industrial Strategy",The Coal Authority,12/10/2023,Minewater Sampling - 'Non-operational' Sites,ENV - Salinity Programme,Socotec UK Limited,165778,88.88
"Department for Business, Energy and Industrial Strategy",The Coal Authority,12/10/2023,Minewater Sampling - 'Non-operational' Sites,ENV - Salinity Programme,Socotec UK Limited,165778,233.78
"Department for Business, Energy and Industrial Strategy",The Coal Authority,31/08/2023,Minewater Sampling - 'Non-operational' Sites,ENV - Salinity Programme,European Geophysical Services,165919,"2,254.60"
"Department for Business, Energy and Industrial Strategy",The Coal Authority,10/10/2023,Minewater Sampling - 'Non-operational' Sites,DEFRA Metal Mine Programme,Enitial Limited,166027,"1,000.00"
"Department for Business, Energy and Industrial Strategy",The Coal Authority,19/10/2023,Minewater Sampling - 'Non-operational' Sites,DEFRA Metal Mine Programme,Socotec UK Limited,166028,177.86
"Department for Business, Energy and Industrial Strategy",The Coal Authority,17/10/2023,Minewater Sampling - 'Non-operational' Sites,DEFRA Metal Mine Programme,Socotec UK Limited,166029,177.86
"Department for Business, Energy and Industrial Strategy",The Coal Authority,09/10/2023,Minewater Sampling - 'Non-operational' Sites,DEFRA Metal Mine Programme,Socotec UK Limited,166030,177.86
"Department for Business, Energy and Industrial Strategy",The Coal Authority,05/10/2023,Minewater Sampling - Operational Sites,DEFRA Metal Mine Programme,John F Hunt Regeneration Ltd,164646,"1,581.36"
"Department for Business, Energy and Industrial Strategy",The Coal Authority,09/10/2023,Minewater Site Investigations,ENV - Salinity Programme,Severn Trent Serv Ops Uk Ltd,165257,226.03
"Department for Business, Energy and Industrial Strategy",The Coal Authority,30/09/2023,Minewater Site Investigations,DEFRA LEP Funding,Dunelm Geotechnical and Environmental Ltd,166088,"4,692.98"
"Department for Business, Energy and Industrial Strategy",The Coal Authority,29/09/2023,Minewater Site Surveys,NRW Metal Mine Programme,Hydro-Logic Services Int Limited,164156,"1,118.50"
"Department for Business, Energy and Industrial Strategy",The Coal Authority,21/09/2023,Minewater Site Surveys,DEFRA Metal Mine Programme,AECOM Ltd,164363,"2,162.50"
"Department for Business, Energy and Industrial Strategy",The Coal Authority,29/09/2023,Minewater Site Surveys,NRW Metal Mine Programme,Hydro-Logic Services Int Limited,164911,"1,445.00"
"Department for Business, Energy and Industrial Strategy",The Coal Authority,06/10/2023,Minewater Site Surveys,NRW Metal Mine Programme,The Dyfed Archaeological Trust,164966,"2,400.00"
"Department for Business, Energy and Industrial Strategy",The Coal Authority,12/10/2023,Minewater Site Surveys,DEFRA LEP Funding,Jeremy Benn Associates Ltd,165191,"3,839.00"
"Department for Business, Energy and Industrial Strategy",The Coal Authority,04/10/2023,Minewater Site Surveys,DEFRA LEP Funding,Droneflight Ltd,165431,"1,700.00"
"Department for Business, Energy and Industrial Strategy",The Coal Authority,19/09/2023,Minewater Site Surveys,NRW Metal Mine Programme,WSP UK Ltd,165617,"8,000.00"
"Department for Business, Energy and Industrial Strategy",The Coal Authority,29/09/2023,Minewater Site Surveys,NRW Metal Mine Programme,APEM Ltd,165785,"13,647.65"
"Department for Business, Energy and Industrial Strategy",The Coal Authority,22/10/2023,Minewater Site Surveys,DEFRA LEP Funding,WSP UK Ltd,165943,"6,396.00"
"Department for Business, Energy and Industrial Strategy",The Coal Authority,22/10/2023,Minewater Site Surveys,DEFRA LEP Funding,WSP UK Ltd,165943,"12,540.00"
"Department for Business, Energy and Industrial Strategy",The Coal Authority,26/10/2023,Minewater Site Surveys,DEFRA Metal Mine Programme,Droneflight Ltd,165950,"1,700.00"
"Department for Business, Energy and Industrial Strategy",The Coal Authority,09/10/2023,Minewater Sludge Disposal,ENV - Mine Water Operations,Severn Trent Serv Ops Uk Ltd,165257,10.98
"Department for Business, Energy and Industrial Strategy",The Coal Authority,09/10/2023,Minewater Sludge Disposal,ENV - Mine Water Operations,Severn Trent Serv Ops Uk Ltd,165257,"20,509.43"
"Department for Business, Energy and Industrial Strategy",The Coal Authority,09/10/2023,Minewater Sludge Disposal,ENV - Mine Water Operations,Severn Trent Serv Ops Uk Ltd,165257,255.96
"Department for Business, Energy and Industrial Strategy",The Coal Authority,09/10/2023,Minewater Sludge Disposal,ENV - Mine Water Operations,Severn Trent Serv Ops Uk Ltd,165257,497.75
"Department for Business, Energy and Industrial Strategy",The Coal Authority,09/10/2023,Minewater Sludge Disposal,ENV - Mine Water Operations,Severn Trent Serv Ops Uk Ltd,165257,"24,477.07"
"Department for Business, Energy and Industrial Strategy",The Coal Authority,09/10/2023,Minewater Sludge Disposal,ENV - Mine Water Operations,Severn Trent Serv Ops Uk Ltd,165257,"5,535.12"
